{"text_format":"1","workbook":"xlsx","n_sheets":8,"sheets":["Hauptseite - main page","Bestellhilfe - ordering guide","Zusammenfassung - summary","Überblick - overview","Tabelle1","Comments","Bilder","Tabelle2"],"not_rendered":{"charts":0,"images":86,"macros":1,"external_links":1,"defined_names":67,"comments":2,"pivot_tables":0},"unopened":[],"bounds":{"document_bytes":16777216,"sheet_cells":100000,"rows_first":2000,"rows_last":500,"rows_between":2000,"halvings":0,"cell_chars":16384,"cell_head_chars":4096},"cells_cut":0,"cells_raw":0,"read":"whole","date_system":"1900"}

{"sheet":"Hauptseite - main page","index":0,"n_rows":221,"n_cols":11,"rows_kept":221,"cut":false,"hidden":false,"merged":[[2,6,2,8],[1,6,1,8],[3,6,3,8],[49,7,49,9],[23,1,23,5],[49,1,49,5],[27,8,30,10],[7,2,7,6],[8,2,8,6],[8,8,13,13],[10,2,10,6],[11,2,11,6],[13,2,13,6]]}
[]
["SmartHandle AX -",null,null,null,null,null,"Sprache / language / langue / lingua / taal / sprog / språk"]
[{"$f":"HLOOKUP(G3,A207:G227,13,0)","v":"Bestell-Leitfaden"},null,null,null,null,null,"Deutsch"]
[null,null,null,null,null,null,{"$f":"'Bestellhilfe - ordering guide'!H236","v":"*** Bitte Makros aktivieren ***"}]
[]
[]
[]
[{"$f":"'Bestellhilfe - ordering guide'!A12","v":"Kundennummer"},null,null,null,null,null,null,null,{"$f":"HLOOKUP(G3,A207:G227,14,0)","v":"abweichende Lieferanschrift"}]
[{"$f":"'Bestellhilfe - ordering guide'!E12","v":"Kundenname"}]
[]
[{"$f":"'Bestellhilfe - ordering guide'!L12","v":"Projekt-Nr.  "}]
[{"$f":"'Bestellhilfe - ordering guide'!A14","v":"Projekt-Name  "}]
[]
[{"$f":"'Bestellhilfe - ordering guide'!E14","v":"Anlage zu Bestellnummer  "}]
[]
[]
[]
[]
[]
[{"$f":"HLOOKUP(G3,A207:G227,2,0)","v":"Was möchten Sie bestellen?"}]
[]
[]
[]
[null,{"$f":"HLOOKUP(G3,A207:G227,3,0)","v":"zur Bestellhilfe - SmartHandle AX"}]
[]
[]
[]
[null,null,null,null,null,null,null,null,{"$f":"HLOOKUP(G3,A207:G227,12,0)","v":"Zur Anzeige der kompletten Bestellung, bitte auf den Pfeil klicken"}]
[]
[]
[]
[]
[]
[]
[]
[]
[]
[]
[]
[]
[]
[]
[]
[]
[]
[{"$f":"HLOOKUP(G3,A207:G227,7,0)","v":"Benötigen Sie zusätzliche Informationen?"}]
[]
[]
[]
[null,{"$f":"HLOOKUP(G3,A207:G227,8,0)","v":"Übersicht aller SmartHandle-AX Varianten und Drücker"},null,null,null,null,null,{"$f":"HLOOKUP(G3,A207:G227,10,0)","v":"Link zur SimonsVoss Website"}]
[]
[]
[]
[]
[]
[]
[]
[]
[]
[]
[]
[]
[]
[]
[]
[]
[]
[]
[]
[]
[]
[]
[]
[]
[]
[]
[]
[]
[]
[]
[]
[]
[]
[]
[]
[]
[]
[]
[]
[]
[]
[]
[]
[]
[]
[]
[]
[]
[]
[]
[]
[]
[]
[]
[]
[]
[]
[]
[]
[]
[]
[]
[]
[]
[]
[]
[]
[]
[]
[]
[]
[]
[]
[]
[]
[]
[]
[]
[]
[]
[]
[]
[]
[]
[]
[]
[]
[]
[]
[]
[]
[]
[]
[]
[]
[]
[]
[]
[]
[]
[]
[]
[]
[]
[]
[]
[]
[]
[]
[]
[]
[]
[]
[]
[]
[]
[]
[]
[]
[]
[]
[]
[]
[]
[]
[]
[]
[]
[]
[]
[]
[]
[]
[]
[]
[]
[]
[]
[]
[]
[]
[]
[]
[]
[]
[]
[]
[]
[]
[]
[]
[]
[]
[]
[]
[]
["Deutsch","English","Français","Italiano","Nederlands","Dansk","Svenska",1]
["Was möchten Sie bestellen?","What would you like to order?","Que souhaitez-vous commander ?","Cosa desidera ordinare?","Wat wilt u bestellen?","Hvad ønsker De at bestille?","Vad vill du beställa?",2]
["zur Bestellhilfe - SmartHandle AX","to the ordering guide - SmartHandle AX","Accéder à l’aide à la commande - SmartHandle AX","vai al buono d'ordine guidato - SmartHandle AX","naar de bestelhulp – SmartHandle AX","hjælp til bestilling - SmartHandle AX","till beställningsguiden - SmartHandle AX",3]
["Zylinder","cylinder","Cylindre","Cilindri","Cilinders","Cylinder","Cylinder",4]
["Programmierequipment & GatewayNodes","programming equipment & GatewayNodes","Équipement de programmation et nœuds de passerelle","Dispositivi di programmazione e GatewayNode","Programmeerapparaten & GatewayNodes","Programmeringsudstyr & GatewayNodes","Programmeringsutrustning och GatewayNodes",5]
["SmartHandle Cover","SmartHandle Cover","Couvercles pour SmartHandle","Cover SmartHandle","SmartHandle-afdekking","SmartHandle cover","SmartHandle-kåpa",6]
["Benötigen Sie zusätzliche Informationen?","Do you require further information?","Avez-vous besoin d’informations complémentaires ?","Necessita ulteriori informazioni?","Hebt u extra informatie nodig?","Ønsker De yderlgiere informationer?","Behöver du mer information?",7]
["Übersicht aller SmartHandle-AX Varianten und Drücker","overview of all available SmartHandle AX variants and handles","Présentation générale de tous les couvercles pour SmartHandle disponibles","Panoramica di tutte le varianti e leve SmartHandle-AX","Totaaloverzicht van alle beschikbare SmartHandle-afdekkingen","Oversigt over alle SmartHandle AX varianter og håndtag","Översikt över alla SmartHandle-AX-varianter och handtag",8]
["https://www.simons-voss.com/de/produkte/system-3060/schliesskomponenten/digitales-smart-handle-ax.html","https://www.simons-voss.com/en/products/system-3060/locking-components/digitales-smart-handle-ax.html","https://www.simons-voss.com/fr/produits/systeme-3060/composants-de-fermeture/digitales-smart-handle-ax.html","https://www.simons-voss.com/it/prodotti/sistema-3060/componenti-di-chiusura/digitales-smart-handle-ax.html","https://www.simons-voss.com/nl/producten/systeem-3060/sluitcomponnenten/digitales-smart-handle-ax.html","https://www.simons-voss.com/dk/produkter/system-3060/lasekomponenter/digitales-smart-handle-ax.html","https://www.simons-voss.com/se/produkter/system-3060/laeskomponenter/digitales-smart-handle-ax.html",null,null,null,{"$f":"HLOOKUP(G3,A207:G215,9,0)","v":"https://www.simons-voss.com/de/produkte/system-3060/schliesskomponenten/digitales-smart-handle-ax.html"}]
["Link zur SimonsVoss Website","link to our SimonsVoss website","Site Web SimonsVoss","Link alla pagina web di SimonsVoss","SimonsVoss-website","Linkt til SimonsVoss hjemmeside","Länk till SimonsVoss webbsida",10]
["Welches SmartHandle Cover muss ich bestellen? ","Which SmartHandle Cover do I need to order?","Quel couvercle pour SmartHandle dois-je commander ?","Quale cover SmartHandle mi serve?","Welke afdekking voor de SmartHandle moet ik bestellen?","Hvilket SmartHandle cover skal jeg bestille? ","Vilken SmartHandle-kåpa ska jag beställa? ",11]
["Zur Anzeige der kompletten Bestellung, bitte auf den Pfeil klicken","To show the complete order, please click the arrow","Veuillez cliquer sur la flèche pour afficher la totalité de la commande","Per la visualizzazione dell’ordine completo cliccare sulla freccia","Om de complete bestelling te bekijken, kunt u op de pijl klikken","For at se hele ordren, klik på pilen","Klicka på pilen för att se hela beställningen.",12]
["Bestell-Leitfaden","order guideline","Guide à la commande","Guida all’ordine","Bestelhandleiding","Guide til bestilling","Beställningsvägledning",13]
["abweichende Lieferanschrift","delivery address","Autre adresse de livraison","indirizzo di consegna diverso","afwijkend afleveradres","anden leveringsadresse","annan leveransadress",14]
["keine Auswahl getroffen","no selection made","Aucune sélection","nessuna scelta effettuata","geen selectie gemaakt","Intet valgt","inget val gjort",15,null,null,{"$f":"HLOOKUP(G3,A207:F221,15,0)","v":"keine Auswahl getroffen"}]

{"sheet":"Bestellhilfe - ordering guide","index":1,"n_rows":733,"n_cols":143,"rows_kept":733,"cut":false,"hidden":true,"merged":[[132,7,132,8],[110,7,110,8],[26,0,26,10],[13,1,13,2],[1,7,1,10],[11,6,11,7],[3,7,3,10],[2,0,2,6],[5,7,5,10],[5,5,5,6],[8,3,8,5],[27,0,27,10],[28,0,28,10],[6,13,6,14],[7,13,7,14],[8,13,8,14],[13,4,13,5],[13,6,13,9],[11,11,11,13],[11,4,11,5]]}
[" "]
[]
[{"$f":"HLOOKUP($I$3,A234:G302,2,0)","v":"Bestellhilfe Digitales SmartHandle - AX"},null,null,null,null,null,null,null,{"$f":"'Hauptseite - main page'!G3","v":"Deutsch"}]
[]
[null,null,null,null,null,null,null,null,null,null,null,null,null,null,null,null,"Stand: 09 / 2020"]
[null,null,{"$f":"HLOOKUP($I$3,A234:G302,47,0)","v":"zur Ansicht des SmartHandles bitte die gelb markierten Felder aus dem Drop-Down Menü auswählen"},null,{"$f":"J351","v":"Außenseite"},{"$f":"J352","v":"Innenseite"},null,{"$f":"HLOOKUP($I$3,$A$234:$G$310,4,0)","v":"Drückervariante auswählen"},null,null,null,null,null,null,{"$f":"I360","v":"Bemaßungen"},"Cover"]
[null,{"$f":"HLOOKUP($I$3,A234:G302,12,0)","v":"Profil"},null,null,null,null,null,null,"E."]
[null,{"$f":"F16","v":"Außenrosette"}]
[null,{"$f":"G16","v":"Innenrosette"},null," ",null,null,null,null,null,null,null,null,null,null,null,null,null,null,null,"Druckverbot \"T10\""]
[null,null,null,null,null,null,null,null,null,null,null,null,null,null,null,null,null,null,null,0]
[]
[{"$f":"HLOOKUP($I$3,A234:G302,5,0)","v":"Kundennummer"},4711,null,null,{"$f":"HLOOKUP($I$3,A234:G302,6,0)","v":"Kundenname"},null,"Ich AG",null,null,null,null,{"$f":"HLOOKUP($I$3,A234:G302,7,0)","v":"Projekt-Nr.  "},null,null,"17-15145"]
[]
[{"$f":"HLOOKUP($I$3,A234:G302,8,0)","v":"Projekt-Name  "},"Kölnisch Wasser",null,null,{"$f":"HLOOKUP($I$3,A234:G302,9,0)","v":"Anlage zu Bestellnummer  "},null,"Testbestellung Kerstin Horvat"]
[]
[{"$f":"HLOOKUP(I3,A234:G302,10,0)","v":"Anzahl"},{"$f":"HLOOKUP($I$3,A234:G334,11,0)","v":"Produktname"},"Sondervarianten (bei Bedarf bitte Button klicken)",{"$f":"I370","v":"Brandschutz / Fluchttüren / PAS24"},{"$f":"HLOOKUP($I$3,A234:G302,12,0)","v":"Profil"},{"$f":"I247","v":"Außenrosette"},{"$f":"I291","v":"Innenrosette"},{"$f":"HLOOKUP($I$3,A234:G302,19,0)","v":"Drücker außen"},{"$f":"HLOOKUP($I$3,A234:G302,20,0)","v":"Drücker innen"},{"$f":"HLOOKUP($I$3,A234:G302,21,0)","v":"Oberfläche"},{"$f":"HLOOKUP($I$3,A234:G302,15,0)","v":"Türdicke (mm)"},{"$f":"HLOOKUP($I$3,A234:G302,16,0)","v":"Vierkant (mm)"},{"$f":"HLOOKUP($I$3,A234:G302,22,0)","v":"Lesetechnik"},"Optionen",{"$f":"HLOOKUP($I$3,A234:G302,24,0)","v":"kpl. Artikelnummer"},{"$f":"HLOOKUP($I$3,A234:G302,25,0)","v":"Artikelnummer korrekt?"},{"$f":"I284","v":"Bemerkungen"},null,"Wenn FSB-Drücker, dann Adapter","Produktname","Profil / Montage",null,"Außen-rosette","Innen-rosette",null,"Drücker außen","Drücker innen",null,"Ober-fläche",null,"Tür-dicke",null,"Vierkant",null,"Lese-technik",null,"G2","Optionen","Panik","Brandschutz",null,"Langtext",null,null,null,"wenn Panikstangen",null,null,"wenn Bemerkung gefüllt",null,null,null,"wenn FH",null,"wenn DS"]
[null,null,null,null,null,null,null,null,null,null,null,"",null,null,{"$f":"IF(P17=$B$279,T17&U17&V17&W17&X17&Y17&Z17&AA17&AB17&AC17&AD17&AE17&AF17&AG17&AH17&AI17&AJ17&AK17&AL17&VLOOKUP(D17,$A$148:$D$152,4,FALSE)&AM17,\"\")","v":""},{"$f":"IF(AND(A17<>\"\",B17<>\"\",E17<>\"\",F17<>\"\",G17<>\"\",H17<>\"\",I17<>\"\",J17<>\"\",K17<>\"\",L17<>\"\",M17<>\"\",N17<>\"\"),$B$279,$A$279)","v":"Î"},{"$f":"IF(S17=1,$I$259,IF(AT17=1,$I$318,IF(D17=$I$382,$I$384,\"\")))","v":""},{"$f":"IF(AND(P17=$A$279,B17<>\"\"),1,0)","v":0},{"$f":"IF(H17=$I$308,1,0)","v":0},{"$f":"IF(B17<>\"\",VLOOKUP(B17,$B$34:$D$35,3,FALSE),\"\")","v":""},{"$f":"IF(E17<>\"\",VLOOKUP(E17,$A$44:$B$53,2,FALSE),\"\")","v":""},{"$f":"IF(U17<>\"\",\".\",\"\")","v":""},{"$f":"IF(F17<>\"\",VLOOKUP(F17,$H$97:$I$99,2,FALSE),\"\")","v":""},{"$f":"IF(G17<>\"\",VLOOKUP(G17,$H$97:$I$100,2,FALSE),\"\")","v":""},{"$f":"IF(X17<>\"\",\".\",\"\")","v":""},{"$f":"IF(H17<>\"\",VLOOKUP(H17,$H$85:$I$90,2,FALSE),\"\")","v":""},{"$f":"IF(I17<>\"\",VLOOKUP(I17,$H$85:$I$91,2,FALSE),\"\")","v":""},{"$f":"IF(AA17<>\"\",\".\",\"\")","v":""},{"$f":"IF(J17<>\"\",VLOOKUP(J17,$A$97:$B$99,2,FALSE),\"\")","v":""},{"$f":"IF(AC17<>\"\",\".\",\"\")","v":""},{"$f":"IF(K17<>\"\",VLOOKUP(K17,$A$85:$B$92,2,FALSE),\"\")","v":""},null,{"$f":"IF(L17<>\"\",L17,\"\")","v":""},{"$f":"IF(AG17<>\"\",\".\",\"\")","v":""},{"$f":"IF(M17<>\"\",VLOOKUP(M17,$K$85:$L$88,2,FALSE),\"\")","v":""},{"$f":"IF(AK17<>\"\",\".\",\"\")","v":""},{"$f":"IF(AND(M17<>\"\",M17<>$I$316),\"G2\",\"\")","v":""},{"$f":"IF(AND($N17<>\"\",$N17<>$J$340,$N17<>$J$341),$N17,\"\")","v":""},{"$f":"IF(B186<>\"\",\".P\"&VLOOKUP(C17,B186:C186,2,FALSE),\"\")","v":""},{"$f":"IF(D17<>A148,\", \"&D17,\"\")","v":", "},null,{"$f":"IF(P17=$B$279,(VLOOKUP(B17,$B$34:$C$35,2,FALSE)&VLOOKUP(U17,$N$157:$O$184,2,FALSE)&AN17&\", \"&J17&\", \"&M17&VLOOKUP(N17,$D$97:$E$103,2,FALSE)),\"\")","v":""},null,null,null,{"$f":"IF(OR(C186=1,C186=2),1,0)","v":0},null,null,{"$f":"IF(Q17<>\"\",1,\"\")","v":""},null,null,null,{"$f":"IF(OR(D17=$C$199,D17=$C$201)*AND(E17<>$A$179),1,0)","v":0}]
[null,null,null,null,null,null,null,null,null,null,null,"",null,null,{"$f":"IF(P18=$B$279,T18&U18&V18&W18&X18&Y18&Z18&AA18&AB18&AC18&AD18&AE18&AF18&AG18&AH18&AI18&AJ18&AK18&AL18&VLOOKUP(D18,$A$148:$D$152,4,FALSE)&AM18,\"\")","v":""},{"$f":"IF(AND(A18<>\"\",B18<>\"\",E18<>\"\",F18<>\"\",G18<>\"\",H18<>\"\",I18<>\"\",J18<>\"\",K18<>\"\",L18<>\"\",M18<>\"\",N18<>\"\"),$B$279,$A$279)","v":"Î"},{"$f":"IF(S18=1,$I$259,IF(AT18=1,$I$318,IF(D18=$I$382,$I$384,\"\")))","v":""},{"$f":"IF(AND(P18=$A$279,B18<>\"\"),1,0)","v":0},0,"",{"$f":"IF(E18<>\"\",VLOOKUP(E18,$A$44:$B$53,2,FALSE),\"\")","v":""},{"$f":"IF(U18<>\"\",\".\",\"\")","v":""},{"$f":"IF(F18<>\"\",VLOOKUP(F18,$H$97:$I$99,2,FALSE),\"\")","v":""},{"$f":"IF(G18<>\"\",VLOOKUP(G18,$H$97:$I$100,2,FALSE),\"\")","v":""},{"$f":"IF(X18<>\"\",\".\",\"\")","v":""},{"$f":"IF(H18<>\"\",VLOOKUP(H18,$H$85:$I$90,2,FALSE),\"\")","v":""},{"$f":"IF(I18<>\"\",VLOOKUP(I18,$H$85:$I$91,2,FALSE),\"\")","v":""},{"$f":"IF(AA18<>\"\",\".\",\"\")","v":""},{"$f":"IF(J18<>\"\",VLOOKUP(J18,$A$97:$B$99,2,FALSE),\"\")","v":""},{"$f":"IF(AC18<>\"\",\".\",\"\")","v":""},{"$f":"IF(K18<>\"\",VLOOKUP(K18,$A$85:$B$92,2,FALSE),\"\")","v":""},null,{"$f":"IF(L18<>\"\",L18,\"\")","v":""},{"$f":"IF(AG18<>\"\",\".\",\"\")","v":""},{"$f":"IF(M18<>\"\",VLOOKUP(M18,$K$85:$L$88,2,FALSE),\"\")","v":""},{"$f":"IF(AK18<>\"\",\".\",\"\")","v":""},{"$f":"IF(AND(M18<>\"\",M18<>$I$316),\"G2\",\"\")","v":""},"",{"$f":"IF(B187<>\"\",\".P\"&VLOOKUP(C18,B187:C187,2,FALSE),\"\")","v":""},{"$f":"IF(D18<>A149,\", \"&D18,\"\")","v":", "},null,{"$f":"IF(P18=$B$279,(VLOOKUP(B18,$B$34:$C$35,2,FALSE)&VLOOKUP(U18,$N$157:$O$184,2,FALSE)&AN18&\", \"&J18&\", \"&M18&VLOOKUP(N18,$D$97:$E$103,2,FALSE)),\"\")","v":""},null,null,null,{"$f":"IF(OR(C187=1,C187=2),1,0)","v":0},null,null,{"$f":"IF(Q18<>\"\",1,\"\")","v":""},null,null,null,{"$f":"IF(OR(D18=$C$199,D18=$C$201)*AND(E18<>$A$179),1,0)","v":0}]
[null,null,null,null,null,null,null,null,null,null,null,"",null,null,"","Î","",0,0,"","","","","","","","","","","","",null,"","","","","","",{"$f":"IF(B188<>\"\",\".P\"&VLOOKUP(C19,B188:C188,2,FALSE),\"\")","v":""},", ",null,"",null,null,null,0,null,null,"",null,null,null,0]
[null,null,null,null,null,null,null,null,null,null,null,"",null,null,"","Î","",0,0,"","","","","","","","","","","","",null,"","","","","","",{"$f":"IF(B189<>\"\",\".P\"&VLOOKUP(C20,B189:C189,2,FALSE),\"\")","v":""},", ",null,"",null,null,null,0,null,null,"",null,null,null,0]
[null,null,null,null,null,null,null,null,null,null,null,null,null,null,"","Î","",0,0,"","","","","","","","","","","","",null,"","","","","","","",", ",null,"",null,null,null,0,null,null,"",null,null,null,0]
[null,null,null,null,null,null,null,null,null,null,null,"",null,null,"","Î","",0,0,"","","","","","","","","","","","",null,"","","","","","","","",null,"",null,null,null,0,null,null,"",null,null,null,0]
[null,null,null,null,null,null,null,null,null,null,null,"",null,null,"","Î","",0,0,"","","",{"$f":"IF(F23<>\"\",VLOOKUP(F23,$H$97:$I$99,2,FALSE),\"\")","v":""},"","","","","","","","",null,"","","","","","","","",null,"",null,null,null,0,null,null,"",null,null,null,0]
[null,null,null,null,null,null,null,null,null,null,null,"",null,null,"","Î","",0,0,"","","","","","","","","","","","",null,"","","","","","","","",null,"",null,null,null,0,null,null,"",null,null,null,0]
[null,null,null,null,null,null,null,null,null,null,null,null,null,null,{"$f":"IF(A25<>\"\",F34,\"\")","v":""},null,{"$f":"IF(A25=\"\",\"\",\"\")","v":""},null,null,null,null,"","",{"$f":"IF(G25<>\"\",VLOOKUP(G25,$H$97:$I$99,2,FALSE),\"\")","v":""},"","","","","","","",null,"","","",{"$f":"IF(AI25<>\"\",\".\",\"\")","v":""},{"$f":"IF(M25<>\"\",\"G2\",\"\")","v":""},{"$f":"IF(AND($O25<>\"\",$O25<>$J$340,$O25<>$J$341),$O25,\"\")","v":""},{"$f":"IF(C27<>\"\",\".P\"&VLOOKUP(C27,B195:C195,2,FALSE),\"\")","v":""},{"$f":"IF(D27<>A157,\", \"&D27,\"\")","v":""},null,{"$f":"IF(AL25<>\"\",VLOOKUP(AL25,$F$34:$G$35,2,FALSE),\"\")","v":""},null,null,null,0,null,null,""]
[null,null,null,null,null,null,null,null,null,null,null,null,null,{"$f":"IF(A27<>\"\",F35,\"\")","v":""},{"$f":"IF(A26<>\"\",F35,\"\")","v":""},null,{"$f":"IF(A26=\"\",\"\",\"\")","v":""},{"$f":"SUM(R17:R25)","v":0},{"$f":"SUM(S17:S24)","v":0},null,null,"",{"$f":"IF(F27<>\"\",VLOOKUP(F27,$H$97:$I$99,2,FALSE),\"\")","v":""},{"$f":"IF(G27<>\"\",VLOOKUP(G27,$H$97:$I$99,2,FALSE),\"\")","v":""},"",{"$f":"IF(H27<>\"\",VLOOKUP(H27,$H$85:$I$90,2,FALSE),\"\")","v":""},{"$f":"IF(I27<>\"\",VLOOKUP(I27,$H$85:$I$91,2,FALSE),\"\")","v":""},"",{"$f":"IF(J27<>\"\",VLOOKUP(J27,$A$97:$B$99,2,FALSE),\"\")","v":""},"",{"$f":"IF(K27<>\"\",VLOOKUP(K27,$A$85:$B$92,2,FALSE),\"\")","v":""},null,"","","",{"$f":"IF(AI26<>\"\",\".\",\"\")","v":""},{"$f":"IF(M26<>\"\",\"G2\",\"\")","v":""},{"$f":"IF(AND($O26<>\"\",$O26<>$J$340,$O26<>$J$341),$O26,\"\")","v":""},{"$f":"IF(C28<>\"\",\".P\"&VLOOKUP(C28,B196:C196,2,FALSE),\"\")","v":""},{"$f":"IF(D28<>A158,\", \"&D28,\"\")","v":", "},null,{"$f":"IF(AL26<>\"\",VLOOKUP(AL26,$F$34:$G$35,2,FALSE),\"\")","v":""},null,null,null,{"$f":"SUM(AT17:AT24)","v":0},null,null,""]
[{"$f":"IF(S26>0,I361,\"\")","v":""},null,null,null,null,null,null,null,null,null,null,null,null,null,null,null,null,null,null,null,null,"",{"$f":"IF(F28<>\"\",VLOOKUP(F28,$H$97:$I$99,2,FALSE),\"\")","v":""},{"$f":"IF(G28<>\"\",VLOOKUP(G28,$H$97:$I$99,2,FALSE),\"\")","v":""},"",{"$f":"IF(H28<>\"\",VLOOKUP(H28,$H$85:$I$90,2,FALSE),\"\")","v":""},{"$f":"IF(I28<>\"\",VLOOKUP(I28,$H$85:$I$91,2,FALSE),\"\")","v":""},"",{"$f":"IF(J28<>\"\",VLOOKUP(J28,$A$97:$B$99,2,FALSE),\"\")","v":""},"",{"$f":"IF(K28<>\"\",VLOOKUP(K28,$A$85:$B$92,2,FALSE),\"\")","v":""},null,"","","",{"$f":"IF(AI27<>\"\",\".\",\"\")","v":""},{"$f":"IF(M27<>\"\",\"G2\",\"\")","v":""},null,null,null,null,null,null,null,null,0,null,null,{"$f":"SUM(AW17:AW26)","v":0},null,null,null,{"$f":"SUM(BA17:BA26)","v":0}]
[{"$f":"IF(AT26>0,I381,\"\")","v":""}]
[{"$f":"IF(BA27>0,I383,\"\")","v":""}]
[]
[]
[]
["SmartHandle Version"]
["SmartHandle AX (S2)",{"$f":"HLOOKUP($I$3,$A$234:$G$358,113,FALSE)&CHAR(10)&\"(SV-S2)\"","v":"System 3060\n(SV-S2)"},{"$f":"HLOOKUP($I$3,$A$234:$G$358,111,FALSE)&\", \"","v":"SmartHandle AX (System 3060), "},"SV-S2.",null,"S2.Adapterset.FSB",{"$f":"I368","v":"Adapterset für die Montage eines FSB-Drückers"}]
[null,{"$f":"HLOOKUP($I$3,$A$234:$G$358,114,FALSE)&CHAR(10)&\"(MK-S2)\"","v":"Mobile Key\n(MK-S2)"},{"$f":"HLOOKUP($I$3,$A$234:$G$358,112,FALSE)&\", \"","v":"SmartHandle AX (Mobile Key), "},"MK-S2.",null,"S2.Adapterset.GLUTZ",{"$f":"I369","v":"Adapterset für die Montage eines GLUTZ-Drückers"}]
[null,"SI-S2."]
[]
[]
[]
[]
["für Auswahl in Zeilen",null,null,null,null,null,null,null,null,null,null,null,null,null,null,null,null,null,null,null,null,null,null,null,null,null,null,null,null,null,null,null,null,null,null,null,null,null,null,null,null,null,null,null,null,null,null,null,null,null,null,null,null,null,null,null,null,null,null,null,null,null,null,null,null,null,null,null,null,null,null,null,null,null,null,null,null,null,null,null,null,null,null,null,null,null,null,null,null,null,null,null,null,null,null,null,null,null,null,null,null,null,null,null,null,null,null,null,null,null,null,null,null,null,null,null,null,null,null,null,null,null,null,null,null,null,null,null,null,null,null,null,null,null,null,null,null,null,null,null,null,"zur Anzeige der Beispiel-Zeichnungen"]
[]
["Profil","Produktcode","Außenrosette","Innenrosette","Außendrücker","Vierkant","für Türdicken","für Option",null,"für stehend / hängend",null,null,null,"Für Türdicken",null,null,"für MO / blind","für stehend / hängend",null,null,null,null,null,null,null,null,null,null,null,null,null,null,null,null,null,null,null,null,null,null,null,null,null,null,null,null,null,null,null,null,null,null,null,null,null,null,null,null,null,null,null,null,null,null,null,null,null,null,null,null,null,null,null,null,null,null,null,null,null,null,null,null,null,null,null,null,null,null,null,null,null,null,null,null,null,null,null,null,null,null,null,null,null,null,null,null,null,null,null,null,null,null,null,null,null,null,null,null,null,null,null,null,null,null,null,null,null,null,null,null,null,null,null,null,null,null,null,null,null,null,null,"Profil","für stehend/hängend"]
[{"$f":"$I$260","v":"(A0) - Europrofil\n- stehende Montage"},"A0",1,1,1,1,1,1,null,1,2,null,null,1,2,null,1,1,2,3,null,null,null,null,null,null,null,null,null,null,null,null,null,null,null,null,null,null,null,null,null,null,null,null,null,null,null,null,null,null,null,null,null,null,null,null,null,null,null,null,null,null,null,null,null,null,null,null,null,null,null,null,null,null,null,null,null,null,null,null,null,null,null,null,null,null,null,null,null,null,null,null,null,null,null,null,null,null,null,null,null,null,null,null,null,null,null,null,null,null,null,null,null,null,null,null,null,null,null,null,null,null,null,null,null,null,null,null,null,null,null,null,null,null,null,null,null,null,null,null,null,{"$f":"IF($I$3=\"Deutsch\",$A260,IF($I$3=\"English\",$B260,IF($I$3=\"Français\",$C260,IF($I$3=\"Italiano\",$D260,IF($I$3=\"Nederlands\",$E260,\"\")))))","v":"(A0) - Europrofil\n- stehende Montage"},1]
[{"$f":"$I$299","v":"(A1) - Europrofil\n- hängende Montage [70-79 mm]"},"A1",2,3,1,1,1,0,null,{"$f":"HLOOKUP($I$3,$A$234:$G$348,65,FALSE)","v":"stehende Montage"},{"$f":"HLOOKUP($I$3,$A$234:$G$348,65,FALSE)","v":"stehende Montage"},null,null,"38-60 mm (S)","38-57 mm (S)",null,3,{"$f":"IF($I$3=\"Deutsch\",$A270,IF($I$3=\"English\",$B270,IF($I$3=\"Français\",$C270,IF($I$3=\"Italiano\",$D270,IF($I$3=\"Nederlands\",$E270,\"\")))))","v":0},{"$f":"IF($I$3=\"Deutsch\",$A270,IF($I$3=\"English\",$B270,IF($I$3=\"Français\",$C270,IF($I$3=\"Italiano\",$D270,IF($I$3=\"Nederlands\",$E270,\"\")))))","v":0},{"$f":"IF($I$3=\"Deutsch\",$A271,IF($I$3=\"English\",$B271,IF($I$3=\"Français\",$C271,IF($I$3=\"Italiano\",$D271,IF($I$3=\"Nederlands\",$E271,\"\")))))","v":0},null,null,null,null,null,null,null,null,null,null,null,null,null,null,null,null,null,null,null,null,null,null,null,null,null,null,null,null,null,null,null,null,null,null,null,null,null,null,null,null,null,null,null,null,null,null,null,null,null,null,null,null,null,null,null,null,null,null,null,null,null,null,null,null,null,null,null,null,null,null,null,null,null,null,null,null,null,null,null,null,null,null,null,null,null,null,null,null,null,null,null,null,null,null,null,null,null,null,null,null,null,null,null,null,null,null,null,null,null,null,null,null,null,null,null,null,null,null,null,null,null,{"$f":"IF($I$3=\"Deutsch\",$A302,IF($I$3=\"English\",$B302,IF($I$3=\"Français\",$C302,IF($I$3=\"Italiano\",$D302,IF($I$3=\"Nederlands\",$E302,\"\")))))","v":"(E0) - Scandinavian Oval\n- ohne Schließzylinder-Öffnung / stehende Montage"},2]
[{"$f":"$I$300","v":"(A2) - Europrofil\n- hängende Montage [70-110 mm]"},"A2",2,3,1,1,1,0,null,{"$f":"HLOOKUP($I$3,$A$234:$G$348,66,FALSE)","v":"(A1) - Europrofil\n- hängende Montage [70-79 mm]"},null,null,null,"59-80 mm (M)","58-77 mm (M)",null,1,{"$f":"IF($I$3=\"Deutsch\",$A271,IF($I$3=\"English\",$B271,IF($I$3=\"Français\",$C271,IF($I$3=\"Italiano\",$D271,IF($I$3=\"Nederlands\",$E271,\"\")))))","v":0},null,null,null,null,null,null,null,null,null,null,null,null,null,null,null,null,null,null,null,null,null,null,null,null,null,null,null,null,null,null,null,null,null,null,null,null,null,null,null,null,null,null,null,null,null,null,null,null,null,null,null,null,null,null,null,null,null,null,null,null,null,null,null,null,null,null,null,null,null,null,null,null,null,null,null,null,null,null,null,null,null,null,null,null,null,null,null,null,null,null,null,null,null,null,null,null,null,null,null,null,null,null,null,null,null,null,null,null,null,null,null,null,null,null,null,null,null,null,null,null,null,null,null,{"$f":"IF($I$3=\"Deutsch\",$A276,IF($I$3=\"English\",$B276,IF($I$3=\"Français\",$C276,IF($I$3=\"Italiano\",$D276,IF($I$3=\"Nederlands\",$E276,\"\")))))","v":"Swiss Round"},1]
[{"$f":"$I$267","v":"(A3) - Europrofil\n- stehende Montage für Rohrramen"},"A3",1,1,2,2,2,0,null,{"$f":"HLOOKUP($I$3,$A$234:$G$348,67,FALSE)","v":"(A2) - Europrofil\n- hängende Montage [70-110 mm]"},null,null,null,"79-100 mm (L)","78-97 mm (L)",null,4,null,null,null,null,null,null,null,null,null,null,null,null,null,null,null,null,null,null,null,null,null,null,null,null,null,null,null,null,null,null,null,null,null,null,null,null,null,null,null,null,null,null,null,null,null,null,null,null,null,null,null,null,null,null,null,null,null,null,null,null,null,null,null,null,null,null,null,null,null,null,null,null,null,null,null,null,null,null,null,null,null,null,null,null,null,null,null,null,null,null,null,null,null,null,null,null,null,null,null,null,null,null,null,null,null,null,null,null,null,null,null,null,null,null,null,null,null,null,null,null,null,null,null,null,{"$f":"IF($I$3=\"Deutsch\",$A277,IF($I$3=\"English\",$B277,IF($I$3=\"Français\",$C277,IF($I$3=\"Italiano\",$D277,IF($I$3=\"Nederlands\",$E277,\"\")))))","v":0},1]
[{"$f":"$I$302","v":"(E0) - Scandinavian Oval\n- ohne Schließzylinder-Öffnung / stehende Montage"},"E0",2,3,1,1,1,0,null,null,null,null,null,"100-200 mm (X)","97-196 mm (X)",null,4,null,null,null,null,null,null,null,null,null,null,null,null,null,null,null,null,null,null,null,null,null,null,null,null,null,null,null,null,null,null,null,null,null,null,null,null,null,null,null,null,null,null,null,null,null,null,null,null,null,null,null,null,null,null,null,null,null,null,null,null,null,null,null,null,null,null,null,null,null,null,null,null,null,null,null,null,null,null,null,null,null,null,null,null,null,null,null,null,null,null,null,null,null,null,null,null,null,null,null,null,null,null,null,null,null,null,null,null,null,null,null,null,null,null,null,null,null,null,null,null,null,null,null,null,{"$f":"IF($I$3=\"Deutsch\",$A278,IF($I$3=\"English\",$B278,IF($I$3=\"Français\",$C278,IF($I$3=\"Italiano\",$D278,IF($I$3=\"Nederlands\",$E278,\"\")))))","v":0},3]
[{"$f":"$I$303","v":"(E1) - Scandinavian Oval\n- mit Schließzylinder-Öffnung / stehende Montage"},"E1",2,3,1,1,1,0,null,"Außenrosette/Innenrosette",null,null,null,null,null,null,4,"für MO / blind",null,null,null,null,null,null,null,null,null,null,null,null,null,null,null,null,null,null,null,null,null,null,null,null,null,null,null,null,null,null,null,null,null,null,null,null,null,null,null,null,null,null,null,null,null,null,null,null,null,null,null,null,null,null,null,null,null,null,null,null,null,null,null,null,null,null,null,null,null,null,null,null,null,null,null,null,null,null,null,null,null,null,null,null,null,null,null,null,null,null,null,null,null,null,null,null,null,null,null,null,null,null,null,null,null,null,null,null,null,null,null,null,null,null,null,null,null,null,null,null,null,null,null,{"$f":"IF($I$3=\"Deutsch\",$A275,IF($I$3=\"English\",$B275,IF($I$3=\"Français\",$C275,IF($I$3=\"Italiano\",$D275,IF($I$3=\"Nederlands\",$E275,\"\")))))","v":0},3]
[{"$f":"$J$348","v":"(B0) - Swiss Round\n- stehende Montage"},"B0",1,1,1,1,1,0,null,1,2,3,4,null,null,null,null,1,2,3,4,5]
[{"$f":"$J$349","v":"(B1) - Swiss Round\n- hängende Montage [70-79 mm]"},"B1",2,3,1,1,1,0,null,{"$f":"HLOOKUP($I$3,$A$234:$G$348,62,FALSE)&\" (0)\"","v":"ohne Rosette (0)"},{"$f":"HLOOKUP($I$3,$A$234:$G$348,62,FALSE)&\" (0)\"","v":"ohne Rosette (0)"},{"$f":"HLOOKUP($I$3,$A$234:$G$348,63,FALSE)&\" (1)\"","v":"ohne Schließzylinder-Öffnung (1)"},{"$f":"HLOOKUP($I$3,$A$234:$G$348,62,FALSE)&\" (0)\"","v":"ohne Rosette (0)"},null,null,null,null,{"$f":"IF($I$3=\"Deutsch\",$A267,IF($I$3=\"English\",$B267,IF($I$3=\"Français\",$C267,IF($I$3=\"Italiano\",$D267,IF($I$3=\"Nederlands\",$E267,\"\")))))","v":"(A3) - Europrofil\n- stehende Montage für Rohrramen"},{"$f":"IF($I$3=\"Deutsch\",$A272,IF($I$3=\"English\",$B272,IF($I$3=\"Français\",$C272,IF($I$3=\"Italiano\",$D272,IF($I$3=\"Nederlands\",$E272,\"\")))))","v":0},{"$f":"IF($I$3=\"Deutsch\",$A267,IF($I$3=\"English\",$B267,IF($I$3=\"Français\",$C267,IF($I$3=\"Italiano\",$D267,IF($I$3=\"Nederlands\",$E267,\"\")))))","v":"(A3) - Europrofil\n- stehende Montage für Rohrramen"},{"$f":"IF($I$3=\"Deutsch\",$A267,IF($I$3=\"English\",$B267,IF($I$3=\"Français\",$C267,IF($I$3=\"Italiano\",$D267,IF($I$3=\"Nederlands\",$E267,\"\")))))","v":"(A3) - Europrofil\n- stehende Montage für Rohrramen"},{"$f":"IF($I$3=\"Deutsch\",$A267,IF($I$3=\"English\",$B267,IF($I$3=\"Français\",$C267,IF($I$3=\"Italiano\",$D267,IF($I$3=\"Nederlands\",$E267,\"\")))))","v":"(A3) - Europrofil\n- stehende Montage für Rohrramen"}]
[{"$f":"$J$350","v":"(B2) - Swiss Round\n- hängende Montage [70-110 mm]"},"B2",2,3,1,1,1,0,null,{"$f":"HLOOKUP($I$3,$A$234:$G$348,63,FALSE)&\" (1)\"","v":"ohne Schließzylinder-Öffnung (1)"},null,{"$f":"HLOOKUP($I$3,$A$234:$G$348,64,FALSE)&\" (2)\"","v":"mit Schließzylinder-Öffnung (2)"},null,null,null,null,null,{"$f":"IF($I$3=\"Deutsch\",$A268,IF($I$3=\"English\",$B268,IF($I$3=\"Français\",$C268,IF($I$3=\"Italiano\",$D268,IF($I$3=\"Nederlands\",$E268,\"\")))))","v":0},{"$f":"IF($I$3=\"Deutsch\",$A273,IF($I$3=\"English\",$B273,IF($I$3=\"Français\",$C273,IF($I$3=\"Italiano\",$D273,IF($I$3=\"Nederlands\",$E273,\"\")))))","v":0},{"$f":"IF($I$3=\"Deutsch\",$A268,IF($I$3=\"English\",$B268,IF($I$3=\"Français\",$C268,IF($I$3=\"Italiano\",$D268,IF($I$3=\"Nederlands\",$E268,\"\")))))","v":0},{"$f":"IF($I$3=\"Deutsch\",$A269,IF($I$3=\"English\",$B269,IF($I$3=\"Français\",$C269,IF($I$3=\"Italiano\",$D269,IF($I$3=\"Nederlands\",$E269,\"\")))))","v":0},{"$f":"IF($I$3=\"Deutsch\",$A268,IF($I$3=\"English\",$B268,IF($I$3=\"Français\",$C268,IF($I$3=\"Italiano\",$D268,IF($I$3=\"Nederlands\",$E268,\"\")))))","v":0},null,null,null,null,null,null,null,null,null,null,null,null,null,null,null,null,null,null,null,null,null,null,null,null,null,null,null,null,null,null,null,null,null,null,null,null,null,null,null,null,null,null,null,null,null,null,null,null,null,null,null,null,null,null,null,null,null,null,null,null,null,null,null,null,null,null,null,null,null,null,null,null,null,null,null,null,null,null,null,null,null,null,null,null,null,null,null,null,null,null,null,null,null,null,null,null,null,null,null,null,null,null,null,null,null,null,null,null,null,null,null,null,null,null,null,null,null,null,null,"Montageform"]
[{"$f":"$I$380","v":"(A4) - EuroPZ, stehende Montage für die Panikstangenadaption"},"A4",2,2,null,3,1,0,null,{"$f":"HLOOKUP($I$3,$A$234:$G$348,64,FALSE)&\" (2)\"","v":"mit Schließzylinder-Öffnung (2)"},null,null,null,null,null,null,0,{"$f":"IF($I$3=\"Deutsch\",$A269,IF($I$3=\"English\",$B269,IF($I$3=\"Français\",$C269,IF($I$3=\"Italiano\",$D269,IF($I$3=\"Nederlands\",$E269,\"\")))))","v":0},{"$f":"IF($I$3=\"Deutsch\",$A274,IF($I$3=\"English\",$B274,IF($I$3=\"Français\",$C274,IF($I$3=\"Italiano\",$D274,IF($I$3=\"Nederlands\",$E274,\"\")))))","v":0},{"$f":"IF($I$3=\"Deutsch\",$A269,IF($I$3=\"English\",$B269,IF($I$3=\"Français\",$C269,IF($I$3=\"Italiano\",$D269,IF($I$3=\"Nederlands\",$E269,\"\")))))","v":0},null,{"$f":"IF($I$3=\"Deutsch\",$A269,IF($I$3=\"English\",$B269,IF($I$3=\"Français\",$C269,IF($I$3=\"Italiano\",$D269,IF($I$3=\"Nederlands\",$E269,\"\")))))","v":0},null,null,null,null,null,null,null,null,null,null,null,null,null,null,null,null,null,null,null,null,null,null,null,null,null,null,null,null,null,null,null,null,null,null,null,null,null,null,null,null,null,null,null,null,null,null,null,null,null,null,null,null,null,null,null,null,null,null,null,null,null,null,null,null,null,null,null,null,null,null,null,null,null,null,null,null,null,null,null,null,null,null,null,null,null,null,null,null,null,null,null,null,null,null,null,null,null,null,null,null,null,null,null,null,null,null,null,null,null,null,null,null,null,null,null,null,null,null,null,{"$f":"IF($I$3=\"Deutsch\",$A270,IF($I$3=\"English\",$B270,IF($I$3=\"Français\",$C270,IF($I$3=\"Italiano\",$D270,IF($I$3=\"Nederlands\",$E270,\"\")))))","v":0}]
[null,null,null,null,null,null,null,null,null,null,null,null,null,null,null,null,1,null,null,null,null,null,null,null,null,null,null,null,null,null,null,null,null,null,null,null,null,null,null,null,null,null,null,null,null,null,null,null,null,null,null,null,null,null,null,null,null,null,null,null,null,null,null,null,null,null,null,null,null,null,null,null,null,null,null,null,null,null,null,null,null,null,null,null,null,null,null,null,null,null,null,null,null,null,null,null,null,null,null,null,null,null,null,null,null,null,null,null,null,null,null,null,null,null,null,null,null,null,null,null,null,null,null,null,null,null,null,null,null,null,null,null,null,null,null,null,null,null,null,null,null,{"$f":"IF($I$3=\"Deutsch\",$A271,IF($I$3=\"English\",$B271,IF($I$3=\"Français\",$C271,IF($I$3=\"Italiano\",$D271,IF($I$3=\"Nederlands\",$E271,\"\")))))","v":0}]
[]
[]
[]
[]
[]
[]
[]
[null,null,null,null,null,null,null,null,null,null,"Option"]
[null,null,null,null,null,null,null,null,null,null,1,2,3,4,5,6,7]
[null,null,null,null,null,null,null,null,null,null,{"$f":"HLOOKUP($I$3,$A$234:$G$358,108,FALSE)","v":"nicht benötigt"},{"$f":"HLOOKUP($I$3,$A$234:$G$358,108,FALSE)","v":"nicht benötigt"},{"$f":"$J$340","v":"nicht verfügbar"},{"$f":"$J$340","v":"nicht verfügbar"},{"$f":"HLOOKUP($I$3,$A$234:$G$358,108,FALSE)","v":"nicht benötigt"},{"$f":"HLOOKUP($I$3,$A$234:$G$358,108,FALSE)","v":"nicht benötigt"},".DS"]
[null,null,null,null,null,null,null,null,null,null,".ZK",".ZK",null,null,".ZK",".ZK",".ZK.DS"]
[]
[]
[]
[]
[]
[null,null,null,null,"für Option","für Außendrücker","für Vierkant","für Türdicken",null,null,null,null,null,null,null,"Außendrücker",null,null,null,null,null,"Vierkant"]
["Zeile 17",null,{"$f":"VLOOKUP(E17,$A$44:$C$53,3,FALSE)","v":{"$error":"#N/A"}},{"$f":"VLOOKUP(E17,$A$44:$D$53,4,FALSE)","v":{"$error":"#N/A"}},{"$f":"VLOOKUP(M17,$K$85:$M$88,3,FALSE)+VLOOKUP(E17,$A$44:$H$53,8,FALSE)+$BC17","v":{"$error":"#N/A"}},{"$f":"VLOOKUP(E17,$A$44:$E$52,5,FALSE)+B158","v":{"$error":"#N/A"}},{"$f":"VLOOKUP(E17,$A$44:$F$53,6,FALSE)","v":{"$error":"#N/A"}},{"$f":"VLOOKUP(E17,$A$44:$G$53,7,FALSE)","v":{"$error":"#N/A"}},null,null,null,null,null,null,null,1,2,3,null,null,null,1,{"$f":"VLOOKUP(C7,O44:Q49,3,FALSE)+VLOOKUP(C8,O53:Q54,3,FALSE)","v":{"$error":"#N/A"}},null,null,null,null,null,null,null,null,null,null,null,null,null,null,null,null,null,null,null,null,null,null,null,null,null,null,null,null,null,null,null,null,null,null,null,null,null,null,null,null,null,null,null,null,null,null,null,null,null,null,null,null,null,null,null,null,null,null,null,null,null,null,null,null,null,null,null,null,null,null,null,null,null,null,null,null,null,null,null,null,null,null,null,null,null,null,null,null,null,null,null,null,null,null,null,null,null,null,null,null,null,null,null,null,null,null,null,null,null,null,null,null,null,null,null,null,2,3,"Zelle E8"]
["Zeile 18",null,{"$f":"VLOOKUP(E18,$A$44:$C$53,3,FALSE)","v":{"$error":"#N/A"}},{"$f":"VLOOKUP(E18,$A$44:$D$53,4,FALSE)","v":{"$error":"#N/A"}},{"$f":"VLOOKUP(M18,$K$85:$M$88,3,FALSE)+VLOOKUP(E18,$A$44:$H$53,8,FALSE)+$BC18","v":{"$error":"#N/A"}},{"$f":"VLOOKUP(E18,$A$44:$E$52,5,FALSE)","v":{"$error":"#N/A"}},{"$f":"VLOOKUP(E18,$A$44:$F$53,6,FALSE)","v":{"$error":"#N/A"}},{"$f":"VLOOKUP(E18,$A$44:$G$53,7,FALSE)","v":{"$error":"#N/A"}},null,null,null,null,null,null,null,{"$f":"HLOOKUP($I$3,$A$234:$G$348,71,FALSE)","v":"L-Form rund (A)"},{"$f":"I317","v":"U-Form rund und gekröpft (L)"},{"$f":"HLOOKUP($I$3,$A$234:$G$348,73,FALSE)","v":"U-Form rund (C)"},null,null,null,"07",null,null,null,null,null,null,null,null,null,null,null,null,null,null,null,null,null,null,null,null,null,null,null,null,null,null,null,null,null,null,null,null,null,null,null,null,null,null,null,null,null,null,null,null,null,null,null,null,null,null,null,null,null,null,null,null,null,null,null,null,null,null,null,null,null,null,null,null,null,null,null,null,null,null,null,null,null,null,null,null,null,null,null,null,null,null,null,null,null,null,null,null,null,null,null,null,null,null,null,null,null,null,null,null,null,null,null,null,null,null,null,null,null,null,null,null,null,"08","09"]
["Zeile 19",null,{"$error":"#N/A"},{"$error":"#N/A"},{"$error":"#N/A"},{"$error":"#N/A"},{"$error":"#N/A"},{"$error":"#N/A"},null,null,null,null,null,null,null,{"$f":"HLOOKUP($I$3,$A$234:$G$348,72,FALSE)","v":"L-Form Gehrung (B)"},null,{"$f":"HLOOKUP($I$3,$A$234:$G$348,74,FALSE)","v":"U-Form Gehrung (D)"},null,null,null,"08",null,null,null,null,null,null,null,null,null,null,null,null,null,null,null,null,null,null,null,null,null,null,null,null,null,null,null,null,null,null,null,null,null,null,null,null,null,null,null,null,null,null,null,null,null,null,null,null,null,null,null,null,null,null,null,null,null,null,null,null,null,null,null,null,null,null,null,null,null,null,null,null,null,null,null,null,null,null,null,null,null,null,null,null,null,null,null,null,null,null,null,null,null,null,null,null,null,null,null,null,null,null,null,null,null,null,null,null,null,null,null,null,null,null,null,null,null,"09"]
["Zeile 20",null,{"$error":"#N/A"},{"$error":"#N/A"},{"$error":"#N/A"},{"$error":"#N/A"},{"$error":"#N/A"},{"$error":"#N/A"},null,null,null,null,null,null,null,{"$f":"HLOOKUP($I$3,$A$234:$G$348,73,FALSE)","v":"U-Form rund (C)"},null,{"$f":"I317","v":"U-Form rund und gekröpft (L)"},null,null,null,"09"]
["Zeile 21",null,{"$error":"#N/A"},{"$error":"#N/A"},{"$error":"#N/A"},{"$error":"#N/A"},{"$error":"#N/A"},{"$error":"#N/A"},null,null,null,null,null,null,null,{"$f":"HLOOKUP($I$3,$A$234:$G$348,74,FALSE)","v":"U-Form Gehrung (D)"},null,null,null,null,null,10]
["Zeile 22",null,{"$error":"#N/A"},{"$error":"#N/A"},{"$error":"#N/A"},{"$error":"#N/A"},{"$error":"#N/A"},{"$error":"#N/A"},null,null,null,null,null,null,null,{"$f":"I317","v":"U-Form rund und gekröpft (L)"}]
["Zeile 23",null,{"$error":"#N/A"},{"$error":"#N/A"},{"$error":"#N/A"},{"$error":"#N/A"},{"$error":"#N/A"},{"$error":"#N/A"},null,null,null,null,null,null,null,{"$f":"HLOOKUP($I$3,$A$234:$G$348,75,FALSE)","v":"Ohne Drücker (0)"}]
["Zeile 24",null,{"$error":"#N/A"},{"$error":"#N/A"},{"$error":"#N/A"},{"$error":"#N/A"},{"$error":"#N/A"},{"$error":"#N/A"}]
[]
[]
[]
[]
["Türdicke in mm","S / M / L",null,"Vierkant",null,null,null,"Drücker außen / innen",null,null,"Lesetechnik",null,null,null,"Version",null,"für Lesetechnik","für Optionen","Lesetechnik",null,null,"für Lesetechnik"]
["38-60 mm (S)","S",null,"07",null,null,null,{"$f":"HLOOKUP($I$3,$A$234:$G$348,71,FALSE)","v":"L-Form rund (A)"},"A",null,{"$f":"HLOOKUP($I$3,$A$234:$G$348,80,FALSE)","v":"Aktiv (A)"},"A",1,null,0,"eingekuppelt",1,1,0,"ohne Elektronik",null,0]
["59-80 mm (M)","M",null,"08",null,null,null,{"$f":"HLOOKUP($I$3,$A$234:$G$348,72,FALSE)","v":"L-Form Gehrung (B)"},"B",null,{"$f":"HLOOKUP($I$3,$A$234:$G$348,81,FALSE)","v":"Mifare (M)"},"M",5,null,1,"einseitig lesend",2,2,1,"aktiv",null,0]
["79-100 mm (L)","L",null,"09",null,null,null,{"$f":"HLOOKUP($I$3,$A$234:$G$348,73,FALSE)","v":"U-Form rund (C)"},"C",null,{"$f":"HLOOKUP($I$3,$A$234:$G$348,82,FALSE)","v":"Hybrid (AM)"},"AM",1,null,2,"einseitig lesend /DM",null,2,2,"Hybrid Mifare",null,0]
["100-200 mm (X)","X",null,10,null,null,null,{"$f":"HLOOKUP($I$3,$A$234:$G$348,74,FALSE)","v":"U-Form Gehrung (D)"},"D",null,{"$f":"HLOOKUP($I$3,$A$234:$G$348,83,FALSE)","v":"dauereingekuppelt / ohne Elektronik (0)"},0,3,null,3,"einseitig lesend /DM S",null,2,3,"Mifare"]
["38-57 mm (S)","S","für Rohrrahmen (A3)",null,null,null,null,{"$f":"I317","v":"U-Form rund und gekröpft (L)"},"L",null,null,null,null,null,4,"einseitig lesend /DND",null,2,4,"Legic"]
["58-77 mm (M)","M","für Rohrrahmen (A3)",null,null,null,null,{"$f":"HLOOKUP($I$3,$A$234:$G$348,75,FALSE)","v":"Ohne Drücker (0)"},0,null,null,null,null,null,5,"beidseitig lesend /DM",null,2,"A","Mifare NW"]
["78-97 mm (L)","L","für Rohrrahmen (A3)",null,null,null,null,{"$f":"$J$340","v":"nicht verfügbar"},0,null,null,null,null,null,6,"beidseitig lesend /DM S",null,2,"B","Legic NW"]
["97-196 mm (X)","X","für Rohrrahmen (A3)",null,null,null,null,null,null,null,null,null,null,null,7,"beidseitig lesend /DND",null,2]
[]
[]
[null,null,null,null,null,null,null,null,null,null,null,null,null,null,null,null,"für Lesetechnik","für Optionen",null,"für Lesetechnik",null,null,null,"für Optionen"]
["Oberfläche",null,null,"Option",null,null,null,"Außen-/Innenrosette",null,null,null,null,null,null,"Zeile 17",null,{"$f":"VLOOKUP(#REF!,$O$85:$Q$92,3,FALSE)+VLOOKUP(M17,$S$85:$V$91,3,FALSE)","v":{"$error":"#REF!"}},{"$f":"VLOOKUP(#REF!,$O$85:$R$92,4,FALSE)","v":{"$error":"#REF!"}},null,1,null,2,null,1,2]
[{"$f":"HLOOKUP($I$3,$A$234:$G$348,78,FALSE)&\" (1)\"","v":"silber / schwarzgrau (1)"},1,null,{"$f":"HLOOKUP($I$3,$A$234:$G$358,108,FALSE)","v":"nicht benötigt"},null,null,null,{"$f":"HLOOKUP($I$3,$A$234:$G$348,62,FALSE)&\" (0)\"","v":"ohne Rosette (0)"},0,null,null,null,null,null,"Zeile 18",null,{"$f":"VLOOKUP(#REF!,$O$85:$Q$92,3,FALSE)+VLOOKUP(M18,$S$85:$V$91,3,FALSE)","v":{"$error":"#REF!"}},{"$f":"VLOOKUP(#REF!,$O$85:$R$92,4,FALSE)","v":{"$error":"#REF!"}},null,0,null,1,null,{"$f":"J340","v":"nicht verfügbar"},{"$f":"J341","v":"nicht benötigt"}]
[{"$f":"HLOOKUP($I$3,$A$234:$G$348,79,FALSE)&\" (2)\"","v":"silber / weiß (2)"},2,null,".ZK",{"$f":"HLOOKUP($I$3,$A$234:$G$286,53,FALSE)","v":", mit ZK"},null,null,{"$f":"HLOOKUP($I$3,$A$234:$G$348,63,FALSE)&\" (1)\"","v":"ohne Schließzylinder-Öffnung (1)"},1,null,null,null,null,null,"Zeile 19",null,{"$f":"VLOOKUP(#REF!,$O$85:$Q$92,3,FALSE)+VLOOKUP(M19,$S$85:$V$91,3,FALSE)","v":{"$error":"#REF!"}},{"$f":"VLOOKUP(#REF!,$O$85:$R$92,4,FALSE)","v":{"$error":"#REF!"}},null,null,null,2,null,null,"ZK"]
[{"$f":"I362&\" (7)\"","v":"Messing / weiß (7)"},7,null,".FH",{"$f":"HLOOKUP($I$3,$A$234:$G$348,76,FALSE)","v":", zugelassen für FH-Türen"},null,null,{"$f":"HLOOKUP($I$3,$A$234:$G$348,64,FALSE)&\" (2)\"","v":"mit Schließzylinder-Öffnung (2)"},2,null,null,null,null,null,"Zeile 20",null,{"$f":"VLOOKUP(#REF!,$O$85:$Q$92,3,FALSE)+VLOOKUP(M20,$S$85:$V$91,3,FALSE)","v":{"$error":"#REF!"}},{"$f":"VLOOKUP(#REF!,$O$85:$R$92,4,FALSE)","v":{"$error":"#REF!"}}]
[null,null,null,".ZK.FH",{"$f":"E98&E99","v":", mit ZK, zugelassen für FH-Türen"},null,null,{"$f":"J340","v":"nicht verfügbar"},0,null,null,null,null,null,"Zeile 21",null,{"$f":"VLOOKUP(#REF!,$O$85:$Q$92,3,FALSE)+VLOOKUP(M21,$S$85:$V$91,3,FALSE)","v":{"$error":"#REF!"}},{"$f":"VLOOKUP(#REF!,$O$85:$R$92,4,FALSE)","v":{"$error":"#REF!"}}]
[null,null,null,{"$f":"J340","v":"nicht verfügbar"},null,null,null,null,null,null,null,null,null,null,"Zeile 22",null,{"$f":"VLOOKUP(#REF!,$O$85:$Q$92,3,FALSE)+VLOOKUP(M22,$S$85:$V$91,3,FALSE)","v":{"$error":"#REF!"}},{"$f":"VLOOKUP(#REF!,$O$85:$R$92,4,FALSE)","v":{"$error":"#REF!"}}]
[null,null,null,".DS",{"$f":"I390","v":"beidseitig lesend"},null,null,null,null,null,null,null,null,null,"Zeile 23",null,{"$f":"VLOOKUP(#REF!,$O$85:$Q$92,3,FALSE)+VLOOKUP(M23,$S$85:$V$91,3,FALSE)","v":{"$error":"#REF!"}},{"$f":"VLOOKUP(#REF!,$O$85:$R$92,4,FALSE)","v":{"$error":"#REF!"}}]
[null,null,null,".ZK.DS",{"$f":"I389","v":"mit ZK, beidseitig lesend"},null,null,null,null,null,null,null,null,null,"Zeile 24",null,{"$f":"VLOOKUP(#REF!,$O$85:$Q$92,3,FALSE)+VLOOKUP(M24,$S$85:$V$91,3,FALSE)","v":{"$error":"#REF!"}},{"$f":"VLOOKUP(#REF!,$O$85:$R$92,4,FALSE)","v":{"$error":"#REF!"}}]
[]
[]
[]
[]
[]
[]
[]
["Profil",null,"Bildansicht außen","Bildansicht innen",null,null,null,"für Variantencode aus Profil/Montageform/MO"]
[{"$f":"$I$260","v":"(A0) - Europrofil\n- stehende Montage"},null,1,1,null,null,null,1,2,3,4,5,6,7,8,9,10,11,12,13,null,14,15,16,17,18,19,20,21,22,23,null,24,25,26]
[{"$f":"$I$299","v":"(A1) - Europrofil\n- hängende Montage [70-79 mm]"},null,4,1,null,null,null,"A0","A1","A2","E0","E1"]
[{"$f":"$I$300","v":"(A2) - Europrofil\n- hängende Montage [70-110 mm]"},null,11,1]
[{"$f":"$I$267","v":"(A3) - Europrofil\n- stehende Montage für Rohrramen"},null,12,10]
[{"$f":"$I$302","v":"(E0) - Scandinavian Oval\n- ohne Schließzylinder-Öffnung / stehende Montage"},null,5,4]
[{"$f":"$I$303","v":"(E1) - Scandinavian Oval\n- mit Schließzylinder-Öffnung / stehende Montage"},null,6,4]
[{"$f":"$J$348","v":"(B0) - Swiss Round\n- stehende Montage"},null,7,7]
[{"$f":"$J$349","v":"(B1) - Swiss Round\n- hängende Montage [70-79 mm]"},null,4,7]
[{"$f":"$J$350","v":"(B2) - Swiss Round\n- hängende Montage [70-110 mm]"},null,11,7]
[]
[]
["außen"]
[{"$f":"HLOOKUP($I$3,$A$234:$G$348,62,FALSE)&\" (0)\"","v":"ohne Rosette (0)"},null,0]
[{"$f":"HLOOKUP($I$3,$A$234:$G$348,63,FALSE)&\" (1)\"","v":"ohne Schließzylinder-Öffnung (1)"},null,1]
[{"$f":"HLOOKUP($I$3,$A$234:$G$348,64,FALSE)&\" (2)\"","v":"mit Schließzylinder-Öffnung (2)"},null,2]
[]
[null,null,null,null,"für Beschriftung unter Bild"]
[null,"Bildansicht außen",{"$f":"VLOOKUP(C7,A112:C120,3,FALSE)+VLOOKUP(C8,A124:C126,3,FALSE)","v":{"$error":"#N/A"}},{"$f":"IF(ISERROR(C129),\"XXX\",\"A\"&C129&\"_\")","v":"XXX"},{"$f":"IF($C$129=4,$I$355,IF($C$129=11,$I$356,\"\"))","v":{"$error":"#N/A"}}]
[null,"Bildansicht innen",{"$f":"VLOOKUP(C7,A112:D120,4,FALSE)+VLOOKUP(C9,A124:C126,3,FALSE)","v":{"$error":"#N/A"}},{"$f":"IF(ISERROR(C130),\"XXX\",\"I\"&C130&\"_\")","v":"XXX"}]
[]
[]
[null,null,null,null,null,null,null,"für Variantencode aus Profil/Montageform/MO --> zur Ansicht der Zeichnungen"]
[null,null,null,null,null,null,null,1,2,3,4,5,6,7,8,9,10,11,12,13,14,15,16,17,18,19,null,20,21,22,23,null,24,25,26,"XXX"]
[null,null,"für Variantencode aus Profil/Montageform/MO",null,null,null,null,"A0","A1_","A2_","B0","B1_","B2_","C0","_C1","CX","D0","D1_","DX","E0","E1_","E2_","F0","F1","G0","G1",null,"G2","H0","H1","H2",null,"I0","I1","I2","\"SV-Logo\""]
["Zeile 17",null,null,{"$f":"IF(ISERROR(C136),\"\",CHOOSE(C136,$H$113,$I$113,$J$113,$K$113,$L$113))","v":{"$error":"#VALUE!"}}]
["Zeile 18",null,null,{"$f":"IF(ISERROR(C137),\"\",CHOOSE(C137,$H$113,$I$113,$J$113,$K$113,$L$113))","v":{"$error":"#VALUE!"}}]
["Zeile 19",null,null,{"$error":"#VALUE!"}]
["Zeile 20",null,null,{"$error":"#VALUE!"},null,null,"für Zeichnung (E8)"]
["Zeile 21",null,null,{"$error":"#VALUE!"},null,"Profil",{"$f":"VLOOKUP(C7,A44:B52,2,FALSE)","v":{"$error":"#N/A"}},{"$f":"IF(OR(C7=\"\",C8=\"\",C9=\"\"),\"XXX\",CHOOSE(G140,H135,I135,J135,K135,L135,M135,N135,O135,P135,Q135,R135,S135,T135,U135,V135,AJ135))","v":"XXX"}]
["Zeile 22",null,null,{"$error":"#VALUE!"},null,"Außenrosette"]
["Zeile 23",null,null,{"$error":"#VALUE!"},null,"Innenrosette"]
["Zeile 24",null,null,{"$error":"#VALUE!"}]
[]
[null,null,null,null,"FH (Abhängigkeit Drücker)"]
["für (Brand-)Schutz"]
[null,null,null,null,"außen ohne FH","außen mit FH","innen ohne FH ausser A3","innen mit FH ausser A3","innen ohne FH für A3","innen mit FH für A3","innen mit FH für A4"]
[{"$f":"HLOOKUP($I$3,$A$234:$G$358,108,FALSE)","v":"nicht benötigt"},1,1,null,1,2,3,4,5,6,7]
[{"$f":"I382","v":"zugelassen für FH Türen"},2,2,".FH",{"$f":"HLOOKUP($I$3,$A$234:$G$348,71,FALSE)","v":"L-Form rund (A)"},{"$f":"HLOOKUP($I$3,$A$234:$G$348,73,FALSE)","v":"U-Form rund (C)"},{"$f":"HLOOKUP($I$3,$A$234:$G$348,71,FALSE)","v":"L-Form rund (A)"},{"$f":"HLOOKUP($I$3,$A$234:$G$348,73,FALSE)","v":"U-Form rund (C)"},{"$f":"I317","v":"U-Form rund und gekröpft (L)"},{"$f":"I317","v":"U-Form rund und gekröpft (L)"},{"$f":"HLOOKUP($I$3,$A$234:$G$348,75,FALSE)","v":"Ohne Drücker (0)"}]
["PAS24",3,1,".PAS",{"$f":"HLOOKUP($I$3,$A$234:$G$348,72,FALSE)","v":"L-Form Gehrung (B)"},{"$f":"HLOOKUP($I$3,$A$234:$G$348,74,FALSE)","v":"U-Form Gehrung (D)"},{"$f":"HLOOKUP($I$3,$A$234:$G$348,72,FALSE)","v":"L-Form Gehrung (B)"},{"$f":"HLOOKUP($I$3,$A$234:$G$348,74,FALSE)","v":"U-Form Gehrung (D)"}]
[{"$f":"I382&\" & PAS24\"","v":"zugelassen für FH Türen & PAS24"},3,2,".FH.PAS",{"$f":"HLOOKUP($I$3,$A$234:$G$348,73,FALSE)","v":"U-Form rund (C)"},{"$f":"I317","v":"U-Form rund und gekröpft (L)"},{"$f":"HLOOKUP($I$3,$A$234:$G$348,73,FALSE)","v":"U-Form rund (C)"}]
[{"$f":"J340","v":"nicht verfügbar"},1,1,null,{"$f":"HLOOKUP($I$3,$A$234:$G$348,74,FALSE)","v":"U-Form Gehrung (D)"},null,{"$f":"HLOOKUP($I$3,$A$234:$G$348,74,FALSE)","v":"U-Form Gehrung (D)"}]
[null,null,null,null,{"$f":"I317","v":"U-Form rund und gekröpft (L)"},null,{"$f":"HLOOKUP($I$3,$A$234:$G$348,75,FALSE)","v":"Ohne Drücker (0)"}]
[null,null,null,null,{"$f":"HLOOKUP($I$3,$A$234:$G$348,75,FALSE)","v":"Ohne Drücker (0)"}]
[]
[]
[null,"Profile","Drücker aussen","Drücker innen","Drücker innen Panik","PAS24 (Abhängigkeit zu Profil)",null,null,null,null,null,null,null,"A0",{"$f":"$A$112","v":"(A0) - Europrofil\n- stehende Montage"}]
["Zeile 17",{"$f":"VLOOKUP(D17,$A$148:$B$151,2,FALSE)+IF(C17<>\"\",VLOOKUP(C17,$B$186:$E$193,3,FALSE),0)","v":{"$error":"#N/A"}},{"$f":"VLOOKUP(D17,$A$148:$C$152,3,FALSE)+VLOOKUP(E17,$A$170:$C$179,3,FALSE)","v":{"$error":"#N/A"}},{"$f":"VLOOKUP(D17,$A$148:$C$152,3,FALSE)+VLOOKUP(E17,$A$170:$D$179,4,FALSE)","v":{"$error":"#N/A"}},{"$f":"IF(B186<>\"\",1,\"\")","v":""},1,2,3,4,null,null,null,null,"A1",{"$f":"$A$113","v":"(A1) - Europrofil\n- hängende Montage [70-79 mm]"}]
["Zeile 18",{"$f":"VLOOKUP(D18,$A$148:$B$151,2,FALSE)+IF(C18<>\"\",VLOOKUP(C18,$B$186:$E$193,3,FALSE),0)","v":{"$error":"#N/A"}},{"$f":"VLOOKUP(D18,$A$148:$C$152,3,FALSE)+VLOOKUP(E18,$A$170:$C$179,3,FALSE)","v":{"$error":"#N/A"}},{"$f":"VLOOKUP(D18,$A$148:$C$152,3,FALSE)+VLOOKUP(E18,$A$170:$D$179,4,FALSE)","v":{"$error":"#N/A"}},{"$f":"IF(B187<>\"\",1,\"\")","v":""},{"$f":"$I$260","v":"(A0) - Europrofil\n- stehende Montage"},{"$f":"$I$260","v":"(A0) - Europrofil\n- stehende Montage"},{"$f":"$I$299","v":"(A1) - Europrofil\n- hängende Montage [70-79 mm]"},{"$f":"$I$380","v":"(A4) - EuroPZ, stehende Montage für die Panikstangenadaption"},null,null,null,null,"A2",{"$f":"$A$114","v":"(A2) - Europrofil\n- hängende Montage [70-110 mm]"}]
["Zeile 19",{"$error":"#N/A"},{"$error":"#N/A"},{"$error":"#N/A"},"",{"$f":"$I$299","v":"(A1) - Europrofil\n- hängende Montage [70-79 mm]"},{"$f":"$I$299","v":"(A1) - Europrofil\n- hängende Montage [70-79 mm]"},{"$f":"$I$300","v":"(A2) - Europrofil\n- hängende Montage [70-110 mm]"},null,null,null,null,null,"A3",{"$f":"$A$115","v":"(A3) - Europrofil\n- stehende Montage für Rohrramen"}]
["Zeile 20",{"$error":"#N/A"},{"$error":"#N/A"},{"$error":"#N/A"},"",{"$f":"$I$300","v":"(A2) - Europrofil\n- hängende Montage [70-110 mm]"},{"$f":"$I$300","v":"(A2) - Europrofil\n- hängende Montage [70-110 mm]"},null,null,null,null,null,null,"B0",{"$f":"$J$348","v":"(B0) - Swiss Round\n- stehende Montage"}]
["Zeile 21",{"$error":"#N/A"},{"$error":"#N/A"},{"$error":"#N/A"},"",{"$f":"$I$267","v":"(A3) - Europrofil\n- stehende Montage für Rohrramen"},{"$f":"$I$267","v":"(A3) - Europrofil\n- stehende Montage für Rohrramen"},null,null,null,null,null,null,"B1",{"$f":"$J$349","v":"(B1) - Swiss Round\n- hängende Montage [70-79 mm]"}]
["Zeile 22",{"$error":"#N/A"},{"$error":"#N/A"},{"$error":"#N/A"},"",{"$f":"$I$302","v":"(E0) - Scandinavian Oval\n- ohne Schließzylinder-Öffnung / stehende Montage"},{"$f":"$I$302","v":"(E0) - Scandinavian Oval\n- ohne Schließzylinder-Öffnung / stehende Montage"},null,null,null,null,null,null,"B2",{"$f":"$J$350","v":"(B2) - Swiss Round\n- hängende Montage [70-110 mm]"}]
["Zeile 23",{"$error":"#N/A"},{"$error":"#N/A"},{"$error":"#N/A"},"",{"$f":"$I$303","v":"(E1) - Scandinavian Oval\n- mit Schließzylinder-Öffnung / stehende Montage"},{"$f":"$I$303","v":"(E1) - Scandinavian Oval\n- mit Schließzylinder-Öffnung / stehende Montage"},null,null,null,null,null,null,"C0",null,null,null,null,"Türdicke in mm","S / M / L"]
["Zeile 24",{"$error":"#N/A"},{"$error":"#N/A"},{"$error":"#N/A"},"",{"$f":"$J$348","v":"(B0) - Swiss Round\n- stehende Montage"},{"$f":"$J$348","v":"(B0) - Swiss Round\n- stehende Montage"},null,null,null,null,null,null,"C1",null,null,null,"Zeile 17",{"$f":"IF(K17<>\"\",K17,\"\")","v":""},{"$f":"VLOOKUP(S165,A85:B88,2,FALSE)","v":{"$error":"#N/A"}}]
[null,null,null,null,null,{"$f":"$J$349","v":"(B1) - Swiss Round\n- hängende Montage [70-79 mm]"},{"$f":"$J$349","v":"(B1) - Swiss Round\n- hängende Montage [70-79 mm]"},null,null,null,null,null,null,"CX",null,null,null,"Zeile 18","",null,{"$f":"IF(S166=\"\",\"\",IF(AND(S166>=38,S166<=59),\"S\",IF(AND(S166>=60,S166<=79),\"M\",IF(AND(S166>=80,S166<=100),\"L\",$J$340))))","v":""}]
[null,null,null,null,null,{"$f":"$J$350","v":"(B2) - Swiss Round\n- hängende Montage [70-110 mm]"},{"$f":"$J$350","v":"(B2) - Swiss Round\n- hängende Montage [70-110 mm]"},null,null,null,null,null,null,"D0",null,null,null,"Zeile 19","",null,""]
[null,null,null,null,null,null,null,null,null,null,null,null,null,"D1",null,null,null,"Zeile 20","",null,""]
[null,null,null,"Drücker innen",null,null,null,null,null,null,null,null,null,"DX",null,null,null,"Zeile 21","",null,""]
[{"$f":"$I$260","v":"(A0) - Europrofil\n- stehende Montage"},null,0,2,null,null,null,null,null,null,null,null,null,"E0",{"$f":"$A$117","v":"(E1) - Scandinavian Oval\n- mit Schließzylinder-Öffnung / stehende Montage"},null,null,"Zeile 22","",null,""]
[{"$f":"$I$299","v":"(A1) - Europrofil\n- hängende Montage [70-79 mm]"},null,0,2,null,null,null,null,null,null,null,null,null,"E1",{"$f":"$A$116","v":"(E0) - Scandinavian Oval\n- ohne Schließzylinder-Öffnung / stehende Montage"},null,null,"Zeile 23","",null,""]
[{"$f":"$I$300","v":"(A2) - Europrofil\n- hängende Montage [70-110 mm]"},null,0,2,null,null,null,null,null,null,null,null,null,"E2",null,null,null,"Zeile 24","",null,""]
[{"$f":"$I$267","v":"(A3) - Europrofil\n- stehende Montage für Rohrramen"},null,0,4,null,null,null,null,null,null,null,null,null,"F0"]
[{"$f":"$I$302","v":"(E0) - Scandinavian Oval\n- ohne Schließzylinder-Öffnung / stehende Montage"},null,0,2,null,null,null,null,null,null,null,null,null,"F1"]
[{"$f":"$I$303","v":"(E1) - Scandinavian Oval\n- mit Schließzylinder-Öffnung / stehende Montage"},null,0,2,null,null,null,null,null,null,null,null,null,"G0"]
[{"$f":"$J$348","v":"(B0) - Swiss Round\n- stehende Montage"},null,0,2,null,null,null,null,null,null,null,null,null,"G1"]
[{"$f":"$J$349","v":"(B1) - Swiss Round\n- hängende Montage [70-79 mm]"},null,0,2,null,null,null,null,null,null,null,null,null,"G2"]
[{"$f":"$J$350","v":"(B2) - Swiss Round\n- hängende Montage [70-110 mm]"},null,0,2,null,null,null,null,null,null,null,null,null,"H0"]
[{"$f":"$I$380","v":"(A4) - EuroPZ, stehende Montage für die Panikstangenadaption"},null,0,5,null,null,null,null,null,null,null,null,null,"H1"]
[null,null,null,null,null,null,null,null,null,null,null,null,null,"H2"]
[null,null,null,null,null,null,null,null,null,null,null,null,null,"I0"]
[null,null,null,null,null,null,null,null,null,null,null,null,null,"I1"]
[null,null,null,null,null,null,null,null,null,null,null,null,null,"I2"]
[null,null,null,null,null,null,null,null,null,null,null,null,null,"A4",{"$f":"$I$380","v":"(A4) - EuroPZ, stehende Montage für die Panikstangenadaption"}]
[null,"Panikstangenbefestigung","Eintrag Spalte C","Auswahl für Brandschutz-Fluchttüren",null,"für Außen-/Innenrosette"]
["Zeile 17",null,{"$f":"IF(B186<>\"\",VLOOKUP(B186,$J$186:$K$188,2,FALSE),\"\")","v":""},{"$f":"IF(C186=\"\",1,2)","v":1},{"$f":"IF(C186=\"\",0,2)","v":0},{"$f":"IF(OR(C186=1,C186=2,),1,IF(C186=11,2,0))","v":0},null,null,null,{"$f":"HLOOKUP($I$3,$A$234:$G$377,142,FALSE)","v":"BKS Vollblatttür, ohne Schild, 92 mm"},1]
["Zeile 18",null,{"$f":"IF(B187<>\"\",VLOOKUP(B187,$J$186:$K$188,2,FALSE),\"\")","v":""},{"$f":"IF(C187=\"\",1,2)","v":1},{"$f":"IF(C187=\"\",0,2)","v":0},{"$f":"IF(OR(C187=1,C187=2,),1,IF(C187=11,2,0))","v":0},null,null,null,{"$f":"HLOOKUP($I$3,$A$234:$G$377,143,FALSE)","v":"BKS Vollblatttür, ohne Schild, 72 mm"},2]
["Zeile 19",null,"",1,0,0,null,null,null,{"$f":"HLOOKUP($I$3,$A$234:$G$377,144,FALSE)","v":"CISA Vollblatttür (immer mit Schild und 72 mm)"},11]
["Zeile 20",null,"",1,0,0]
["Zeile 21",null,"",1,0,0]
["Zeile 22",null,"",1,0,0]
["Zeile 23",null,"",1,0,0]
["Zeile 24",null,"",1,0,0]
[]
[]
[]
[null,null,1,2]
[null,null,{"$f":"HLOOKUP($I$3,$A$234:$G$358,108,FALSE)","v":"nicht benötigt"},{"$f":"I382","v":"zugelassen für FH Türen"}]
[null,null,{"$f":"I382","v":"zugelassen für FH Türen"}]
[null,null,"PAS24"]
[null,null,{"$f":"I382&\" & PAS24\"","v":"zugelassen für FH Türen & PAS24"}]
[]
[]
[]
[null,null,{"$f":"HLOOKUP($I$3,$A$234:$G$358,108,FALSE)","v":"nicht benötigt"},1]
[null,null,{"$f":"I382","v":"zugelassen für FH Türen"},0]
[null,null,"PAS24",0]
[null,null,{"$f":"I382&\" & PAS24\"","v":"zugelassen für FH Türen & PAS24"},0]
[]
[null,null,null,null,null,null,null,null,null,null,"A = L-shape curved\nB = L-shape mitre\nC = U-shape curved\nD = U-shape mitre","A = forme en L arrondie\nB =  forme en L rectangulaire\nC = forme en U arrondie\nD = forme en U rectangulaire","A = forma a L curvata tondeggiante\nB = forma a L piegata ad angolo retto\nC = forma a U curvata tondeggiante\nD = forma a U piegata ad angolo retto","A = L-vorm rond gebogen\nB =  L-vorm verstek\nC = U-vorm rond gebogen\nD = U-vorm verstek"]
[]
[]
[]
[]
[]
[]
[]
[]
[]
[]
[]
[]
[]
[]
[]
[]
[]
[]
[]
[]
[]
[]
[]
["Deutsch","English","Français","Italiano","Nederlands","Dansk","Svenska",null,{"$f":"HLOOKUP($I$3,A234:G282,1,FALSE)","v":"Deutsch"},null,1]
["Bestellhilfe Digitales SmartHandle - AX","Ordering Guide Digital SmartHandle - AX","Guide de commande pour plaques béquilles - AX","Guida all'ordinazione di Smart Handle - AX","Bestelhulp Digitale SmartHandle - AX","Hjælp til bestilling af Digitalt SmartHandle - AX","Beställningsguide Digitalt SmartHandle - AX",null,null,null,2]
["*** Bitte Makros aktivieren ***","*** Please enable macros ***","*** S'il vous plaît activer les macros ***","*** Si prega di abilitare le macro ***","*** Macro’s inschakelen ***","*** aktiver makros ***","*** Du måste aktivera makron ***",{"$f":"HLOOKUP('Hauptseite - main page'!G3,'Bestellhilfe - ordering guide'!A234:G236,3,FALSE)","v":"*** Bitte Makros aktivieren ***"},null,null,3]
["Drückervariante auswählen","select handle variant","Variantes poignée ","Variante maniglia","Deurkruk variant","Vælg håndtagsvarianter","Välj handtagsvariant",null,null,null,4]
["Kundennummer","Customer No.","Numéro de client","Cliente numero","Klantnr.","Kundenummer","Kundnummer",null,null,null,5]
["Kundenname","Customer Name","Nom du client","Nome cliente","Klant naam","Kundenavn","Kundnamn",null,null,null,6]
["Projekt-Nr.  ","Project No.","Numéro de projet","Progetto numero","Projectnr.","Projekt-nr.  ","Projektnr  ",null,null,null,7]
["Projekt-Name  ","Project Name","Nom du projet","Nome progetto","Project naam","Projekt-navn  ","Projektnamn  ",null,null,null,8]
["Anlage zu Bestellnummer  ","Attachment to Order No.","Pièce(s) jointe(s) à la commande","Allegato all'ordine","Bijlage bij ordernr.","Bilag til bestilling  ","Bilaga till beställningsnummer  ",null,null,null,9]
["Anzahl","Quantity","Quantité","Quantità","Aantal","Antal","Antal",null,null,null,10]
["Produktname","product name","Nom du produit","Nome prodotto","Productnaam","Produktnavn","Produktnamn",null,null,null,11]
["Profil","Profile","Profil","Codice del profilo","Profiel","Profil","Profil",null,null,null,12]
["SmartHandle Version","SmartHandle Version","Version de la SmartHandle","Versione SmartHandle","SmartHandle versie","SmartHandle version","SmartHandle-version",null,null,null,13]
["Außenrosette","rosette on the outside","Rosace extérieure","Rondella esterna","Buitenrozet","Udvendig roset","Täckbricka utsida",null,{"$f":"HLOOKUP($I$3,$A$234:$G$282,14,FALSE)","v":"Außenrosette"},null,14]
["Türdicke (mm)","Door Thickness (mm)","Epaisseur de porte (mm)","Spessore porta (mm)","Deurdikte (mm)","Dørtykkelse (mm)","Dörrtjocklek (mm)",null,null,null,15]
["Vierkant (mm)","Spindle Square (mm)","Carré (mm)","Quadro maniglia (mm)","Vierkant stift (mm)","Firkant (mm)","Fyrkant (mm)",null,null,null,16]
["Entfernung","Centre Distance","Distance","Interasse","H.O.H. maat","Afstand","Avstånd",null,null,null,17]
["Version","Version","Version","Versione","Versie","Version","Version",null,null,null,18]
["Drücker außen","Handle Variants Outside","Variantes de la béquille extérieure","Maniglia esterna","Deurkruk type Buiten","Udvendigt håndtag","Handtag utsida",null,null,null,19]
["Drücker innen","Handle Variants Inside","Variantes de la béquille intérieure","Maniglia interna","Deurkruk type Binnen","Indvendigt håndtag","Handtag insida",null,null,null,20]
["Oberfläche","Surface Finish","Finition de la surface:","Superficie","Afwerking","Overflade","Yta",null,null,null,21]
["Lesetechnik","Reading Technology","Technique de lecture","Tecnologia di lettura","Leestechniek","Læseteknik","Lästeknik",null,null,null,22]
["Optionen","Options","Options","Opzioni","Opties","Optioner","Alternativ",null,null,null,23]
["kpl. Artikelnummer","Complete Part Number","Code article complet","Numero articolo completo","Complete onderdeel nummer","Kompl. varenummer","Kompl. artikelnummer",null,null,null,24]
["Artikelnummer korrekt?","part numer correct?","Code article correct?","Numero articolo giusto?","onderdeel nummer juist?","Korrekt varenummer?","Är artikelnumret riktigt?",null,null,null,25,null,null," "]
[" (*) Zusatz-\nInformation"," (*) additional\ninformation","(*) informations\ncomplémentaires "," (*) Informazioni\naggiuntive","(*) Extra\ninformatie ","(*) Yderlige informationer ","(*) Extra\ninformation ",null,{"$f":"HLOOKUP($I$3,$A$234:$G$282,26,FALSE)","v":" (*) Zusatz-\nInformation"},null,26]
["(A0) - Europrofil\n- stehende Montage","(A0) Europrofile\n- upright mounting","(A0) - profil européen\n- montage debout","(A0) - Profilo europeo montaggio verso l'alto",{"$f":"\"(A0) - Europrofiel\"&CHAR(10)&\"staande montage\"","v":"(A0) - Europrofiel\nstaande montage"},"(A0) - Europrofil\n- stående Montage","(A0) - Europrofil\n- stående montering",null,{"$f":"HLOOKUP($I$3,A234:G283,27,FALSE)","v":"(A0) - Europrofil\n- stehende Montage"},null,27]
[null,null,null,null,null,null,null,null,null,null,28]
["British Oval ohne Lochung für Profilzylinder","British Oval without MO","ovale britannique sans VM (SHA) (*)","British Oval senza MO (SHA) (*)","British Oval zonder MO (SHA) (*)","Britisk Oval uden udstansning til profilcylinder","British Oval utan hål för profilcylinder",null,null,null,29]
["Europrofil mit Lochung für Profilzylinder MO (SHC) ","Europrofile with MO","profil européen avec VM (SHC)","profilo europeo con MO (SHC)","Euro profiel met MO (SHC)","Europrofil med udstansning til profilcylinder MO (SHC) ","Europrofil med hål för profilcylinder MO (SHC) ",null,null,null,30]
["Swiss Round mit Lochung für Profilzylinder MO","Swiss Round with MO","profil suisse avec VM (SHD)","Swiss Round con MO (SHD)","Swiss Round met MO (SHD)","Swiss Round med udstansning til profilcylinder MO","Swiss Round med hål för profilcylinder MO",null,null,null,31]
["Scandinavian Oval mit Lochung für Profilzylinder MO (SHE)","Scandinavian Oval with MO","Ovale scandinave avec VM (SHE)","Scandinavian Oval con MO (SHE)","Scandinavian Oval met MO (SHE)","Skandinavisk Oval med udstansning til profilcylinder MO (SHE)","Scandinavian Oval med hål för profilcylinder MO (SHE)",null,null,null,32]
["Schliessen","Close","Fermer","Chuidi","Sluiten","Afslut","Avsluta",null,{"$f":"HLOOKUP($I$3,A234:G282,33,FALSE)","v":"Schliessen"},null,33]
["(A3) - Europrofil\n- stehende Montage für Rohrramen","(A3) - Europrofile - upright mounting for tubular frame doors","(A3) - Europrofile - montage vertical pour portes à cadre tubulaire","(A3) - Europrofile - montaggio verticale per porte con telaio tubolare","(A3) - Europrofiel - staanderbevestiging voor deuren met buisframe","(A3) - Europrofile - opretstående montering til rørformede døre","(A3) - Europrofile - upprätt montering för rörformiga ramdörrar",null,{"$f":"HLOOKUP($I$3,A234:G284,34,FALSE)","v":"(A3) - Europrofil\n- stehende Montage für Rohrramen"},null,34]
[null,null,null,null,null,null,null,null,null,null,35]
[null,null,null,null,null,null,null,null,null,null,36]
[null,null,null,null,null,null,null,null,null,null,37]
[null,null,null,null,null,null,null,null,null,null,38]
[null,null,null,null,null,null,null,null,null,null,39]
[null,null,null,null,null,null,null,null,null,null,40]
[null,null,null,null,null,null,null,null,null,null,41]
[null,null,null,null,null,null,null,null,null,null,42]
["Swiss Round","Swiss Round","Profil suisse","Swiss Round","Swiss Round","Swiss Round","Swiss Round",null,null,null,43]
[null,null,null,null,null,null,null,null,null,null,44]
[null,null,null,null,null,null,null,null,null,null,45]
["Î","P",null,null,null,null,null,null,null,null,46]
["zur Ansicht des SmartHandles bitte die gelb markierten Felder aus dem Drop-Down Menü auswählen","to view the SmartHandle please select the yellow marked fields from the dropdown menu","Pour l'aperçu de la SmartHandle, veuillez sélectionner les champs jaunes du Menu déroulant","per visualizzare la SmartHandle selezionare i campi marcati in giallo nel menu a discesa","voor een weergave van de SmartHandle kunt u de geel gemarkeerde velden uit het dropdown-menu selecteren","for at se SmartHandle vælges de med gult markerede felter i drop-down menuen","välj de gulmarkerade fälten i rullmenyn för att titta på SmartHandle",null,null,null,47]
["Beschreibung","Description","Description","descrizione","Beschrijving","Beskrivelse","Beskrivning",null,null,null,48]
["Zusammenfassung der Bestellung","order summary","Résumé de la commande","Riepilogo ordine","Samenvatting van de bestelling","Resumé af bestillingen","Sammanfattning av beställningen",null,{"$f":"HLOOKUP($I$3,A234:G282,49,FALSE)","v":"Zusammenfassung der Bestellung"},null,49]
["zurück zur Hauptseite","back to main page","Retour à la page d’accueil","Torna alla pagina principale","terug naar de startpagina ","tilbage til forsiden","tillbaka till huvudsidan",null,{"$f":"HLOOKUP($I$3,A234:G283,50,FALSE)","v":"zurück zur Hauptseite"},null,50]
["Bemerkungen","Comments","Remarque","Note","Beperkingen","Bemærkninger","Anmärkningar",null,{"$f":"HLOOKUP($I$3,A234:G284,51,FALSE)","v":"Bemerkungen"},null,51]
["zur Zusammenfassung","go to summary","Accéder au résumé","vai al riepilogo","naar de samenvatting","til resumé","till sammanfattningen",null,{"$f":"HLOOKUP($I$3,A234:G285,52,FALSE)","v":"zur Zusammenfassung"},null,52]
[", mit ZK",", with ZK",", avec ZK",", con ZK",", met ZK",", med ZK",", med tillträdeskontroll",null,{"$f":"HLOOKUP($I$3,$A$234:$G$286,53,FALSE)","v":", mit ZK"},null,53]
["ohne Drücker","without lever handle","Sans béquille","senza leva","zonder hendelgreep","uden håndtag","utan handtag",null,null,null,54]
["ohne Drücker (für Fremddrücker vorbereitet)","without lever handle (prepared for 3rd party lever)","Sans béquille (prévu pour béquille étrangères)","senza leva (predisposta per leve di altri fornitori)","zonder hendelgreep (voorbereid voor hendel van derden)","uden håndtag (forberedt for fremmed håndtag)","utan handtag (förberett för annat handtag)",null,null,null,55]
["Bitte verwenden Sie zum Drucken den Druckbutton in der Bestell-Zusammenfassung\n\nMöchten Sie zur Bestell-Zusammenfassung weitergeleitet werden?","To print the order, please use the print button in the order summary\n\nWould you like to be forwarded to the order summary?","Pour imprimer, veuillez utiliser le bouton « Imprimer » disponible sur le résumé de la commande\n\nSouhaitez-vous accéder au résumé de la commande ?","Per effettuare una stampa, utilizzare il pulsante all’interno del riepilogo ordine\n\nDesidera ritornare al riepilogo ordine?","Gebruik voor het uitprinten de printbutton in de samenvatting van de bestelling\n\nWilt u doorgaan naar de samenvatting van de bestelling?","For at printe, klik på printerknappen i bestillingsresuméet\n\nFortsætte til bestillingsresuméet?","Använd utskriftsknappen i beställningssammanfattningen för att skriva ut\n\nVill du komma till beställningssammanfattningen?",null,{"$f":"HLOOKUP($I$3,A234:G289,56,FALSE)","v":"Bitte verwenden Sie zum Drucken den Druckbutton in der Bestell-Zusammenfassung\n\nMöchten Sie zur Bestell-Zusammenfassung weitergeleitet werden?"},null,56]
["Profilname","Lock Type","Type de profil","Tipo di profilo","Sluiting type","Profilnavn","Profilnamn",null,null,null,57]
["Innenrosette","rosette on the intside","Rosace intérieure","Rondella interna","Binnenrozet","Indvendig roset","Täckbricka insida",null,{"$f":"HLOOKUP($I$3,$A$234:$G$348,58,FALSE)","v":"Innenrosette"},null,58]
["Montageform","mounting type","Forme de montage","Forma","Montagevorm","Montageform","Monteringsform",null,{"$f":"HLOOKUP($I$3,$A$234:$G$348,59,FALSE)","v":"Montageform"},null,59]
[null,null,null,null,null,null,null,null,null,null,60]
["Befestigung","Fixing / Back Plate Width","Fixation / largeur de plaque","Fissaggio","Bevestiging/ Grondplaat breed","Fastgørelse","Montering",null,null,null,61]
["ohne Rosette","without rosette","Sans Rosace","senza rondella","zonder rozet ","uden roset","utan täckbricka",null,{"$f":"HLOOKUP($I$3,$A$234:$G$348,62,FALSE)","v":"ohne Rosette"},null,62]
["ohne Schließzylinder-Öffnung","without recess for cylinder","Sans ouverture de cylindre de fermeture","senza apertura cilindro","zonder cilinderopening  ","uden låsecylinder-åbning","utan öppning för låscylinder",null,{"$f":"HLOOKUP($I$3,$A$234:$G$348,63,FALSE)","v":"ohne Schließzylinder-Öffnung"},null,63]
["mit Schließzylinder-Öffnung","with recess for cylinder","Avec ouverture de cylindre de fermeture","con apertura cilindro","met cilinderopening","med låsecylinder-åbning","med öppning för låscylinder",null,{"$f":"HLOOKUP($I$3,$A$234:$G$348,64,FALSE)","v":"mit Schließzylinder-Öffnung"},null,64]
["stehende Montage","upright mounting","montage debout","montaggio verso l’alto","staande montage","stående montage","stående montering",null,{"$f":"HLOOKUP($I$3,$A$234:$G$348,65,FALSE)","v":"stehende Montage"},null,65]
["(A1) - Europrofil\n- hängende Montage [70-79 mm]","(A1) - Europrofile\n- upside down mounting [70-79 mm]","(A1) - profil européen\n- montage suspendu [70-79 mm]","(A1) - Profilo Europeo - Montaggio verso il basso  [70-79 mm]","(A1) - Europrofiel\n- hangende montage [70-79 mm]","(A1) - Europrofil\n- hængende Montage [70-79 mm]","(A1) - Europrofil\n- hängande montering [70-79 mm]",null,{"$f":"HLOOKUP($I$3,$A$234:$G$348,66,FALSE)","v":"(A1) - Europrofil\n- hängende Montage [70-79 mm]"},null,66]
["(A2) - Europrofil\n- hängende Montage [70-110 mm]","(A2) - Europrofile\n- upside down mounting [70-110 mm]","(A2) - profil européen\n- montage suspendu [70-110 mm]","(A2) - Profilo Europeo - Montaggio verso il basso  [70-110 mm]","(A2) - Europrofiel\n- hangende Montage [70-110 mm]","(A2) - Europrofil\n- hængende Montage [70-110 mm]","(A2) - Europrofil\n- hängande montering [70-110 mm]",null,{"$f":"HLOOKUP($I$3,$A$234:$G$348,67,FALSE)","v":"(A2) - Europrofil\n- hängende Montage [70-110 mm]"},null,67]
["G1/G2","G1/G2","G1 / G2","G1/G2","G1/G2","G1/ G2","G1/G2",null,null,null,68]
["(E0) - Scandinavian Oval\n- ohne Schließzylinder-Öffnung / stehende Montage","(E0) - Scandinavian Oval\n- without recess for cylinder / upright mounting","(E0) - Ovale scandinave\n- sans ouverture de cylindre de fermeture / montage debout","(E0) - Profilo Scandinavo - senza apertura cilindro / montaggio verso l'alto","(E0) - Scandinavian Oval\n- zonder cilinderopening / staande montage","(E0) - Skandinavisk Oval\n- uden låsecylinderåbning / stående montage","(E0) - Scandinavian Oval\n- utan hål för låscylinder/stående montering",null,{"$f":"HLOOKUP($I$3,$A$234:$G$348,69,FALSE)","v":"(E0) - Scandinavian Oval\n- ohne Schließzylinder-Öffnung / stehende Montage"},null,69]
["(E1) - Scandinavian Oval\n- mit Schließzylinder-Öffnung / stehende Montage","(E1) - Scandinavian Oval\n- with recess for cylinder / upright mounting","(E1) - Ovale scandinave\n- avec ouverture de cylindre de fermeture / montage debout","(E1) - Profilo Scandinavo - con apertura cilindro / montaggio verso l'alto","(E1) - Scandinavian Oval\n- met cilinderopening / staande montage","(E1) - Skandinavisk Oval\n- med låsecylinderåbning  / stående montage","(E1) - Scandinavian Oval\n- med hål för låscylinder/stående montering",null,{"$f":"HLOOKUP($I$3,$A$234:$G$348,70,FALSE)","v":"(E1) - Scandinavian Oval\n- mit Schließzylinder-Öffnung / stehende Montage"},null,70]
["L-Form rund (A)","L-shape curved (A)","forme en L arrondie (A)","Forma a L tondeggiante (A)","L-vorm rond gebogen (A)","L-form rund (A )","L-form rund (A)",null,{"$f":"HLOOKUP($I$3,$A$234:$G$348,71,FALSE)","v":"L-Form rund (A)"},null,71]
["L-Form Gehrung (B)","L-shape mitre (B)","forme en L rectangulaire (B)","Forma a L ad angolo retto (B)","L-vorm verstek (B)","L-form  gering (B)","L-form gering (B)",null,{"$f":"HLOOKUP($I$3,$A$234:$G$348,72,FALSE)","v":"L-Form Gehrung (B)"},null,72]
["U-Form rund (C)","U-shape curved (C)","forme en U arrondie (C)","Forma a U tondeggiante (C)","U-vorm rond gebogen (C)","U-form rund (C)","U-form rund (C)",null,{"$f":"HLOOKUP($I$3,$A$234:$G$348,73,FALSE)","v":"U-Form rund (C)"},null,73]
["U-Form Gehrung (D)","U-shape mitre (D)","forme en U rectangulaire (D)","Forma a U ad angolo retto D)","U-vorm verstek (D)","U-form  gering (D)","U-form gering (D)",null,{"$f":"HLOOKUP($I$3,$A$234:$G$348,74,FALSE)","v":"U-Form Gehrung (D)"},null,74]
["Ohne Drücker (0)","without handle (0)","Sans béquille (0)","Senza leva (0)","Zonder deurkruk (0)","Uden håndtag (O)","Utan handtag (0)",null,{"$f":"HLOOKUP($I$3,$A$234:$G$348,75,FALSE)","v":"Ohne Drücker (0)"},null,75]
[", zugelassen für FH-Türen",", approved for fire-resistant doors",", homologué pour portes FH",", omologato per porte FH",", toegelaten voor FH-deuren",", godkendt til branddøre",", tillåten för brandskyddsdörrar",null,{"$f":"HLOOKUP($I$3,$A$234:$G$348,76,FALSE)","v":", zugelassen für FH-Türen"},null,76]
["Europrofil / Swiss Round","Europrofile / Swiss Round","Profil européen / Profil suisse","profilo europeo / Swiss Round","Euro profiel / Swiss Round","Europrofil / Swiss Round","Europrofil / Swiss Round",null,{"$f":"HLOOKUP($I$3,$A$234:$G$348,77,FALSE)","v":"Europrofil / Swiss Round"},null,77]
["silber / schwarzgrau","silver / black grey","argent /  gris noir","argento / grigio nerastro","zilverkleurig / zwartgrijs","sølv / sort grå","silver / svart grå",null,{"$f":"HLOOKUP($I$3,$A$234:$G$348,78,FALSE)","v":"silber / schwarzgrau"},null,78]
["silber / weiß","silver / white","argent / blanc","argento / bianco","zilverkleurig / wit ","sølv / hvid","silver / vit",null,{"$f":"HLOOKUP($I$3,$A$234:$G$348,79,FALSE)","v":"silber / weiß"},null,79]
["Aktiv (A)","active (A)","Actif (A)","Attivo (A)","Actief (A)","Aktiv (A)","Aktiv (A)",null,{"$f":"HLOOKUP($I$3,$A$234:$G$348,80,FALSE)","v":"Aktiv (A)"},null,80]
["Mifare (M)","Mifare (M)","Mifare (M)","Mifare (M)","Mifare (M)","Mifare (M)","Mifare (M)",null,{"$f":"HLOOKUP($I$3,$A$234:$G$348,81,FALSE)","v":"Mifare (M)"},null,81]
["Hybrid (AM)","hybride (AM)","Hybrid (AM)","Hybrid (AM)","Hybride (AM)","Hybrid (AM)","Hybrid (AM)",null,{"$f":"HLOOKUP($I$3,$A$234:$G$348,82,FALSE)","v":"Hybrid (AM)"},null,82]
["dauereingekuppelt / ohne Elektronik (0)","engaged / without electronics (0)","embrayé / sans électronique (0)","In presa/senza elettronica (0)","gekoppeld / zonder electronica (0)","Uden elektronik (0)","Permanent förlovad / utan elektronik (0)",null,{"$f":"HLOOKUP($I$3,$A$234:$G$348,83,FALSE)","v":"dauereingekuppelt / ohne Elektronik (0)"},null,83]
["U-Form rund und gekröpft (L)","U-shape curved and cranked (L)","Forme en U courbée et coudée (L)","Forma a U curva e a gomito (L)","U-vormig gebogen en gezwenkt (L)","U-form buet og drejet (L)","U-form böjd och vevlad L",null,{"$f":"HLOOKUP($I$3,$A$234:$G$348,84,FALSE)","v":"U-Form rund und gekröpft (L)"},null,84]
[" (**) Zusatz-\nInformation"," (**) additional\ninformation","(**) informations\ncomplémentaires "," (**) Informazioni\naggiuntive","(**) Extra\ninformatie ","(**) Yderlige informationer ","(**) Extra\ninformation ",null,{"$f":"HLOOKUP($I$3,$A$234:$G$348,85,FALSE)","v":" (**) Zusatz-\nInformation"},null,85]
[null,null,null,null,null,null,null,null,null,null,86]
["Download Bestellhilfe (Händlerbereich)","Download of the ordering guide (Value Added Resellers)","Téléchargement Guide de commande (Revendeurs)","Scaricamento del Guida all'ordinazione di Smart Handle (Rivenditori)","Download Bestelhulp Digitale SmartHandle (Handelaars)","Download hjælp til bestilling (forhandlersektionen)","Ladda ned beställningsguiden (återförsäljararean)",null,null,null,87]
[null,null,null,null,null,null,null,null,null,null,88]
["zum Produkt: Smart Handle aktiv","about the product: Smart Handle active","voir le produit: Smart Handle active","vai al prodotto Smart Handle attiva","product bekijken: Smart Handle actieve","til produktet: Smart Handle aktiv","till produkten: SmartHandle aktiv",null,null,null,89]
["zum Produkt: Smart Handle passiv","about the product: Smart Handle passive","voir le produit: Smart Handle passive","vai al prodotto Smart Handle passiva","product bekijken: Smart Handle passieve","til produktet: Smart Handle passiv","till produkten: SmartHandle passiv",null,null,null,90]
["(*) Bitte beachten Sie, dass je British Oval SmartHandle ein Adapter „SH.BO.ADAPT“ separat bestellt werden muss.","(*) Please note that adapter \"SH.BO.ADAPT\" must be ordered separately for each British Oval SmartHandle.","(*) Veuillez S.V.P. observer que par SmartHandle du type „ British Oval“, il est nécessaire de commander séparément un adaptateur « SH.BO.ADAPT ».","(*) Si informa che per ogni maniglia con profilo ovale britannico è anche necessario ordinare separatamente un adattatore “SH.BO.ADAPT”.","(*) Let op, bij een Britsh Oval SmartHandle moet een „SH.BO.ADAPT“ apart besteld worden.","(*) bemærk at man skal bestille en adapter „SH.BO.ADAPT“  separat til alle Britisk Oval SmartHandles.","(*) Observera att en adapter SH.BO.ADAPT måste beställas separat till varje British Oval SmartHandle.",null,null,null,91]
["Bemerkungen","Comments","Remarque","Note","Beperkingen","Bemærkninger","Anmärkningar",null,null,null,92]
["http://www.simons-voss.com/Haendler-Bereich.14.0.html?&no_cache=1&L=0","http://www.simons-voss.com/Haendler-Bereich.14.0.html?&no_cache=1&L=1&no_cache=1","http://www.simons-voss.com/Value-Added-Resellers.14.0.html?&no_cache=1&L=2&no_cache=1","http://www.simons-voss.com/REVENDEURS.14.0.html?&no_cache=1&L=4&no_cache=1","http://www.simons-voss.com/RIVENDITORI.14.0.html?&no_cache=1&L=3&no_cache=1","http://www.simons-voss.com/Haendler-Bereich.14.0.html?&no_cache=1&L=0","http://www.simons-voss.com/Haendler-Bereich.14.0.html?&no_cache=1&L=0",null,null,null,93]
["http://www.simons-voss.com/Smart-Handles.825.0.html?&L=0","http://www.simons-voss.com/SmartHandle.825.0.html?&L=1&amp%3BL=0%20%3C","http://www.simons-voss.com/Smart-Handles.825.0.html?&L=2","http://www.simons-voss.com/Smart-Handles.825.0.html?&L=4&id=825","http://www.simons-voss.de/Smart-Handles.825.0.html?&L=3","http://www.simons-voss.com/Smart-Handles.825.0.html?&L=0","http://www.simons-voss.com/Smart-Handles.825.0.html?&L=0",null,null,null,94]
["http://www.simons-voss.com/Smart-Handles-Hybrid.1350.0.html?&L=0","http://www.simons-voss.com/Smart-Handles-Hybrid.1350.0.html?&L=1","http://www.simons-voss.com/Smart-Handles-Hybrid.1350.0.html?&L=2&amp=","http://www.simons-voss.com/Smart-Handles-Hybride.1350.0.html?&L=4","http://www.simons-voss.com/Smart-Handle-Hybrid.1350.0.html?&L=3&amp=","http://www.simons-voss.com/Smart-Handles-Hybrid.1350.0.html?&L=0","http://www.simons-voss.com/Smart-Handles-Hybrid.1350.0.html?&L=0",null,null,null,95]
["Scandinavian Oval","Scandinavian Oval","Ovale scandinave","Scandinavian Oval","Scandinavian Oval","Skandinavisk Oval","Scandinavian Oval",null,null,null,96]
["Standard SmartHandle (ohne Door Monitoring)","Standard SmartHandle (without Door Monitoring)","SmartHandle standard (sans Door Monitoring)","SmartHandle standard (Senza DoorMonitoring)","Standaard SmartHandle (zonder deurstand signalering)","Standard SmartHandle (uden dørmonitorering)","Standard SmartHandle (utan dörrövervakning)",null,null,null,97]
["Door Monitoring (interne Sensorik)","Door Monitoring  (internal sensors)","Door Monitoring (capteurs internes)","Door Monitoring (sensore interno)","Deurstand signalering (interne sensors)","Dørmonitorering (intern transducer)","Dörrövervakning (intern givare)",null,null,null,98]
["Door Monitoring (externe Sensorik)","Door Monitoring (external sensors)","Door Monitoring (capteurs externes)","Door Monitoring (sensore esterno)","Deurstand signalering (externe sensors)","Dørmonitorering (håndtagstransducer)","Dörrövervakning (extern givare)",null,null,null,99]
["Door Monitoring (Drückersensorik)","Door Monitoring (handle sensor)","Door monitoring (capteur poignée)","Door Monitoring (sensore sulla leva)","Deurstand signalering (kruk sensor)","Dørmonitorering (håndtagstransducer)","Dörrövervakning (handtagsgivare)",null,null,null,100]
["SmartHandle Typ","type of SmartHandle","type de SmartHandle","Tipo di SmartHandle","SmartHandle uitvoering","SmartHandle Type","SmartHandle-typ",null,null,null,101]
[null,null,null,null,null,null,null,null,null,null,102]
["Î","P",null,null,null,null,null,null,null,null,103]
["siehe Bemerkung unten","see comment below","voir remarques ci-après","Vedere i commenti in calce","Zie onderstaande opmerking","se bemærkning nedenfor","se anmärkningar nedan",null,null,null,104]
["ACHTUNG bei Bestellungen von Door Monitoring SmartHandles mit interner oder externer Sensorik: \nDas WaveNet LockNode ist fest integriert und kann nicht gewechselt werden!","IMPORTANT – when placing orders for DoorMonitoring SmartHandles with internal or external sensors:\nThe WaveNet LockNode is permanently integrated and cannot be changed.","Please note for orders with internal or external sensors:\nThe Lock Node is already included and cannot be changed.","Please note for orders with internal or external sensors:\nThe Lock Node is already included and cannot be changed.","Please note for orders with internal or external sensors:\nThe Lock Node is already included and cannot be changed.","BEMÆRK ved bestillinger af dørmonitorering SmartHandles med intern eller ekstern transducer: \nWaveNet LockNode er fast integreret og kan ikke udskiftes!","Obs! Vid beställning av SmartHandle med dörrövervakning och intern eller extern givare: \nWaveNet LockNode är fast inbyggd och kan inte bytas ut!",null,null,null,105]
["Plattensystem mit MO ","plate system w. MO ",null,null,null,"Pladesystem med MO ","Plattsystem med mekanisk överbryggning ",null,null,null,106]
["nicht verfügbar","not available","Non disponible","non disponibile","niet beschikbaar ","fås ikke","finns inte",null,null,{"$f":"HLOOKUP($I$3,$A$234:$G$358,107,FALSE)","v":"nicht verfügbar"},107]
["nicht benötigt","not required","Pas nécessaire","non necessario","niet nodig ","kræves ikke","behövs inte",null,null,{"$f":"HLOOKUP($I$3,$A$234:$G$358,108,FALSE)","v":"nicht benötigt"},108]
["Mindestens eine der angegebenen Artikelnummern ist nicht korrekt.\n\nBitte korrigieren.","At least one of the selected item numbers is not correct.\n\nPlease correct your input.","Au moins un des numéros d’articles saisis est incorrect.\n\nVeuillez corriger.","Almeno uno dei codici articolo indicati è errato.\n\nCorreggere.","Minstens een van de vermelde artikelnummers is niet correct.\n\nCorrigeer dit alstublieft.","Mindst et af de anførte varenumre er ikke korrekt.\n\nKorriger det venligst.","Minst ett av de angivna artikelnumren är felaktigt.\n\nVar vänlig rätta till.",null,null,{"$f":"HLOOKUP($I$3,$A$234:$G$358,109,FALSE)","v":"Mindestens eine der angegebenen Artikelnummern ist nicht korrekt.\n\nBitte korrigieren."},109]
["Bitte nutzen Sie in den Artikelzeilen ausschließlich die angebotene Drop Down Liste","Please ensure that all entries are selected from the drop down menu","Pour les lignes relatives aux articles, n´utilisez que la liste Drop down/ la liste proposée.","Selezionare il codice prodotto da inserire nell' apposito spazio, scegliendolo dalla lista del dropdown.","Gebruik bij de artikel regels uitsluitend de aangeboden keuzelijst.","Brug kun den viste drop-down-liste i produktlinjerne ","Använd bara de rullistor som finns i artikelraderna",null,null,{"$f":"HLOOKUP($I$3,$A$234:$G$358,110,FALSE)","v":"Bitte nutzen Sie in den Artikelzeilen ausschließlich die angebotene Drop Down Liste"},110]
["SmartHandle AX (System 3060)","SmartHandle AX (System 3060)","SmartHandle AX (système 3060)","SmartHandle AX (sistema 3060)","SmartHandle AX (Systeem 3060)","SmartHandle AX (System 3060)","SmartHandle AX (system 3060)",null,null,{"$f":"HLOOKUP($I$3,$A$234:$G$358,111,FALSE)","v":"SmartHandle AX (System 3060)"},111]
["SmartHandle AX (Mobile Key)","SmartHandle AX (Mobile Key)","SmartHandle AX (Mobile Key)","SmartHandle AX (Mobile Key)","SmartHandle AX (Mobile Key)","SmartHandle AX (Mobile Key)","SmartHandle AX (Mobile Key)",null,null,{"$f":"HLOOKUP($I$3,$A$234:$G$358,112,FALSE)","v":"SmartHandle AX (Mobile Key)"},112]
["System 3060","System 3060","Système 3060","Sistema 3060","Systeem 3060","System 3060","System 3060",null,null,{"$f":"HLOOKUP($I$3,$A$234:$G$358,113,FALSE)","v":"System 3060"},113]
["Mobile Key","Mobile Key","Mobile Key","Mobile Key","Mobile Key","Mobile Key","Mobile Key",null,null,{"$f":"HLOOKUP($I$3,$A$234:$G$358,114,FALSE)","v":"Mobile Key"},114]
["(B0) - Swiss Round\n- stehende Montage","(B0) - Swiss Round\n- upright mounting","(B0) - Rond suisse\n- Montage debout","(B0) - Profilo Swiss Round - montaggio verso l'alto","(B0) - Swiss Round\n- staande montage","(B0) - Swiss Round\n- stående montage","(B0) - Swiss Round\n- stående montering",null,null,{"$f":"HLOOKUP($I$3,$A$234:$G$358,115,FALSE)","v":"(B0) - Swiss Round\n- stehende Montage"},115]
["(B1) - Swiss Round\n- hängende Montage [70-79 mm]","(B1) - Swiss Round\n- upside down mounting [70-79 mm]","(B1) - Rond suisse\n- Montage debout [70-79 mm]","(B1) - Profilo Swiss Round - montaggio verso il basso [70-79 mm]","(B1) - Swiss Round\n- hangende montage [70-79 mm]","(B1) - Swiss Round\n- hængende montage [70-79 mm]","(B1) - Swiss Round\n- hängande montering [70-79 mm]",null,null,{"$f":"HLOOKUP($I$3,$A$234:$G$358,116,FALSE)","v":"(B1) - Swiss Round\n- hängende Montage [70-79 mm]"},116]
["(B2) - Swiss Round\n- hängende Montage [70-110 mm]","(B2) - Swiss Round\n- upside down mounting [70-110 mm]","(B2) - Rond suisse\n- Montage debout [70-110 mm]","(B2) - Profilo Swiss Round - montaggio verso il basso [70-110 mm]","(B2) - Swiss Round\n- hangende montage [70-110 mm]","(B2) - Swiss Round\n- hængende Montage [70-110 mm]","(B2) - Swiss Round\n- hängande montering [70-110 mm]",null,null,{"$f":"HLOOKUP($I$3,$A$234:$G$358,117,FALSE)","v":"(B2) - Swiss Round\n- hängende Montage [70-110 mm]"},117]
["Außenseite","outside","Côté extérieur","Lato esterno","Buitenzijde","Yderside","Utsida",null,null,{"$f":"HLOOKUP($I$3,$A$234:$G$358,118,FALSE)","v":"Außenseite"},118]
["Innenseite","inside","Côté intérieur","Lato interno","Binnenzijde","Inderside","Insida",null,null,{"$f":"HLOOKUP($I$3,$A$234:$G$358,119,FALSE)","v":"Innenseite"},119]
["[ (A1) Entfernung 70-79 mm ]","[ (A1) distance 70-79 mm ]","[ (A1) Distance 70-79 mm ]","[ (A1) Interasse 70-79 mm ]","[ (A1) Afstand 70-79 mm ]","[ (A1) Afstand 70-79 mm ]","[ (A1) Avstånd 70-79 mm ]",null,{"$f":"HLOOKUP($I$3,$A$234:$G$354,120,FALSE)","v":"[ (A1) Entfernung 70-79 mm ]"},null,120]
["[ (A2) Entfernung 70-110 mm ]","[ (A2) distance 70-110 mm ]","[ (A2) Distance 70-110 mm ]","[ (A2) Interasse 70-110 mm ]","[ (A2) Afstand 70-110 mm ]","[ (A2) Afstand 70-110 mm ]","[ (A2) Avstånd 70-110 mm ]",null,{"$f":"HLOOKUP($I$3,$A$234:$G$354,121,FALSE)","v":"[ (A2) Entfernung 70-110 mm ]"},null,121]
["Entfernungsmaß 70-79 mm","distance 70-79 mm","Écart 70-79 mm","Misura interasse 70-79 mm","Afstand 70-79 mm","Afstandsmål 70-79 mm","Räckvidd 70-79 mm",null,{"$f":"HLOOKUP($I$3,$A$234:$G$356,122,FALSE)","v":"Entfernungsmaß 70-79 mm"},null,122]
["Entfernungsmaß 70-110 mm","distance 70-110 mm","Écart 70-110 mm","Misura interasse 70-110 mm","Afstand 70-110 mm","Afstandsmål 70-110 mm","Räckvidd 70-110 mm",null,{"$f":"HLOOKUP($I$3,$A$234:$G$356,123,FALSE)","v":"Entfernungsmaß 70-110 mm"},null,123]
["Europrofil / Swiss Round\nstehende Montage","Euro profile / Swiss Round\nupright mounting","Profile européen / rond suisse\nMontage debout","Profilo europeo / Swiss Round, montaggio verso l'alto","Europrofiel / Swiss Round\nstaande montage","Europrofil / Swiss Round\nstående montage","Europrofil/Swiss Round\nstående montering",null,{"$f":"HLOOKUP($I$3,$A$234:$G$359,124,FALSE)","v":"Europrofil / Swiss Round\nstehende Montage"},null,124]
["Europrofil / Swiss Round, hängende Montage","Euro profile / Swiss Round, upside down mounting","Profil européen / rond suisse, montage debout","Profilo europeo / Swiss Round, montaggio verso il basso","Europrofiel / Swiss Round, hangende montage","Europrofil/ Swiss Round, hængende montage","Europrofil/Swiss Round, hängande montering",null,{"$f":"HLOOKUP($I$3,$A$234:$G$359,125,FALSE)","v":"Europrofil / Swiss Round, hängende Montage"},null,125]
["Scandinavian Oval\nmit Mechanical Override","Scandinavian Oval\nwith Mechanical Override","Ovale scandinave\navec verrouillage mécanique","Profilo Scandinavo con Mechanical Override","Scandinavian Oval\nmet Mechanical Override","Scandinavisk Oval\nmed Mechanical Override","Scandinavian Oval\nmed mekanisk överbryggning",null,{"$f":"HLOOKUP($I$3,$A$234:$G$359,126,FALSE)","v":"Scandinavian Oval\nmit Mechanical Override"},null,126]
["Bemaßungen","dimensions","Dimensions","Misure","Afmetingen","Dimensioneringer","Mått",null,{"$f":"HLOOKUP($I$3,$A$234:$G$360,127,FALSE)","v":"Bemaßungen"},null,127]
["(*) Bitte beachten Sie, dass für FSB- und GLUTZ-Drücker ein Adapter benötigt wird. Dieser kann unter folgender Artikelnummer bestellt werden:\nS2.Adapterset.FSB / S2.Adapterset.GLUTZ","(*) Please note that an adapter is required for FSB handles and GLUTZ handles. The part number for this adapter is as follows:\nS2.Adapterset.FSB / S2.Adapterset.GLUTZ","Veuillez noter qu'un adaptateur est nécessaire pour les poignées FSB et GLUTZ. Celui-ci peut être commandé sous le numéro d'article S2.Adapterset.FSB / S2.Adapterset.GLUTZ","(*) Si ricorda che è necessario un adattatore per maniglie FSB o GLUTZ. L'articolo per questo adattatore è: S2.Adapterset.FSB / S2.Adapterset.GLUTZ","(*) houd er rekening mee dat een adapter nodig is voor de montage van  FSB en GLUTZ deurkrukken. Het artikelnummer voor dit adapter set is: S2.Adapterset.FSB / S2.Adapterset.GLUTZ","Bemærk venligst at der skal anvendes en adapter til FSB- og  GLUTZ greb. Varenummer: S2.ADAPTERSET.FSB / S2.ADAPTERSET.GLUTZ","(*) Observera att en adapter krävs för FSB-handtag och GLUTZ-handtag.\nS2.Adapterset.FSB / S2.Adapterset.GLUTZ",null,{"$f":"HLOOKUP($I$3,$A$234:$G$361,128,FALSE)","v":"(*) Bitte beachten Sie, dass für FSB- und GLUTZ-Drücker ein Adapter benötigt wird. Dieser kann unter folgender Artikelnummer bestellt werden:\nS2.Adapterset.FSB / S2.Adapterset.GLUTZ"},null,128]
["Messing / weiß","brass / white","laiton / blanc","ottone / bianco","messing / wit ","messing / hvid","mässing / vit",null,{"$f":"HLOOKUP($I$3,$A$234:$G$362,129,FALSE)","v":"Messing / weiß"},null,129]
["Farbbeispiel - Cover","colour example  - cover plates","exemple de couleurs - capot","colore - cover","Kleur voorbeeld - afdek platen","Farve ","Färgexempel - Omslag",null,{"$f":"HLOOKUP($I$3,$A$234:$G$363,130,FALSE)","v":"Farbbeispiel - Cover"},null,130]
["Möchten Sie die Adapter für FSB- und/oder GLUTZ-Drücker mitbestellen? \n\nWenn ja, geben Sie bitte die entsprechende Stückzahl an.","Would you like to order adapters for handles from FSB and/or GLUTZ?\n\nIf so, please enter the required quantity.","souhaitez-vous également commander des adaptateurs pour les poignées FSB et/ou GLUTZ ?\n\nSi oui, merci de préciser la quantité souhaitée.","Vuoi ordinare adattatori per maniglie FSB o GLUTZ? Se sì, per favore indica la quantità","Wilt u adapters voor FSB en of Glutz deurkrukken bestellen                                                                                                                  Vul dan de vereiste aantallen in.","Hvis der skal benyttes FSB- og eller GLUTZ greb skal der bestilles en adapter. Indtast venligst antal","Vill du beställa adaptrar för FSB och / eller GLUTZ pushers?\n\nOm ja, ange lämpligt antal stycken.",null,{"$f":"HLOOKUP($I$3,$A$234:$G$364,131,FALSE)","v":"Möchten Sie die Adapter für FSB- und/oder GLUTZ-Drücker mitbestellen? \n\nWenn ja, geben Sie bitte die entsprechende Stückzahl an."},null,131]
["gewünschte\nStückzahl","quantity\nrequested","quantité souhaitée","quantità richiesta","gewenste stuks","Indtast antal","kvantitet\nbegärde",null,{"$f":"HLOOKUP($I$3,$A$234:$G$366,132,FALSE)","v":"gewünschte\nStückzahl"},null,132]
["bereits erfasste\nStückzahl","quantity already\nentered","quantité déjà saisie","quantità già inserita","al ingevoerde aantallen","Antal indtastet","kvantitet redan\ngick in i",null,{"$f":"HLOOKUP($I$3,$A$234:$G$367,133,FALSE)","v":"bereits erfasste\nStückzahl"},null,133]
["Nein, danke","No, thanks","Non, merci","No, grazie","Nee dank u","Nej tak","Nej tack",null,{"$f":"HLOOKUP($I$3,$A$234:$G$367,134,FALSE)","v":"Nein, danke"},null,134]
["Adapterset für die Montage eines FSB-Drückers","adapter set for mounting of a FSB-handle","Set d'adaptation pour le montage d'une poignée FSB","set adattatore per il montaggio di una maniglia FSB","adapter set voor de montage van een FSB deurkruk","Adaptersæt til montering af FSB greb","adapter för montering av ett FSB lever handle",null,{"$f":"HLOOKUP($I$3,$A$234:$G$368,135,FALSE)","v":"Adapterset für die Montage eines FSB-Drückers"},null,135]
["Adapterset für die Montage eines GLUTZ-Drückers","adapter set for mounting of a GLUTZ-handle","Set d'adaptation pour le montage d'une poignée GLUTZ","set adattatore per il montaggio di una maniglia GLUTZ","adapter set voor de montage van een GLUTZ deurkruk","Adaptersæt til montering af GLUTZ greb","adapter för montering av ett GLUTZ lever handle",null,{"$f":"HLOOKUP($I$3,$A$234:$G$369,136,FALSE)","v":"Adapterset für die Montage eines GLUTZ-Drückers"},null,136]
["Brandschutz / Fluchttüren / PAS24","fire protection / emergeny doors / PAS24","Protection contre l'incendie/issues de secours/PAS24","Porte tagliafuoco / porte di emergenza / PAS24","Branddeuren/nooduitgangen/PAS24","Brandbeskyttelse / Flugtdøre / PAS24","Brandskydd/nödutgångar/PAS24",null,{"$f":"HLOOKUP($I$3,$A$234:$G$370,137,FALSE)","v":"Brandschutz / Fluchttüren / PAS24"},null,137]
["ja","yes","oui","si","ja","ja","ja",null,{"$f":"HLOOKUP($I$3,$A$234:$G$372,138,FALSE)","v":"ja"},null,138]
["nein","no","non","no","nee","nej","nej",null,{"$f":"HLOOKUP($I$3,$A$234:$G$372,139,FALSE)","v":"nein"},null,139]
["Panikstangenbefestigung benötigt","Panic bar attachment required","Fixation d'une barre antipanique nécessaire","Fissaggio del maniglione antipanico necessario","Aanbrenging van paniekstang noodzakelijk","Montering af panikstang kræves","Panikstångsfäste krävs",null,{"$f":"HLOOKUP($I$3,$A$234:$G$373,140,FALSE)","v":"Panikstangenbefestigung benötigt"},null,140]
["Bitte wählen Sie die verwendete Panikstange aus dem Dropdown-Menu aus","Please select the panic bar you are using from the dropdown menu","Veuillez sélectionner la barre antipanique utilisée dans le menu déroulant","Si prega di selezionare il maniglione antipanico utilizzato dal menu a discesa","Kies de gebruikte paniekstang uit via het dropdownmenu","Vælg den anvendte panikstang i dropdown-menuen","Välj befintlig panikstång i listrutan.",null,{"$f":"HLOOKUP($I$3,$A$234:$G$374,141,FALSE)","v":"Bitte wählen Sie die verwendete Panikstange aus dem Dropdown-Menu aus"},null,141]
["BKS Vollblatttür, ohne Schild, 92 mm","BKS full-leaf door, without sign, 92 mm","Porte pleine BKS, sans plaque, 92 mm","Porta a tutta anta BKS, senza placca, 92 mm","BKS massieve deur, zonder schild, 92 mm","BKS fuldt dørblad, uden skilt, 92 mm","BKS helt dörrblad, utan skylt, 92 mm",null,{"$f":"HLOOKUP($I$3,$A$234:$G$377,142,FALSE)","v":"BKS Vollblatttür, ohne Schild, 92 mm"},null,142]
["BKS Vollblatttür, ohne Schild, 72 mm","BKS full-leaf door, without sign, 72 mm","Porte pleine BKS, sans plaque, 72 mm","Porta a tutta anta BKS, senza placca, 72 mm","BKS massieve deur, zonder schild, 72 mm","BKS fuldt dørblad, uden skilt, 72 mm","BKS helt dörrblad, utan skylt, 72 mm",null,{"$f":"HLOOKUP($I$3,$A$234:$G$377,143,FALSE)","v":"BKS Vollblatttür, ohne Schild, 72 mm"},null,143]
["CISA Vollblatttür (immer mit Schild und 72 mm)","CISA full-leaf door (always with sign and 72 mm)","Porte pleine CISA (toujours avec plaque 72 mm)","Porta a tutta anta CISA (sempre con placca 72 mm)","CISA massieve deur (altijd met schild en 72 mm)","CISA fuldt dørblad (altid med skilt og 72 mm)","CISA helt dörrblad (alltid med skylt och 72 mm)",null,{"$f":"HLOOKUP($I$3,$A$234:$G$377,144,FALSE)","v":"CISA Vollblatttür (immer mit Schild und 72 mm)"},null,144]
["Panikstangenbefestigung nicht benötigt","Panic bar attachment not required","Fixation d'une barre antipanique non nécessaire","Fissaggio del maniglione antipanico non necessario","Geen aanbrenging van paniekstang noodzakelijk","Montering af panikstang kræves ikke","Panikstångsfäste krävs inte",null,{"$f":"HLOOKUP($I$3,$A$234:$G$378,145,FALSE)","v":"Panikstangenbefestigung nicht benötigt"},null,145]
["Auswahl übernehmen","Apply selection","Appliquer la sélection","Confermare la selezione","Selectie overnemen","Bekræft valg","Använd urval",null,{"$f":"HLOOKUP($I$3,$A$234:$G$379,146,FALSE)","v":"Auswahl übernehmen"},null,146]
["(A4) - EuroPZ, stehende Montage für die Panikstangenadaption","EuroPZ, vertical assembly for panic bar adaptation - (A4)","EuroPZ, montage vertical pour adaptation de barre antipanique - (A4)","Cilindro profilo Europeo, montaggio verticale per l'adattamento del maniglione antipanico - (A4)","EuroPC, staande montage voor de aanpassing met de paniekstang – (A4)","(A4) - EuroPZ, stående montage til panikstangsadaption","Euro PZ, stående montering för panikstångsanpassning – (A4)",null,{"$f":"HLOOKUP($I$3,$A$234:$G$380,147,FALSE)","v":"(A4) - EuroPZ, stehende Montage für die Panikstangenadaption"},null,147]
["(**) Bitte beachten Sie, dass für die Montage der Panikstange eine spezielle Befestigungsschraube B-7850 von der Fa. BKS notwendig ist.\nDiese ist nicht im Lieferumfang enthalten. (zugelassen für FH Türen / DIN179 / 1125)","(**) Please note that a special fixing screw B-7850 from BKS is required for mounting the panic bar.\nThis is not included in the scope of delivery. (approved for fire retardant doors / DIN179 / 1125)","(**) Veuillez noter que le montage de la barre antipanique nécessite une vis de fixation spéciale B-7850 de la société BKS.\nCelle-ci n'est pas incluse dans la livraison. (homologation pour portes FH/DIN179/1125)","(**) Si prega di notare che per il montaggio del maniglione antipanico è necessaria una vite di fissaggio speciale B-7850 della ditta BKS.\nLa vite non è compresa nella fornitura. (omologata per porte FH / DIN179 / 1125)","(**) Houd er rekening mee dat voor de montage van de paniekstang een speciale bevestigingsschroef B-7850 van de firma BKS nodig is.\nDeze wordt niet meegeleverd. (Toegelaten voor FH-deuren / DIN179 / 1125)","(**) Bemærk, at montering af panikstangen kræver en speciel skrue B-7850 fra firmaet BKS. Den medfølger ikke. (godkendt til FH-døre / DIN179 / 1125)","(**) Observera att den särskilda fästskruven B-7850 från företaget BKS är nödvändig vid montering av panikstången.\nDen ingår inte i leveransen. (godkänd för FH-dörrar/DIN179/1125)",null,{"$f":"HLOOKUP($I$3,$A$234:$G$381,148,FALSE)","v":"(**) Bitte beachten Sie, dass für die Montage der Panikstange eine spezielle Befestigungsschraube B-7850 von der Fa. BKS notwendig ist.\nDiese ist nicht im Lieferumfang enthalten. (zugelassen für FH Türen / DIN179 / 1125)"},null,148]
["zugelassen für FH Türen","approved for fire retardant doors","homologation pour portes FH","omologata per porte FH","toegelaten voor FH-deuren","godkendt til FH-døre","godkänd för FH-dörrar",null,{"$f":"HLOOKUP($I$3,$A$234:$G$382,149,FALSE)","v":"zugelassen für FH Türen"},null,149]
["(***) zugelassen für FH Türen / DIN179 / 1125","(***) approved for fire retardant doors / DIN179 / 1125","(***) homologation pour portes FH/DIN179/1125","(***) omologata per porte FH / DIN179 / 1125","(***) toegelaten voor FH-deuren / DIN179 / 1125","(***) godkendt til FH-døre / DIN179 / 1125","(***) godkänd för FH-dörrar/DIN179/1125",null,{"$f":"HLOOKUP($I$3,$A$234:$G$384,150,FALSE)","v":"(***) zugelassen für FH Türen / DIN179 / 1125"},null,150]
[" (***) Zusatz-\nInformation"," (***) additional\ninformation","(***) informations\ncomplémentaires "," (***) Informazioni\naggiuntive","(***) Extra\ninformatie ","(***) Yderlige informationer ","(***) Extra\ninformation ",null,{"$f":"HLOOKUP($I$3,$A$234:$G$385,151,FALSE)","v":" (***) Zusatz-\nInformation"},null,151]
["beidseitig lesend (DS) benötigt","double sided (DS) required","lecture des deux côtés (DS) nécessaire","lettore su due lati (DS) necessario","tweezijdig lezend (DS) nodig","Skal kunne læses fra begge sider (DS)","avläsning på båda sidor (DS) krävs",null,{"$f":"HLOOKUP($I$3,$A$234:$G$385,152,FALSE)","v":"beidseitig lesend (DS) benötigt"},null,152]
["Die Angaben zu Außenrosette, Innenrosette und Drücker innen werden nach Bestätigung automatisch auf \"nicht verfügbar\" gesetzt.","The information on the outside rosette, inside rosette and inside handle is automatically set to \"not available\" after confirmation.","Après confirmation, les indications relatives à la rosace extérieure, à la rosace intérieure et à la poignée à l'intérieur sont automatiquement définies sur « non disponible ».","I dati relativi a rosetta esterna, rosetta interna e maniglia (interno) sono impostati automaticamente su “non disponibile” dopo la conferma","De gegevens over de buitenrozet, binnenrozet en deurkruk binnen worden na bevestiging automatisch op \"niet beschikbaar\" gezet.","Angivelserne for udvendig roset, indvendig roset og greb indvendigt indstilles automatisk til \"ikke tilgængelig\" efter bekræftelse.","Uppgifterna om utvändig rosett, invändig rosett och invändigt handtag ställs automatiskt in till ”inte tillgängligt” efter bekräftelse.",null,{"$f":"HLOOKUP($I$3,$A$234:$G$386,153,FALSE)","v":"Die Angaben zu Außenrosette, Innenrosette und Drücker innen werden nach Bestätigung automatisch auf \"nicht verfügbar\" gesetzt."},null,153]
["Bitte wählen Sie die Oberfläche aus:","Please select the interface:","Veuillez sélectionner la surface :","Selezionare finitura:","Selecteer het oppervlak:","Vælg overflade:","Välj ytbehandling:",null,{"$f":"HLOOKUP($I$3,$A$234:$G$387,154,FALSE)","v":"Bitte wählen Sie die Oberfläche aus:"},null,154]
["beidseitig lesend (DS) nicht benötigt","reading on both sides (DS) not required","lecture des deux côtés (DS) non nécessaire","lettore su due lati (DS) non necessario","tweezijdig lezend (DS) niet nodig","Behøver ikke at kunne læses fra begge sider (DS)","avläsning på båda sidor (DS) krävs inte",null,{"$f":"HLOOKUP($I$3,$A$234:$G$388,155,FALSE)","v":"beidseitig lesend (DS) nicht benötigt"},null,155]
["mit ZK, beidseitig lesend","with access control, read on both sides","avec ZK, lecture des deux côtés","con controllo dell'accesso (ZK), lettore su due lati","met ZK, tweezijdig lezend","Med ZK, kan læses fra begge sider","med ZK, avläsning på båda sidor",null,{"$f":"HLOOKUP($I$3,$A$234:$G$389,156,FALSE)","v":"mit ZK, beidseitig lesend"},null,156]
["beidseitig lesend","Reader on both sides","lecture des deux côtés","lettore su due lati","tweezijdig lezend","Kan læses fra begge sider","avläsning på båda sidor",null,{"$f":"HLOOKUP($I$3,$A$234:$G$390,157,FALSE)","v":"beidseitig lesend"},null,157]
["Bitte beachten Sie, dass die Gegenseite nicht im Lieferumfang enthalten ist. Kompatible Versionen für die Gegenseite sind alle A0-Varianten ohne die Option DS.","Please note that the opposite side is not included in the delivery. Compatible versions for the opposite side are all A0 variants without the DS option.","Veuillez noter que le côté opposé n'est pas fourni. Toutes les versions A0 dépourvues de l’option DS sont compatibles pour le côté opposé.","Attenzione: la cornice perimetrale non è compresa nella fornitura. Le versioni compatibili per la cornice perimetrale sono tutte le varianti A0 senza opzione DS.","Houd er rekening mee dat de andere zijde niet bij de levering is inbegrepen. Compatibele versies voor de andere zijde zijn alle A0-varianten zonder de optie DS.","Bemærk, at modsatte side ikke er omfattet af leveringen. Kompatible versioner for den modsatte side er alle A0-varianter uden muligheden DS.","Observera att motstående sida inte ingår i leveransen. Kompatibla versioner för motstående sida är alla A0-varianter utan alternativ DS.",null,{"$f":"HLOOKUP($I$3,$A$234:$G$391,158,FALSE)","v":"Bitte beachten Sie, dass die Gegenseite nicht im Lieferumfang enthalten ist. Kompatible Versionen für die Gegenseite sind alle A0-Varianten ohne die Option DS."},null,158]
["Sondervarianten (bei Bedarf bitte Button klicken)","Special variants (click button if necessary)","Versions spéciales (en cas de besoin, veuillez cliquer sur le bouton)","Varianti speciali (in caso di necessità premere il pulsante)","Speciale varianten (indien nodig button aanklikken)","Specialvarianter (klik på knap ved behov)","Specialvarianter (klicka vid behov på knappen)",null,null,null,159]
[null,null,null,null,null,null,null,null,null,null,160]
[null,null,null,null,null,null,null,null,null,null,161]
[null,null,null,null,null,null,null,null,null,null,162]
[null,null,null,null,null,null,null,null,null,null,163]
[null,null,null,null,null,null,null,null,null,null,164]
[null,null,null,null,null,null,null,null,null,null,165]
[null,null,null,null,null,null,null,null,null,null,166]
[null,null,null,null,null,null,null,null,null,null,167]
[null,null,null,null,null,null,null,null,null,null,168]
[null,null,null,null,null,null,null,null,null,null,169]
[null,null,null,null,null,null,null,null,null,null,170]
[null,null,null,null,null,null,null,null,null,null,171]
[null,null,null,null,null,null,null,null,null,null,172]
[null,null,null,null,null,null,null,null,null,null,173]
[null,null,null,null,null,null,null,null,null,null,174]
[null,null,null,null,null,null,null,null,null,null,175]
[null,null,null,null,null,null,null,null,null,null,176]
[null,null,null,null,null,null,null,null,null,null,177]
[null,null,null,null,null,null,null,null,null,null,178]
[null,null,null,null,null,null,null,null,null,null,179]
[null,null,null,null,null,null,null,null,null,null,180]
[null,null,null,null,null,null,null,null,null,null,181]
[null,null,null,null,null,null,null,null,null,null,182]
[null,null,null,null,null,null,null,null,null,null,183]
[null,null,null,null,null,null,null,null,null,null,184]
[null,null,null,null,null,null,null,null,null,null,185]
[null,null,null,null,null,null,null,null,null,null,186]
[null,null,null,null,null,null,null,null,null,null,187]
[null,null,null,null,null,null,null,null,null,null,188]
[null,null,null,null,null,null,null,null,null,null,189]
[null,null,null,null,null,null,null,null,null,null,190]
[null,null,null,null,null,null,null,null,null,null,191]
[null,null,null,null,null,null,null,null,null,null,192]
[null,null,null,null,null,null,null,null,null,null,193]
[null,null,null,null,null,null,null,null,null,null,194]
[null,null,null,null,null,null,null,null,null,null,195]
[null,null,null,null,null,null,null,null,null,null,196]
[null,null,null,null,null,null,null,null,null,null,197]
[null,null,null,null,null,null,null,null,null,null,198]
[null,null,null,null,null,null,null,null,null,null,199]
[null,null,null,null,null,null,null,null,null,null,200]
[null,null,null,null,null,null,null,null,null,null,201]
[null,null,null,null,null,null,null,null,null,null,202]
[null,null,null,null,null,null,null,null,null,null,203]
[null,null,null,null,null,null,null,null,null,null,204]
[null,null,null,null,null,null,null,null,null,null,205]
[null,null,null,null,null,null,null,null,null,null,206]
[null,null,null,null,null,null,null,null,null,null,207]
[null,null,null,null,null,null,null,null,null,null,208]
[null,null,null,null,null,null,null,null,null,null,209]
[null,null,null,null,null,null,null,null,null,null,210]
[null,null,null,null,null,null,null,null,null,null,211]
[null,null,null,null,null,null,null,null,null,null,212]
[null,null,null,null,null,null,null,null,null,null,213]
[null,null,null,null,null,null,null,null,null,null,214]
[null,null,null,null,null,null,null,null,null,null,215]
[null,null,null,null,null,null,null,null,null,null,216]
[null,null,null,null,null,null,null,null,null,null,217]
[null,null,null,null,null,null,null,null,null,null,218]
[null,null,null,null,null,null,null,null,null,null,219]
[null,null,null,null,null,null,null,null,null,null,220]
[null,null,null,null,null,null,null,null,null,null,221]
[null,null,null,null,null,null,null,null,null,null,222]
[null,null,null,null,null,null,null,null,null,null,223]
[null,null,null,null,null,null,null,null,null,null,224]
[null,null,null,null,null,null,null,null,null,null,225]
[null,null,null,null,null,null,null,null,null,null,226]
[null,null,null,null,null,null,null,null,null,null,227]
[null,null,null,null,null,null,null,null,null,null,228]
[null,null,null,null,null,null,null,null,null,null,229]
[null,null,null,null,null,null,null,null,null,null,230]
[null,null,null,null,null,null,null,null,null,null,231]
[null,null,null,null,null,null,null,null,null,null,232]
[null,null,null,null,null,null,null,null,null,null,233]
[null,null,null,null,null,null,null,null,null,null,234]
[null,null,null,null,null,null,null,null,null,null,235]
[null,null,null,null,null,null,null,null,null,null,236]
[null,null,null,null,null,null,null,null,null,null,237]
[null,null,null,null,null,null,null,null,null,null,238]
[null,null,null,null,null,null,null,null,null,null,239]
[null,null,null,null,null,null,null,null,null,null,240]
[null,null,null,null,null,null,null,null,null,null,241]
[null,null,null,null,null,null,null,null,null,null,242]
[null,null,null,null,null,null,null,null,null,null,243]
[null,null,null,null,null,null,null,null,null,null,244]
[null,null,null,null,null,null,null,null,null,null,245]
[null,null,null,null,null,null,null,null,null,null,246]
[null,null,null,null,null,null,null,null,null,null,247]
[null,null,null,null,null,null,null,null,null,null,248]
[null,null,null,null,null,null,null,null,null,null,249]
[null,null,null,null,null,null,null,null,null,null,250]
[null,null,null,null,null,null,null,null,null,null,251]
[null,null,null,null,null,null,null,null,null,null,252]
[null,null,null,null,null,null,null,null,null,null,253]
[null,null,null,null,null,null,null,null,null,null,254]
[null,null,null,null,null,null,null,null,null,null,255]
[null,null,null,null,null,null,null,null,null,null,256]
[null,null,null,null,null,null,null,null,null,null,257]
[null,null,null,null,null,null,null,null,null,null,258]
[null,null,null,null,null,null,null,null,null,null,259]
[null,null,null,null,null,null,null,null,null,null,260]
[null,null,null,null,null,null,null,null,null,null,261]
[null,null,null,null,null,null,null,null,null,null,262]
[null,null,null,null,null,null,null,null,null,null,263]
[null,null,null,null,null,null,null,null,null,null,264]
[null,null,null,null,null,null,null,null,null,null,265]
[null,null,null,null,null,null,null,null,null,null,266]
[null,null,null,null,null,null,null,null,null,null,267]
[null,null,null,null,null,null,null,null,null,null,268]
[null,null,null,null,null,null,null,null,null,null,269]
[null,null,null,null,null,null,null,null,null,null,270]
[null,null,null,null,null,null,null,null,null,null,271]
[null,null,null,null,null,null,null,null,null,null,272]
[null,null,null,null,null,null,null,null,null,null,273]
[null,null,null,null,null,null,null,null,null,null,274]
[null,null,null,null,null,null,null,null,null,null,275]
[null,null,null,null,null,null,null,null,null,null,276]
[null,null,null,null,null,null,null,null,null,null,277]
[null,null,null,null,null,null,null,null,null,null,278]
[null,null,null,null,null,null,null,null,null,null,279]
[null,null,null,null,null,null,null,null,null,null,280]
[null,null,null,null,null,null,null,null,null,null,281]
[null,null,null,null,null,null,null,null,null,null,282]
[null,null,null,null,null,null,null,null,null,null,283]
[null,null,null,null,null,null,null,null,null,null,284]
[null,null,null,null,null,null,null,null,null,null,285]
[null,null,null,null,null,null,null,null,null,null,286]
[null,null,null,null,null,null,null,null,null,null,287]
[null,null,null,null,null,null,null,null,null,null,288]
[null,null,null,null,null,null,null,null,null,null,289]
[null,null,null,null,null,null,null,null,null,null,290]
[null,null,null,null,null,null,null,null,null,null,291]
[null,null,null,null,null,null,null,null,null,null,292]
[null,null,null,null,null,null,null,null,null,null,293]
[null,null,null,null,null,null,null,null,null,null,294]
[null,null,null,null,null,null,null,null,null,null,295]
[null,null,null,null,null,null,null,null,null,null,296]
[null,null,null,null,null,null,null,null,null,null,297]
[null,null,null,null,null,null,null,null,null,null,298]
[null,null,null,null,null,null,null,null,null,null,299]
[null,null,null,null,null,null,null,null,null,null,300]
[null,null,null,null,null,null,null,null,null,null,301]
[null,null,null,null,null,null,null,null,null,null,302]
[null,null,null,null,null,null,null,null,null,null,303]
[null,null,null,null,null,null,null,null,null,null,304]
[null,null,null,null,null,null,null,null,null,null,305]
[null,null,null,null,null,null,null,null,null,null,306]
[null,null,null,null,null,null,null,null,null,null,307]
[null,null,null,null,null,null,null,null,null,null,308]
[null,null,null,null,null,null,null,null,null,null,309]
[null,null,null,null,null,null,null,null,null,null,310]
[null,null,null,null,null,null,null,null,null,null,311]
[null,null,null,null,null,null,null,null,null,null,312]
[null,null,null,null,null,null,null,null,null,null,313]
[null,null,null,null,null,null,null,null,null,null,314]
[null,null,null,null,null,null,null,null,null,null,315]
[null,null,null,null,null,null,null,null,null,null,316]
[null,null,null,null,null,null,null,null,null,null,317]
[null,null,null,null,null,null,null,null,null,null,318]
[null,null,null,null,null,null,null,null,null,null,319]
[null,null,null,null,null,null,null,null,null,null,320]
[null,null,null,null,null,null,null,null,null,null,321]
[null,null,null,null,null,null,null,null,null,null,322]
[null,null,null,null,null,null,null,null,null,null,323]
[null,null,null,null,null,null,null,null,null,null,324]
[null,null,null,null,null,null,null,null,null,null,325]
[null,null,null,null,null,null,null,null,null,null,326]
[null,null,null,null,null,null,null,null,null,null,327]
[null,null,null,null,null,null,null,null,null,null,328]
[null,null,null,null,null,null,null,null,null,null,329]
[null,null,null,null,null,null,null,null,null,null,330]
[null,null,null,null,null,null,null,null,null,null,331]
[null,null,null,null,null,null,null,null,null,null,332]
[null,null,null,null,null,null,null,null,null,null,333]
[null,null,null,null,null,null,null,null,null,null,334]
[null,null,null,null,null,null,null,null,null,null,335]
[null,null,null,null,null,null,null,null,null,null,336]
[null,null,null,null,null,null,null,null,null,null,337]
[null,null,null,null,null,null,null,null,null,null,338]
[null,null,null,null,null,null,null,null,null,null,339]
[null,null,null,null,null,null,null,null,null,null,340]
[null,null,null,null,null,null,null,null,null,null,341]
[null,null,null,null,null,null,null,null,null,null,342]
[null,null,null,null,null,null,null,null,null,null,343]
[null,null,null,null,null,null,null,null,null,null,344]
[null,null,null,null,null,null,null,null,null,null,345]
[null,null,null,null,null,null,null,null,null,null,346]
[null,null,null,null,null,null,null,null,null,null,347]
[null,null,null,null,null,null,null,null,null,null,348]
[null,null,null,null,null,null,null,null,null,null,349]
[null,null,null,null,null,null,null,null,null,null,350]
[null,null,null,null,null,null,null,null,null,null,351]
[null,null,null,null,null,null,null,null,null,null,352]
[null,null,null,null,null,null,null,null,null,null,353]
[null,null,null,null,null,null,null,null,null,null,354]
[null,null,null,null,null,null,null,null,null,null,355]
[null,null,null,null,null,null,null,null,null,null,356]
[null,null,null,null,null,null,null,null,null,null,357]
[null,null,null,null,null,null,null,null,null,null,358]
[null,null,null,null,null,null,null,null,null,null,359]
[null,null,null,null,null,null,null,null,null,null,360]
[null,null,null,null,null,null,null,null,null,null,361]
[null,null,null,null,null,null,null,null,null,null,362]
[null,null,null,null,null,null,null,null,null,null,363]
[null,null,null,null,null,null,null,null,null,null,364]
[null,null,null,null,null,null,null,null,null,null,365]
[null,null,null,null,null,null,null,null,null,null,366]
[null,null,null,null,null,null,null,null,null,null,367]
[null,null,null,null,null,null,null,null,null,null,368]
[null,null,null,null,null,null,null,null,null,null,369]
[null,null,null,null,null,null,null,null,null,null,370]
[null,null,null,null,null,null,null,null,null,null,371]
[null,null,null,null,null,null,null,null,null,null,372]
[null,null,null,null,null,null,null,null,null,null,373]
[null,null,null,null,null,null,null,null,null,null,374]
[null,null,null,null,null,null,null,null,null,null,375]
[null,null,null,null,null,null,null,null,null,null,376]
[null,null,null,null,null,null,null,null,null,null,377]
[null,null,null,null,null,null,null,null,null,null,378]
[null,null,null,null,null,null,null,null,null,null,379]
[null,null,null,null,null,null,null,null,null,null,380]
[null,null,null,null,null,null,null,null,null,null,381]
[null,null,null,null,null,null,null,null,null,null,382]
[null,null,null,null,null,null,null,null,null,null,383]
[null,null,null,null,null,null,null,null,null,null,384]
[null,null,null,null,null,null,null,null,null,null,385]
[null,null,null,null,null,null,null,null,null,null,386]
[null,null,null,null,null,null,null,null,null,null,387]
[null,null,null,null,null,null,null,null,null,null,388]
[null,null,null,null,null,null,null,null,null,null,389]
[null,null,null,null,null,null,null,null,null,null,390]
[null,null,null,null,null,null,null,null,null,null,391]
[null,null,null,null,null,null,null,null,null,null,392]
[null,null,null,null,null,null,null,null,null,null,393]
[null,null,null,null,null,null,null,null,null,null,394]
[null,null,null,null,null,null,null,null,null,null,395]
[null,null,null,null,null,null,null,null,null,null,396]
[null,null,null,null,null,null,null,null,null,null,397]
[null,null,null,null,null,null,null,null,null,null,398]
[null,null,null,null,null,null,null,null,null,null,399]
[null,null,null,null,null,null,null,null,null,null,400]
[null,null,null,null,null,null,null,null,null,null,401]
[null,null,null,null,null,null,null,null,null,null,402]
[null,null,null,null,null,null,null,null,null,null,403]
[null,null,null,null,null,null,null,null,null,null,404]
[null,null,null,null,null,null,null,null,null,null,405]
[null,null,null,null,null,null,null,null,null,null,406]
[null,null,null,null,null,null,null,null,null,null,407]
[null,null,null,null,null,null,null,null,null,null,408]
[null,null,null,null,null,null,null,null,null,null,409]
[null,null,null,null,null,null,null,null,null,null,410]
[null,null,null,null,null,null,null,null,null,null,411]
[null,null,null,null,null,null,null,null,null,null,412]
[null,null,null,null,null,null,null,null,null,null,413]
[null,null,null,null,null,null,null,null,null,null,414]
[null,null,null,null,null,null,null,null,null,null,415]
[null,null,null,null,null,null,null,null,null,null,416]
[null,null,null,null,null,null,null,null,null,null,417]
[null,null,null,null,null,null,null,null,null,null,418]
[null,null,null,null,null,null,null,null,null,null,419]
[null,null,null,null,null,null,null,null,null,null,420]
[null,null,null,null,null,null,null,null,null,null,421]
[null,null,null,null,null,null,null,null,null,null,422]
[null,null,null,null,null,null,null,null,null,null,423]
[null,null,null,null,null,null,null,null,null,null,424]
[null,null,null,null,null,null,null,null,null,null,425]
[null,null,null,null,null,null,null,null,null,null,426]
[null,null,null,null,null,null,null,null,null,null,427]
[null,null,null,null,null,null,null,null,null,null,428]
[null,null,null,null,null,null,null,null,null,null,429]
[null,null,null,null,null,null,null,null,null,null,430]
[null,null,null,null,null,null,null,null,null,null,431]
[null,null,null,null,null,null,null,null,null,null,432]
[null,null,null,null,null,null,null,null,null,null,433]
[null,null,null,null,null,null,null,null,null,null,434]
[null,null,null,null,null,null,null,null,null,null,435]
[null,null,null,null,null,null,null,null,null,null,436]
[null,null,null,null,null,null,null,null,null,null,437]
[null,null,null,null,null,null,null,null,null,null,438]
[null,null,null,null,null,null,null,null,null,null,439]
[null,null,null,null,null,null,null,null,null,null,440]
[null,null,null,null,null,null,null,null,null,null,441]
[null,null,null,null,null,null,null,null,null,null,442]
[null,null,null,null,null,null,null,null,null,null,443]
[null,null,null,null,null,null,null,null,null,null,444]
[null,null,null,null,null,null,null,null,null,null,445]
[null,null,null,null,null,null,null,null,null,null,446]
[null,null,null,null,null,null,null,null,null,null,447]
[null,null,null,null,null,null,null,null,null,null,448]
[null,null,null,null,null,null,null,null,null,null,449]
[null,null,null,null,null,null,null,null,null,null,450]
[null,null,null,null,null,null,null,null,null,null,451]
[null,null,null,null,null,null,null,null,null,null,452]
[null,null,null,null,null,null,null,null,null,null,453]
[null,null,null,null,null,null,null,null,null,null,454]
[null,null,null,null,null,null,null,null,null,null,455]
[null,null,null,null,null,null,null,null,null,null,456]
[null,null,null,null,null,null,null,null,null,null,457]
[null,null,null,null,null,null,null,null,null,null,458]
[null,null,null,null,null,null,null,null,null,null,459]
[null,null,null,null,null,null,null,null,null,null,460]
[null,null,null,null,null,null,null,null,null,null,461]
[null,null,null,null,null,null,null,null,null,null,462]
[null,null,null,null,null,null,null,null,null,null,463]
[null,null,null,null,null,null,null,null,null,null,464]
[null,null,null,null,null,null,null,null,null,null,465]
[null,null,null,null,null,null,null,null,null,null,466]
[null,null,null,null,null,null,null,null,null,null,467]
[null,null,null,null,null,null,null,null,null,null,468]
[null,null,null,null,null,null,null,null,null,null,469]
[null,null,null,null,null,null,null,null,null,null,470]
[null,null,null,null,null,null,null,null,null,null,471]
[null,null,null,null,null,null,null,null,null,null,472]
[null,null,null,null,null,null,null,null,null,null,473]
[null,null,null,null,null,null,null,null,null,null,474]
[null,null,null,null,null,null,null,null,null,null,475]
[null,null,null,null,null,null,null,null,null,null,476]
[null,null,null,null,null,null,null,null,null,null,477]
[null,null,null,null,null,null,null,null,null,null,478]
[null,null,null,null,null,null,null,null,null,null,479]
[null,null,null,null,null,null,null,null,null,null,480]
[null,null,null,null,null,null,null,null,null,null,481]
[null,null,null,null,null,null,null,null,null,null,482]
[null,null,null,null,null,null,null,null,null,null,483]
[null,null,null,null,null,null,null,null,null,null,484]
[null,null,null,null,null,null,null,null,null,null,485]
[null,null,null,null,null,null,null,null,null,null,486]
[null,null,null,null,null,null,null,null,null,null,487]
[null,null,null,null,null,null,null,null,null,null,488]
[null,null,null,null,null,null,null,null,null,null,489]
[null,null,null,null,null,null,null,null,null,null,490]
[null,null,null,null,null,null,null,null,null,null,491]
[null,null,null,null,null,null,null,null,null,null,492]
[null,null,null,null,null,null,null,null,null,null,493]
[null,null,null,null,null,null,null,null,null,null,494]
[null,null,null,null,null,null,null,null,null,null,495]
[null,null,null,null,null,null,null,null,null,null,496]
[null,null,null,null,null,null,null,null,null,null,497]
[null,null,null,null,null,null,null,null,null,null,498]
[null,null,null,null,null,null,null,null,null,null,499]
[null,null,null,null,null,null,null,null,null,null,500]

{"sheet":"Zusammenfassung - summary","index":2,"n_rows":31,"n_cols":34,"rows_kept":31,"cut":false,"hidden":true,"merged":[[17,1,17,2],[1,0,1,2],[16,0,16,2],[10,0,10,1],[12,0,12,1],[6,0,6,1],[7,0,7,1],[9,0,9,1]]}
[]
[{"$f":"HLOOKUP('Bestellhilfe - ordering guide'!I3,'Bestellhilfe - ordering guide'!A234:G284,49,FALSE)","v":"Zusammenfassung der Bestellung"},null,null,null,null,{"$f":"'Bestellhilfe - ordering guide'!I3:I3","v":"Deutsch"}]
[null,null,null,null,null,{"$f":"'Bestellhilfe - ordering guide'!I283","v":"zurück zur Hauptseite"}]
[]
[]
[]
[{"$f":"'Bestellhilfe - ordering guide'!A12","v":"Kundennummer"},null,{"$f":"IF('Hauptseite - main page'!C8<>\"\",'Hauptseite - main page'!C8,\"\")","v":""}]
[{"$f":"'Bestellhilfe - ordering guide'!E12","v":"Kundenname"},null,{"$f":"IF('Hauptseite - main page'!C9<>\"\",'Hauptseite - main page'!C9,\"\")","v":""}]
[]
[{"$f":"'Bestellhilfe - ordering guide'!L12","v":"Projekt-Nr.  "},null,{"$f":"IF('Hauptseite - main page'!C11<>\"\",'Hauptseite - main page'!C11,\"\")","v":""}]
[{"$f":"'Bestellhilfe - ordering guide'!A14","v":"Projekt-Name  "},null,{"$f":"IF('Hauptseite - main page'!C12<>\"\",'Hauptseite - main page'!C12,\"\")","v":""}]
[]
[{"$f":"'Bestellhilfe - ordering guide'!E14","v":"Anlage zu Bestellnummer  "},null,{"$f":"IF('Hauptseite - main page'!C14<>\"\",'Hauptseite - main page'!C14,\"\")","v":""}]
[]
[null,null,{"$f":"IF('Hauptseite - main page'!I9<>\"\",'Hauptseite - main page'!I8,\"\")","v":""}]
[{"$f":"'Bestellhilfe - ordering guide'!I259","v":" (*) Zusatz-\nInformation"},null,{"$f":"IF('Hauptseite - main page'!I9<>\"\",'Hauptseite - main page'!I9,\"\")","v":""}]
[]
[null,{"$f":"IF('Bestellhilfe - ordering guide'!A27=\"\",\"\",'Bestellhilfe - ordering guide'!A27&CHAR(10)&CHAR(10))&IF('Bestellhilfe - ordering guide'!A28=\"\",\"\",'Bestellhilfe - ordering guide'!A28&CHAR(10)&CHAR(10))&IF('Bestellhilfe - ordering guide'!A29=\"\",\"\",'Bestellhilfe - ordering guide'!A29)","v":""},null,null,null,null,null,null,null,null,null,null,null,null,null,null,null,null,null,null,null,null,null,null,null,null,null,null,{"$f":"B18","v":""}]
[{"$f":"'Bestellhilfe - ordering guide'!A16","v":"Anzahl"},{"$f":"'Bestellhilfe - ordering guide'!O16","v":"kpl. Artikelnummer"},{"$f":"HLOOKUP('Bestellhilfe - ordering guide'!I3,'Bestellhilfe - ordering guide'!A234:G284,48,FALSE)","v":"Beschreibung"},null,null,null,null,null,null,null,null,null,null,null,null,null,null,null,null,null,null,null,null,null,null,null,null,null,null,null,null,null,null,{"$f":"IF(B18<>\"\",'Bestellhilfe - ordering guide'!Q16,\"\")","v":""}]
[{"$f":"IFERROR(INDEX('Bestellhilfe - ordering guide'!A:A,SMALL(IF('Bestellhilfe - ordering guide'!$A$1:$A$26<>\"\",ROW($1:$26)),ROW(A6))),\"\")","v":""},{"$f":"IFERROR(INDEX('Bestellhilfe - ordering guide'!O:O,SMALL(IF('Bestellhilfe - ordering guide'!$A$1:$A$26<>\"\",ROW($1:$26)),ROW(E6))),\"\")","v":""},{"$f":"IFERROR(INDEX('Bestellhilfe - ordering guide'!AP:AP,SMALL(IF('Bestellhilfe - ordering guide'!$A$1:$A$26<>\"\",ROW($1:$26)),ROW(E6))),\"\")","v":""},null,{"$f":"IF(AND(A20=\"\",B20=\"\",C20=\"\"),\"leer\",\"voll\")","v":"leer"},null,null,null,null,null,null,null,null,null,null,null,null,null,null,null,null,null,null,null,null,null," ",null,null,null,null,null,null,{"$f":"IFERROR(INDEX('Bestellhilfe - ordering guide'!Q:Q,SMALL(IF('Bestellhilfe - ordering guide'!$A$1:$A$26<>\"\",ROW($1:$26)),ROW(E6))),\"\")","v":""}]
[{"$f":"IFERROR(INDEX('Bestellhilfe - ordering guide'!A:A,SMALL(IF('Bestellhilfe - ordering guide'!$A$1:$A$26<>\"\",ROW($1:$26)),ROW(A7))),\"\")","v":""},{"$f":"IFERROR(INDEX('Bestellhilfe - ordering guide'!O:O,SMALL(IF('Bestellhilfe - ordering guide'!$A$1:$A$26<>\"\",ROW($1:$26)),ROW(E7))),\"\")","v":""},{"$f":"IFERROR(INDEX('Bestellhilfe - ordering guide'!AP:AP,SMALL(IF('Bestellhilfe - ordering guide'!$A$1:$A$26<>\"\",ROW($1:$26)),ROW(E7))),\"\")","v":""},null,null,null,null,null,null,null,null,null,null,null,null,null,null,null,null,null,null,null,null,null,null,null,null,null,null,null,null,null,null,{"$f":"IFERROR(INDEX('Bestellhilfe - ordering guide'!Q:Q,SMALL(IF('Bestellhilfe - ordering guide'!$A$1:$A$26<>\"\",ROW($1:$26)),ROW(E7))),\"\")","v":""}]
[{"$f":"IFERROR(INDEX('Bestellhilfe - ordering guide'!A:A,SMALL(IF('Bestellhilfe - ordering guide'!$A$1:$A$26<>\"\",ROW($1:$26)),ROW(A8))),\"\")","v":""},{"$f":"IFERROR(INDEX('Bestellhilfe - ordering guide'!O:O,SMALL(IF('Bestellhilfe - ordering guide'!$A$1:$A$26<>\"\",ROW($1:$26)),ROW(E8))),\"\")","v":""},{"$f":"IFERROR(INDEX('Bestellhilfe - ordering guide'!AP:AP,SMALL(IF('Bestellhilfe - ordering guide'!$A$1:$A$26<>\"\",ROW($1:$26)),ROW(E8))),\"\")","v":""},null,null,null,null,null,null,null,null,null,null,null,null,null,null,null,null,null,null,null,null,null,null,null,null,null,null,null,null,null,null,{"$f":"IFERROR(INDEX('Bestellhilfe - ordering guide'!Q:Q,SMALL(IF('Bestellhilfe - ordering guide'!$A$1:$A$26<>\"\",ROW($1:$26)),ROW(E8))),\"\")","v":""}]
[{"$f":"IFERROR(INDEX('Bestellhilfe - ordering guide'!A:A,SMALL(IF('Bestellhilfe - ordering guide'!$A$1:$A$26<>\"\",ROW($1:$26)),ROW(A9))),\"\")","v":""},{"$f":"IFERROR(INDEX('Bestellhilfe - ordering guide'!O:O,SMALL(IF('Bestellhilfe - ordering guide'!$A$1:$A$26<>\"\",ROW($1:$26)),ROW(E9))),\"\")","v":""},{"$f":"IFERROR(INDEX('Bestellhilfe - ordering guide'!AP:AP,SMALL(IF('Bestellhilfe - ordering guide'!$A$1:$A$26<>\"\",ROW($1:$26)),ROW(E9))),\"\")","v":""},null,null,null,null,null,null,null,null,null,null,null,null,null,null,null,null,null,null,null,null,null,null,null,null,null,null,null,null,null,null,{"$f":"IFERROR(INDEX('Bestellhilfe - ordering guide'!Q:Q,SMALL(IF('Bestellhilfe - ordering guide'!$A$1:$A$26<>\"\",ROW($1:$26)),ROW(E9))),\"\")","v":""}]
[{"$f":"IFERROR(INDEX('Bestellhilfe - ordering guide'!A:A,SMALL(IF('Bestellhilfe - ordering guide'!$A$1:$A$26<>\"\",ROW($1:$26)),ROW(A10))),\"\")","v":""},{"$f":"IFERROR(INDEX('Bestellhilfe - ordering guide'!O:O,SMALL(IF('Bestellhilfe - ordering guide'!$A$1:$A$26<>\"\",ROW($1:$26)),ROW(E10))),\"\")","v":""},{"$f":"IFERROR(INDEX('Bestellhilfe - ordering guide'!AP:AP,SMALL(IF('Bestellhilfe - ordering guide'!$A$1:$A$26<>\"\",ROW($1:$26)),ROW(E10))),\"\")","v":""},null,null,null,null,null,null,null,null,null,null,null,null,null,null,null,null,null,null,null,null,null,null,null,null,null,null,null,null,null,null,{"$f":"IFERROR(INDEX('Bestellhilfe - ordering guide'!Q:Q,SMALL(IF('Bestellhilfe - ordering guide'!$A$1:$A$26<>\"\",ROW($1:$26)),ROW(E10))),\"\")","v":""}]
[{"$f":"IFERROR(INDEX('Bestellhilfe - ordering guide'!A:A,SMALL(IF('Bestellhilfe - ordering guide'!$A$1:$A$26<>\"\",ROW($1:$26)),ROW(A11))),\"\")","v":""},{"$f":"IFERROR(INDEX('Bestellhilfe - ordering guide'!O:O,SMALL(IF('Bestellhilfe - ordering guide'!$A$1:$A$26<>\"\",ROW($1:$26)),ROW(E11))),\"\")","v":""},{"$f":"IFERROR(INDEX('Bestellhilfe - ordering guide'!AP:AP,SMALL(IF('Bestellhilfe - ordering guide'!$A$1:$A$26<>\"\",ROW($1:$26)),ROW(E11))),\"\")","v":""},null,null,null,null,null,null,null,null,null,null,null,null,null,null,null,null,null,null,null,null,null,null,null,null,null,null,null,null,null,null,{"$f":"IFERROR(INDEX('Bestellhilfe - ordering guide'!Q:Q,SMALL(IF('Bestellhilfe - ordering guide'!$A$1:$A$26<>\"\",ROW($1:$26)),ROW(E11))),\"\")","v":""}]
[{"$f":"IFERROR(INDEX('Bestellhilfe - ordering guide'!A:A,SMALL(IF('Bestellhilfe - ordering guide'!$A$1:$A$26<>\"\",ROW($1:$26)),ROW(A12))),\"\")","v":""},{"$f":"IFERROR(INDEX('Bestellhilfe - ordering guide'!O:O,SMALL(IF('Bestellhilfe - ordering guide'!$A$1:$A$26<>\"\",ROW($1:$26)),ROW(E12))),\"\")","v":""},{"$f":"IFERROR(INDEX('Bestellhilfe - ordering guide'!AP:AP,SMALL(IF('Bestellhilfe - ordering guide'!$A$1:$A$26<>\"\",ROW($1:$26)),ROW(E12))),\"\")","v":""},null,null,null,null,null,null,null,null,null,null,null,null,null,null,null,null,null,null,null,null,null,null,null,null,null,null,null,null,null,null,{"$f":"IFERROR(INDEX('Bestellhilfe - ordering guide'!Q:Q,SMALL(IF('Bestellhilfe - ordering guide'!$A$1:$A$26<>\"\",ROW($1:$26)),ROW(E12))),\"\")","v":""}]
[{"$f":"IFERROR(INDEX('Bestellhilfe - ordering guide'!A:A,SMALL(IF('Bestellhilfe - ordering guide'!$A$1:$A$26<>\"\",ROW($1:$26)),ROW(A13))),\"\")","v":""},{"$f":"IFERROR(INDEX('Bestellhilfe - ordering guide'!O:O,SMALL(IF('Bestellhilfe - ordering guide'!$A$1:$A$26<>\"\",ROW($1:$26)),ROW(E13))),\"\")","v":""},{"$f":"IFERROR(INDEX('Bestellhilfe - ordering guide'!AP:AP,SMALL(IF('Bestellhilfe - ordering guide'!$A$1:$A$26<>\"\",ROW($1:$26)),ROW(E13))),\"\")","v":""},null,null,null,null,null,null,null,null,null,null,null,null,null,null,null,null,null,null,null,null,null,null,null,null,null,null,null,null,null,null,{"$f":"IFERROR(INDEX('Bestellhilfe - ordering guide'!Q:Q,SMALL(IF('Bestellhilfe - ordering guide'!$A$1:$A$26<>\"\",ROW($1:$26)),ROW(E13))),\"\")","v":""}]
[]
[]
[]
[{"$f":"IF('Bestellhilfe - ordering guide'!A29:Q29<>\"\",'Bestellhilfe - ordering guide'!A29:Q29,\"\")","v":""}]

{"sheet":"Überblick - overview","index":3,"n_rows":309,"n_cols":13,"rows_kept":309,"cut":false,"hidden":true,"merged":[[174,7,176,7],[178,7,180,7],[182,7,184,7],[186,7,188,7],[142,7,144,7],[146,7,148,7],[150,7,152,7],[154,7,156,7],[158,7,160,7],[162,7,164,7],[142,5,144,5],[146,5,148,5],[150,5,152,5],[166,7,168,7],[170,7,172,7],[178,5,180,5],[182,5,184,5],[186,5,188,5],[154,5,156,5],[158,5,160,5],[162,5,164,5],[166,5,168,5],[170,5,172,5],[174,5,176,5],[178,0,188,0],[142,0,152,0],[154,0,164,0],[166,0,176,0],[40,0,44,0],[52,0,56,0],[46,0,50,0],[1,9,1,12],[2,0,2,8],[7,0,7,7],[7,9,7,13],[10,0,14,0],[10,2,11,2],[16,0,20,0],[28,0,32,0],[34,0,38,0],[10,9,11,9],[13,9,14,9],[16,9,17,9],[19,9,20,9],[16,2,17,2],[19,2,20,2],[22,0,26,0],[22,2,23,2],[22,9,23,9],[34,9,44,9],[52,2,53,2],[55,2,56,2],[28,2,29,2],[31,2,32,2],[34,2,35,2],[40,2,41,2],[43,2,44,2],[46,2,47,2],[49,2,50,2],[37,2,38,2]]}
[]
[]
[{"$f":"HLOOKUP($K$3,A256:G263,2,0)","v":"Gesamtüberblick - SmartHandle AX (SH2)"},null,null,null,null,null,null,null,null,null,{"$f":"'Hauptseite - main page'!G3","v":"Deutsch"}]
[null,null,null,null,null,null,null,null,null,"  "]
[]
[]
[]
[{"$f":"HLOOKUP($K$3,A256:G263,3,0)","v":"SmartHandle Varianten"},null,null,null,null,null,null,null,null,{"$f":"HLOOKUP($K$3,A256:G263,4,0)","v":"Drückervarianten"}]
[]
[]
[{"$f":"'Bestellhilfe - ordering guide'!$A$44","v":"(A0) - Europrofil\n- stehende Montage"},null,{"$f":"'Bestellhilfe - ordering guide'!$E$6","v":"Außenseite"},null,{"$f":"$K$265","v":"ODER"},null,{"$f":"$K$265","v":"ODER"},null,null,"A"]
[null,null,null,{"$f":"'Bestellhilfe - ordering guide'!$J$51","v":"ohne Rosette (0)"},null,{"$f":"'Bestellhilfe - ordering guide'!$J$52","v":"ohne Schließzylinder-Öffnung (1)"},null,{"$f":"'Bestellhilfe - ordering guide'!$J$53","v":"mit Schließzylinder-Öffnung (2)"}]
[]
[null,null,{"$f":"'Bestellhilfe - ordering guide'!$F$6","v":"Innenseite"},null,{"$f":"$K$265","v":"ODER"},null,{"$f":"$K$265","v":"ODER"},null,null,"B"]
[null,null,null,{"$f":"'Bestellhilfe - ordering guide'!$J$51","v":"ohne Rosette (0)"},null,{"$f":"'Bestellhilfe - ordering guide'!$J$52","v":"ohne Schließzylinder-Öffnung (1)"},null,{"$f":"'Bestellhilfe - ordering guide'!$J$53","v":"mit Schließzylinder-Öffnung (2)"}]
[]
[{"$f":"K266","v":"Europrofil\n- hängende Montage\n [70-79 mm] - (A1) & \n[70-110 mm] - (A2)"},null,{"$f":"'Bestellhilfe - ordering guide'!$E$6","v":"Außenseite"},null,{"$f":"$K$265","v":"ODER"},null,null,null,null,"C"]
[null,null,null,{"$f":"'Bestellhilfe - ordering guide'!$J$51&CHAR(10)&'Bestellhilfe - ordering guide'!$I$353","v":"ohne Rosette (0)\n[ (A1) Entfernung 70-79 mm ]"},null,{"$f":"'Bestellhilfe - ordering guide'!$J$51&CHAR(10)&'Bestellhilfe - ordering guide'!$I$354","v":"ohne Rosette (0)\n[ (A2) Entfernung 70-110 mm ]"}]
[]
[null,null,{"$f":"'Bestellhilfe - ordering guide'!$F$6","v":"Innenseite"},null,{"$f":"$K$265","v":"ODER"},null,{"$f":"$K$265","v":"ODER"},null,null,"D"]
[null,null,null,{"$f":"'Bestellhilfe - ordering guide'!$J$51","v":"ohne Rosette (0)"},null,{"$f":"'Bestellhilfe - ordering guide'!$J$52","v":"ohne Schließzylinder-Öffnung (1)"},null,{"$f":"'Bestellhilfe - ordering guide'!$J$53","v":"mit Schließzylinder-Öffnung (2)"},null,null," "]
[]
[{"$f":"K268","v":"Europrofil\n- stehende Montage für Rohrramen - (A3)"},null,{"$f":"'Bestellhilfe - ordering guide'!$E$6","v":"Außenseite"},null,{"$f":"$K$265","v":"ODER"},null,{"$f":"$K$265","v":"ODER"},null,null,"L"]
[null,null,null,{"$f":"'Bestellhilfe - ordering guide'!$J$51","v":"ohne Rosette (0)"},null,{"$f":"'Bestellhilfe - ordering guide'!$J$52","v":"ohne Schließzylinder-Öffnung (1)"},null,{"$f":"'Bestellhilfe - ordering guide'!$J$53","v":"mit Schließzylinder-Öffnung (2)"},null,null," "]
[]
[null,null,{"$f":"'Bestellhilfe - ordering guide'!$F$6","v":"Innenseite"},null,{"$f":"$K$265","v":"ODER"},null,{"$f":"$K$265","v":"ODER"}]
[null,null,null,{"$f":"'Bestellhilfe - ordering guide'!$J$51","v":"ohne Rosette (0)"},null,{"$f":"'Bestellhilfe - ordering guide'!$J$52","v":"ohne Schließzylinder-Öffnung (1)"},null,{"$f":"'Bestellhilfe - ordering guide'!$J$53","v":"mit Schließzylinder-Öffnung (2)"}]
[]
[{"$f":"'Bestellhilfe - ordering guide'!$A$48","v":"(E0) - Scandinavian Oval\n- ohne Schließzylinder-Öffnung / stehende Montage"},null,{"$f":"'Bestellhilfe - ordering guide'!$E$6","v":"Außenseite"}]
[null,null,null,{"$f":"'Bestellhilfe - ordering guide'!$J$51","v":"ohne Rosette (0)"}]
[]
[null,null,{"$f":"'Bestellhilfe - ordering guide'!$F$6","v":"Innenseite"},null,{"$f":"$K$265","v":"ODER"},null,{"$f":"$K$265","v":"ODER"}]
[null,null,null,{"$f":"'Bestellhilfe - ordering guide'!$J$51","v":"ohne Rosette (0)"},null,{"$f":"'Bestellhilfe - ordering guide'!$J$52","v":"ohne Schließzylinder-Öffnung (1)"},null,{"$f":"'Bestellhilfe - ordering guide'!$J$53","v":"mit Schließzylinder-Öffnung (2)"}]
[]
[{"$f":"'Bestellhilfe - ordering guide'!$A$49","v":"(E1) - Scandinavian Oval\n- mit Schließzylinder-Öffnung / stehende Montage"},null,{"$f":"'Bestellhilfe - ordering guide'!$E$6","v":"Außenseite"}]
[null,null,null,{"$f":"'Bestellhilfe - ordering guide'!$J$51","v":"ohne Rosette (0)"}]
[]
[null,null,{"$f":"'Bestellhilfe - ordering guide'!$F$6","v":"Innenseite"},null,{"$f":"$K$265","v":"ODER"},null,{"$f":"$K$265","v":"ODER"}]
[null,null,null,{"$f":"'Bestellhilfe - ordering guide'!$J$51","v":"ohne Rosette (0)"},null,{"$f":"'Bestellhilfe - ordering guide'!$J$52","v":"ohne Schließzylinder-Öffnung (1)"},null,{"$f":"'Bestellhilfe - ordering guide'!$J$53","v":"mit Schließzylinder-Öffnung (2)"}]
[]
[{"$f":"'Bestellhilfe - ordering guide'!$A$50","v":"(B0) - Swiss Round\n- stehende Montage"},null,{"$f":"'Bestellhilfe - ordering guide'!$E$6","v":"Außenseite"},null,{"$f":"$K$265","v":"ODER"},null,{"$f":"$K$265","v":"ODER"}]
[null,null,null,{"$f":"'Bestellhilfe - ordering guide'!$J$51","v":"ohne Rosette (0)"},null,{"$f":"'Bestellhilfe - ordering guide'!$J$52","v":"ohne Schließzylinder-Öffnung (1)"},null,{"$f":"'Bestellhilfe - ordering guide'!$J$53","v":"mit Schließzylinder-Öffnung (2)"}]
[]
[null,null,{"$f":"'Bestellhilfe - ordering guide'!$F$6","v":"Innenseite"},null,{"$f":"$K$265","v":"ODER"},null,{"$f":"$K$265","v":"ODER"}]
[null,null,null,{"$f":"'Bestellhilfe - ordering guide'!$J$51","v":"ohne Rosette (0)"},null,{"$f":"'Bestellhilfe - ordering guide'!$J$52","v":"ohne Schließzylinder-Öffnung (1)"},null,{"$f":"'Bestellhilfe - ordering guide'!$J$53","v":"mit Schließzylinder-Öffnung (2)"}]
[]
[{"$f":"K267","v":"Swiss Round\n- hängende Montage\n [70-79 mm] - (A1) & \n[70-110 mm] - (A2)"},null,{"$f":"'Bestellhilfe - ordering guide'!$E$6","v":"Außenseite"},null,{"$f":"$K$265","v":"ODER"}]
[null,null,null,{"$f":"'Bestellhilfe - ordering guide'!$J$51&CHAR(10)&'Bestellhilfe - ordering guide'!$I$353","v":"ohne Rosette (0)\n[ (A1) Entfernung 70-79 mm ]"},null,{"$f":"'Bestellhilfe - ordering guide'!$J$51&CHAR(10)&'Bestellhilfe - ordering guide'!$I$354","v":"ohne Rosette (0)\n[ (A2) Entfernung 70-110 mm ]"}]
[]
[null,null,{"$f":"'Bestellhilfe - ordering guide'!$F$6","v":"Innenseite"},null,{"$f":"$K$265","v":"ODER"},null,{"$f":"$K$265","v":"ODER"}]
[null,null,null,{"$f":"'Bestellhilfe - ordering guide'!$J$51","v":"ohne Rosette (0)"},null,{"$f":"'Bestellhilfe - ordering guide'!$J$52","v":"ohne Schließzylinder-Öffnung (1)"},null,{"$f":"'Bestellhilfe - ordering guide'!$J$53","v":"mit Schließzylinder-Öffnung (2)"}]
[]
[]
[]
[]
[]
[]
[]
[]
[]
[]
[]
[]
[]
[]
[]
[]
[]
[]
[]
[]
[]
[]
[]
[]
[]
[]
[]
[]
[]
[]
[]
[]
[]
[]
[]
[]
[]
[]
[]
[]
[]
[]
[]
[]
[]
[]
[]
[]
[]
[]
[]
[]
[]
[]
[]
[]
[]
[]
[]
[]
[]
[]
[]
[]
[]
[]
[]
[]
[]
[]
[]
[]
[]
[]
[]
[]
[]
[]
[]
[]
[]
[]
[]
[]
[]
[]
[]
[]
[]
[]
[]
[]
[]
[]
[]
[]
[]
[]
[]
[]
[]
[]
[]
[]
[]
[]
[]
[]
[]
[]
[]
[]
[]
[]
[]
[]
[]
[]
[]
[]
[]
[]
[]
[]
[]
[]
[]
[]
[]
[]
[]
[]
[]
[]
[]
[]
[]
[]
[]
[]
[]
[]
[]
[]
[]
[]
[]
[]
[]
[]
[]
[]
[]
[]
[]
[]
[]
[]
[]
[]
[]
[]
[]
[]
[]
[]
[]
[]
[]
[]
[]
[]
[]
[]
[]
[]
[]
[]
[]
[]
[]
[]
[]
[]
[]
[]
[]
[]
[]
[]
[]
[]
[]
[]
[]
[]
[]
[]
[]
[]
[]
[]
[]
[]
["Deutsch","English","Français","Italiano","Nederlands","Dansk","Svenska"]
["Gesamtüberblick - SmartHandle AX (SH2)","Total overview - SmartHandle AX (SH2)","Aperçu général - SmartHandle AX (SH2)","Panoramica generale - SmartHandle AX (SH2)","Totaaloverzicht – SmartHandle AX (SH2)","Samlet overblik - SmartHandle AX (SH2)","Totalöversikt - SmartHandle AX (SH2)",null,2]
["SmartHandle Varianten","SmartHandle variants","Variantes SmartHandle","Varianti SmartHandle","SmartHandle varianten","SmartHandle varianter","SmartHandle-varianter",null,3]
["Drückervarianten","Handle variants","Variantes de béquilles","Varianti di leva","Deurkrukvarianten","Håndtagsvarianter","Handtagsvarianter",null,4]
["Übersicht","Overview","Aperçu","Panoramica","Overzicht","Oversigt","Översikt",null,5,null,null,{"$f":"IF($K$3=\"Deutsch\",A260,IF($K$3=\"English\",B260,IF($K$3=\"Français\",C260,IF($K$3=\"Italiano\",D260,IF($K$3=\"Nederlands\",E260,\"\")))))","v":"Übersicht"},"Test"]
[null,null,null,null,null,null,null,null,6]
[null,null,null,null,null,null,null,null,7]
[null,null,null,null,null,null,null,null,8]
["zurück zur Hauptseite","back to main page","Retour à la page d’accueil","torna alla pagina principale","terug naar de startpagina","tilbage til forsiden","tillbaka till huvudsidan",null,9,null,{"$f":"HLOOKUP($K$3,$A$256:$G$264,9,0)","v":"zurück zur Hauptseite"},{"$f":"K264","v":"zurück zur Hauptseite"}]
["ODER","OR","OU","OPPURE","OF","ELLER","ELLER",null,10,null,{"$f":"HLOOKUP($K$3,$A$256:$G$265,10,0)","v":"ODER"}]
["Europrofil\n- hängende Montage\n [70-79 mm] - (A1) & \n[70-110 mm] - (A2)","Europrofile\n- upside down mounting [70-79 mm] - (A1) & [70-110 mm] - (A2)",null,"Profilo Europeo - Montaggio verso il basso  [70-79 mm] - (A1)\nbasso  [70-110 mm] - (A2)","Europrofiel\n- hangende montage\n [70-79 mm] - (A1) & \n[70-110 mm] - (A2)","Europrofil\n- hængende montage\n [70-79 mm] - (A1) & \n[70-110 mm] - (A2)","Europrofil\n- hängande motering\n [70-79 mm] - (A1) & \n[70-110 mm] - (A2)",null,11,null,{"$f":"HLOOKUP($K$3,$A$256:$G$266,11,0)","v":"Europrofil\n- hängende Montage\n [70-79 mm] - (A1) & \n[70-110 mm] - (A2)"}]
["Swiss Round\n- hängende Montage\n [70-79 mm] - (A1) & \n[70-110 mm] - (A2)","Swiss Round\n- upside down mounting [70-79 mm] - (A1) & [70-110 mm] - (A2)","Swiss Round\n- hängende Montage\n [70-79 mm] - (A1) & \n[70-110 mm] - (A2)","Tondo Svizzero - Montaggio verso il basso  [70-79 mm] - (A1)\nbasso  [70-110 mm] - (A2)","Swiss Round\n- hangende montage\n [70-79 mm] - (A1) & \n[70-110 mm] - (A2)","Swiss Round\n- hængende montage\n [70-79 mm] - (A1) & \n[70-110 mm] - (A2)","Swiss Round\n- hängande montering\n [70-79 mm] - (A1) & \n[70-110 mm] - (A2)",null,12,null,{"$f":"HLOOKUP($K$3,$A$256:$G$267,12,0)","v":"Swiss Round\n- hängende Montage\n [70-79 mm] - (A1) & \n[70-110 mm] - (A2)"}]
["Europrofil\n- stehende Montage für Rohrramen - (A3)","Europrofile - upright mounting for tubular frame doors","Europrofile - montage vertical pour portes à cadre tubulaire","Europrofile - montaggio verticale per porte con telaio tubolare","Europrofiel - staanderbevestiging voor deuren met buisframe","Europrofile - opretstående montering til rørformede døre","Europrofile - upprätt montering för rörformiga ramdörrar",null,13,null,{"$f":"HLOOKUP($K$3,$A$256:$G$268,13,0)","v":"Europrofil\n- stehende Montage für Rohrramen - (A3)"}]
[null,null,null,null,null,null,null,null,14]
[null,null,null,null,null,null,null,null,15]
[null,null,null,null,null,null,null,null,16]
[null,null,null,null,null,null,null,null,17]
[null,null,null,null,null,null,null,null,18]
[null,null,null,null,null,null,null,null,19]
[null,null,null,null,null,null,null,null,20]
[null,null,null,null,null,null,null,null,21]
[null,null,null,null,null,null,null,null,22]
[null,null,null,null,null,null,null,null,23]
[null,null,null,null,null,null,null,null,24]
[null,null,null,null,null,null,null,null,25]
[null,null,null,null,null,null,null,null,26]
[null,null,null,null,null,null,null,null,27]
[null,null,null,null,null,null,null,null,28]
[null,null,null,null,null,null,null,null,29]
[null,null,null,null,null,null,null,null,30]
[null,null,null,null,null,null,null,null,31]
[null,null,null,null,null,null,null,null,32]
[null,null,null,null,null,null,null,null,33]
[null,null,null,null,null,null,null,null,34]
[null,null,null,null,null,null,null,null,35]
[null,null,null,null,null,null,null,null,36]
[null,null,null,null,null,null,null,null,37]
[null,null,null,null,null,null,null,null,38]
[null,null,null,null,null,null,null,null,39]
[null,null,null,null,null,null,null,null,40]
[null,null,null,null,null,null,null,null,41]
[null,null,null,null,null,null,null,null,42]
[null,null,null,null,null,null,null,null,43]
[null,null,null,null,null,null,null,null,44]
[null,null,null,null,null,null,null,null,45]
[null,null,null,null,null,null,null,null,46]
[null,null,null,null,null,null,null,null,47]
[null,null,null,null,null,null,null,null,48]
[null,null,null,null,null,null,null,null,49]
[null,null,null,null,null,null,null,null,50]
[null,null,null,null,null,null,null,null,51]
[null,null,null,null,null,null,null,null,52]
[null,null,null,null,null,null,null,null,53]
[null,null,null,null,null,null,null,null,54]

{"sheet":"Tabelle1","index":4,"n_rows":0,"n_cols":0,"rows_kept":0,"cut":false,"hidden":true,"merged":[]}

{"sheet":"Comments","index":5,"n_rows":29,"n_cols":10,"rows_kept":29,"cut":false,"hidden":true,"merged":[]}
[" ","Deutsch","English","Français","Italiano","Nederlands","Dansk","Svenska"]
["Produktname","System 3060 (SV-S2)\nMobile Key (MK-S2)","System 3060 (SV-S2)\nMobile Key (MK-S2)","noch zu übersetzen","noch zu übersetzen","noch zu übersetzen","System 3060 (SV-S2)\nMobile Key (MK-S2)"]
["Profil","Europrofil\nScandinavian Oval","Europrofile\nScandinavian Oval","Profil européen\nOvale scandinave","profilo europeo\nScandinavian Oval","Euro profiel\nScandinavian Oval","Europrofil\nScandinavisk Oval"]
["Montageform","stehende Montage\nhängende Montage (70-79 mm)\nhängende Montage (70-94 mm)","noch zu übersetzen","noch zu übersetzen","noch zu übersetzen","noch zu übersetzen","Stående Montage\nHængende Montage (70-79 mm)\nHængende Montage (70-94 mm)"]
["Außenrosette","ohne Rosette (0)\nohne Schließzylinderöffnung (1)\nmit Schließzylinderöffnung (2)","noch zu übersetzen",null,null,null,"Uden roset (0)\nUden hul til cylinder (1)\nMed hul til cylinder (2)"]
["Innenrosette","ohne Rosette (0)\nohne Schließzylinderöffnung (1)\nmit Schließzylinderöffnung (2)","MO = Mechanical Override\n\nblind (without MO)\nblind on one side / MO on the other side\nMO","noch zu übersetzen","noch zu übersetzen","noch zu übersetzen","Uden roset (0)\nUden hul til cylinder (1)\nMed hul til cylinder (2)"]
["Drücker außen","0 = ohne Drücker\nA = L-Form rund\nB = L-Form Gehrung\nC = U-Form rund\nD = U-Form Gehrung","0 = without handle\nA = L-shape curved\nB = L-shape mitre\nC = U-shape curved\nD = U-shape mitre","0 = ???\nA = forme en L arrondie\nB =  forme en L rectangulaire\nC = forme en U arrondie\nD = forme en U rectangulaire","0 = ???\nA = forma a L curvata tondeggiante\nB = forma a L piegata ad angolo retto\nC = forma a U curvata tondeggiante\nD = forma a U piegata ad angolo retto","0 = ???\nA = L-vorm rond gebogen\nB =  L-vorm verstek\nC = U-vorm rond gebogen\nD = U-vorm verstek","0 = Uden dørgreb\nA = L-formet greb buet\nB = L-formet greb vinkelret\nC = U-formet greb buet\nD = U-formet greb vinkelret"]
["Drücker innen","0 = ohne Drücker\nA = L-Form rund\nB = L-Form Gehrung\nC = U-Form rund\nD = U-Form Gehrung","0 = without handle\nA = L-shape curved\nB = L-shape mitre\nC = U-shape curved\nD = U-shape mitre","0 = ???\nA = forme en L arrondie\nB =  forme en L rectangulaire\nC = forme en U arrondie\nD = forme en U rectangulaire","0 = ???\nA = forma a L curvata tondeggiante\nB = forma a L piegata ad angolo retto\nC = forma a U curvata tondeggiante\nD = forma a U piegata ad angolo retto","0 = ???\nA = L-vorm rond gebogen\nB =  L-vorm verstek\nC = U-vorm rond gebogen\nD = U-vorm verstek","0 = Uden dørgreb\nA = L-formet greb buet\nB = L-formet greb vinkelret\nC = U-formet greb buet\nD = U-formet greb vinkelret"]
["Oberfläche","1 = silber / schwarz\n2 = silber / weiß","noch zu übersetzen","noch zu übersetzen","noch zu übersetzen","noch zu übersetzen","1 = Stål / sort\n2 = Stål / hvid"]
["Türdicke","S = 38-60 mm\nM = 59-80 mm\nL = 79-100 mm\nX = 100-200 mm","S = 38-60 mm\nM = 59-80 mm\nL = 79-100 mm\nX = 100-200 mm","S = 38-60 mm\nM = 59-80 mm\nL = 79-100 mm\nX = 100-200 mm","S = 38-60 mm\nM = 59-80 mm\nL = 79-100 mm\nX = 100-200 mm","S = 38-60 mm\nM = 59-80 mm\nL = 79-100 mm\nX = 100-200 mm","S = 38-60 mm\nM = 59-80 mm\nL = 79-100 mm\nX = 100-200 mm"]
["Vierkant","07 = 7 mm\n08 = 8 mm\n09 = 9 mm\n10 = 10 mm","07 = 7 mm\n08 = 8 mm\n09 = 9 mm\n10 = 10 mm","07 = 7 mm\n08 = 8 mm\n09 = 9 mm\n10 = 10 mm","07 = 7 mm\n08 = 8 mm\n09 = 9 mm\n10 = 10 mm","07 = 7 mm\n08 = 8 mm\n09 = 9 mm\n10 = 10 mm","07 = 7 mm\n08 = 8 mm\n09 = 9 mm\n10 = 10 mm"]
["Lesetechnik","A = Aktiv\nM = Mifare\nAM = Hybrid","A = Active\nM = Mifare\nAM = Hybrid","noch zu übersetzen","noch zu übersetzen","noch zu übersetzen","A = Aktiv\nM = MiFare\nAM = Hybrid"]
["Optionen","ZK = Zutrittskontrolle\nFH = zugelassen für FH Türen","ZK = Access control / time zone control\nFH = approved for fire resistant doors","ZK = contrôle des accès / contrôle des \nzones horaires\nFH = ???","ZK = controllo degli accessi / gestione delle fasce orarie\nFH = ???","ZK = Versie met toegangscontrole / tijdzonesturing\nFH = ???","ZK = Tid og log\nFH = Godkendt til branddøre EN???"]
[]
["Änderung (Brand-)Schutz","Bei Änderung dieser Zelle werden die Eingaben zu \"Profil\", \"Außenrosette\", \"Innenrosette\", \"Drücker außen\", \"Drücker innen\",\"Türdicke\" und \"Vierkant\" gelöscht.","Changes to this text field result in a resetting of \"profile\", \"rosette on the outside\", \"rosette on the inside\", \"handle outside\", \"handle inside\",  \"door thickness\" and \"spindle quare\".","Si vous changez cette ligne, vos indications relatives à \"le profil\", \"la  rosette extérieure\", \"la  rosette intérieure\", \"la béquille extérieure\",  \"la béquille intérieure\", \"Epaisseur de porte\" et \"Carré\" sont annulées.","Una modifica del presente campo comporta la cancellazione dei dati relativi al codice del profilo, rosetta esterna ed interna, maniglia esterna, maniglia interna, spessore porta e quadro maniglia.","Wijzigingen in dit tekstveld resulteren in een reset van profiel, de buiten en binnen rozet, deurkruk type buiten, deurkruk type binnen, deurdikte en Vierkant stift.","Ændringer til dette felt vil nulstille felterne \"Profil\", “Udvendig roset”, “Indvendig roset”, \"Udvendigt håndtag\", \"Indvendigt håndtag\", \"dørtykkelse\" og \"Firkant\".","Ändringar i detta textfält resulterar i återställning av \"profil\", \"rosett på utsidan\", \"rosett på insidan\", \"handtag utsida\", \"handtag insida\", \"dörrtjocklek\" och \"fyrkant\".",null,{"$f":"HLOOKUP('Hauptseite - main page'!$G$3,Comments!$B$1:$H$29,15,0)","v":"Bei Änderung dieser Zelle werden die Eingaben zu \"Profil\", \"Außenrosette\", \"Innenrosette\", \"Drücker außen\", \"Drücker innen\",\"Türdicke\" und \"Vierkant\" gelöscht."}]
["Änderung Profil","Bei Änderung dieser Zelle werden die Eingaben zu \"Außenrosette\", \"Innenrosette\", \"Drücker außen\", \"Drücker innen\",\"Türdicke\" und \"Vierkant\" gelöscht.","Changes to this text field result in a resetting of \"rosette on the outside\", \"rosette on the inside\", \"handle outside\", \"handle inside\",  \"door thickness\" and \"spindle quare\".","Si vous changez cette ligne, vos indications relatives à \"la  rosette extérieure\", \"la  rosette intérieure\", \"la béquille extérieure\",  \"la béquille intérieure\", \"Epaisseur de porte\" et \"Carré\" sont annulées.","Una modifica del presente campo comporta la cancellazione dei dati relativi alla rosetta esterna ed interna, maniglia esterna, maniglia interna, spessore porta ed quadro maniglia.","Wijzigingen in dit tekstveld resulteren in een reset van de buiten en binnen rozet, deurkruk type buiten, deurkruk type binnen, deurdikte en Vierkant stift.","Ændringer til dette felt vil nulstille felterne “Udvendig roset”, “Indvendig roset”, \"Udvendigt håndtag\", \"Indvendigt håndtag\", \"dørtykkelse\" og \"Firkant\".","Ändringar i detta textfält resulterar i återställning av \"rosett på utsidan\", \"rosett på insidan\", \"handtag utsida\", \"handtag insida\", \"dörrtjocklek\" och \"fyrkant\".",null,{"$f":"HLOOKUP('Hauptseite - main page'!$G$3,Comments!$B$1:$H$29,16,0)","v":"Bei Änderung dieser Zelle werden die Eingaben zu \"Außenrosette\", \"Innenrosette\", \"Drücker außen\", \"Drücker innen\",\"Türdicke\" und \"Vierkant\" gelöscht."}]
["Änderung Version","Bei Änderung dieser Zelle werden die Eingaben zur \"Außenrosette\" gelöscht.","Changes to this text field will result in a resetting of \"rosette on the outside\".","En cas de modifications dans cette cellule, les données concernant la \"technique de lecture\" seront supprimées.","In caso di cambio del testo di questa cella, il contenuto della cella \"tecnologia di lettura\" verrà cancellato","In geval van wijzigingen in dit tekstveld zal de \"leestechniek\" worden gewist.","Ændringer til dette felt vil nulstille felterne “Udvendig roset”","noch zu übersetzen",null,{"$f":"HLOOKUP('Hauptseite - main page'!$G$3,Comments!$B$1:$H$29,17,0)","v":"Bei Änderung dieser Zelle werden die Eingaben zur \"Außenrosette\" gelöscht."}]
[]
[null,"Türdicke (mm)","Door Thickness (mm)","Epaisseur de porte (mm)"]
[]
[]
["die unteren Meldungen werden derzeit nicht benötigt"]
[]
["Änderung Profilname","Bei Änderung dieser Zelle werden die Eingaben in der Zeile gelöscht.","Changes to this text field result in a resetting of the complete line.","En cas de modifications dans cette cellule, les données de la ligne seront supprimées.","in caso di cambio del testo di questa cella, il contenuto di questa riga viene cancellato","In geval van wijzigingen in dit tekstveld zal de inhoud worden gewist.","Ændringer i dette felt vil nulstille alle felter i denne linie",null,null,{"$f":"HLOOKUP('Hauptseite - main page'!$G$3,Comments!$B$1:$H$29,24,0)","v":"Bei Änderung dieser Zelle werden die Eingaben in der Zeile gelöscht."}]
["Änderung Montageform","Bei Änderung dieser Zelle werden die Eingaben zu \"Mechanical Override\" und \"Entfernung\" gelöscht.","Changes to this text field result in a resetting of \"Mechanical Override\" and \"Centre Distance\".","noch zu übersetzen","noch zu übersetzen","noch zu übersetzen","Ændringer til dette felt vil nulstille felterne “Mekanisk Overide” og “Center afstand”",null,null,{"$f":"HLOOKUP('Hauptseite - main page'!$G$3,Comments!$B$1:$H$29,25,0)","v":"Bei Änderung dieser Zelle werden die Eingaben zu \"Mechanical Override\" und \"Entfernung\" gelöscht."}]
["Änderung Version","Bei Änderung dieser Zelle werden die Eingaben zur \"Lesetechnik\" gelöscht.","Changes to this text field will result in a resetting of \"Reading Technology\".","En cas de modifications dans cette cellule, les données concernant la \"technique de lecture\" seront supprimées.","In caso di cambio del testo di questa cella, il contenuto della cella \"tecnologia di lettura\" verrà cancellato","In geval van wijzigingen in dit tekstveld zal de \"leestechniek\" worden gewist.","Ændringer til dette felt vil nulstille feltet “Læser teknologi”",null,null,{"$f":"HLOOKUP('Hauptseite - main page'!$G$3,Comments!$B$1:$H$29,26,0)","v":"Bei Änderung dieser Zelle werden die Eingaben zur \"Lesetechnik\" gelöscht."}]
["Änderung Profil (oben zur Bildansicht)","Bei Änderung dieser Zelle werden die Eingaben zu \"Montageform\" und \"Mechanical Override\" gelöscht.","Changes to this text field will result in a resetting of \"variant of installation\" and \"Mechanical Override\".","noch zu übersetzen","noch zu übersetzen","noch zu übersetzen","Ændringer til dette felt vil nulstille felterne “Mekanisk Overide” og “Installations variant”",null,null,{"$f":"HLOOKUP('Hauptseite - main page'!$G$3,Comments!$B$1:$H$29,27,0)","v":"Bei Änderung dieser Zelle werden die Eingaben zu \"Montageform\" und \"Mechanical Override\" gelöscht."}]
["Änderung Montageform (oben zur Bildansicht)","Bei Änderung dieser Zelle werden die Eingaben zu \"Mechanical Override\" gelöscht.","Changes to this text field result in a resetting of \"Mechanical Override\".","noch zu übersetzen","noch zu übersetzen","noch zu übersetzen","Ændringer til dette felt vil nulstille felterne “Mekanisk Overide” og “Installations variant”",null,null,{"$f":"HLOOKUP('Hauptseite - main page'!$G$3,Comments!$B$1:$H$29,28,0)","v":"Bei Änderung dieser Zelle werden die Eingaben zu \"Mechanical Override\" gelöscht."}]
["Änderung Entfernung","Bei Änderung dieser Zelle werden die Eingaben zu \"Optionen\" gelöscht.","Changes to this text field will result in a resetting of \"Options\".","En cas de modifications dans cette cellule, les données concernant l'option \"options\" seront supprimées.","In caso di modifica del testo in questo campo, il contenuto del campo “opzioni” verrà cancellato. ","In geval van wijzigingen in dit tekstveld zal \"opties\" worden gewist.",null,null,null,{"$f":"HLOOKUP('Hauptseite - main page'!$G$3,Comments!$B$1:$H$29,29,0)","v":"Bei Änderung dieser Zelle werden die Eingaben zu \"Optionen\" gelöscht."}]

{"sheet":"Bilder","index":6,"n_rows":36,"n_cols":27,"rows_kept":36,"cut":false,"hidden":true,"merged":[]}
["Bemaßung","Deutsch","English","Français","Italiano","Nederlands"]
[]
[]
[]
[]
["Drücker","A.","B.","C.","D.","E.","F."]
[]
[]
[]
[]
[]
[]
[]
["Einbinden von Fotos:","Fotos in Zelle unten einfügen mit \"einfügen als Bitmap"]
[null,"Markieren von A24 bis H24 --> STRG + Shift + F3 --> Namen erstellen aus den Werten aus \"linker Spalte\""]
[null,"Markieren von B24 bis H25 --> STRG + Shift + F3 --> Namen erstellen aus den Werten aus \"oberster Zeile\""]
[]
[]
[]
[]
[]
[]
[]
["Drücker_neu","A.","B.","C.","D.","E.","F.","L.","F.","G.","H."]
[]
[]
[null,null,null,null,null,null,null,null,null,"Aussen","A1_","A2_","A3_","A4_","A5_","A6_","A7_","A8_","A9_","A10_","A11_","XXX","A12_","A13_","A14_",null,"XXX"]
[]
[null,null,null,null,null,null,null,null,"Bemaßung2","Innen","I1_","I2_","I3_","I4_","I5_","I6_","I7_","I8_","I9_","XXX","I10_","I11_","I12_"]
[]
[]
[]
[]
[]
[]
[null,null,null,null,null,null,null,null,null,null,null,null,null,null,null," "]

{"sheet":"Tabelle2","index":7,"n_rows":45,"n_cols":6,"rows_kept":45,"cut":false,"hidden":true,"merged":[]}
["Vierkant"]
[]
[]
[null,"07","08","F8","F9",10]
["A0","x","x","x","x","x"]
["A1","x","x","x","x","x"]
["A2","x","x","x","x","x"]
["B0",null,"x","x","x","x"]
["B1",null,"x","x","x","x"]
["B2",null,"x","x","x","x"]
["C0","x","x","x","x","x"]
["C1","x","x","x","x","x"]
["D0",null,"x","x","x","x"]
["D1",null,"x","x","x","x"]
["E0",null,"x","x","x"]
["E1",null,"x","x","x"]
["E2",null,"x","x","x"]
["F0"]
["F1"]
["G0"]
["G1"]
["G2"]
[]
[]
["Enternung"]
[]
[null,"00","01","02",69,"X5"]
["A0","x"]
["A1","x"]
["A2","x"]
["B0","x"]
["B1","x"]
["B2","x"]
["C0",null,"x","x"]
["C1",null,"x","x"]
["D0",null,"x","x"]
["D1",null,"x","x"]
["E0"]
["E1",null,null,null,null,"x"]
["E2",null,null,null,null,"x"]
["F0",null,null,null,"x"]
["F1",null,null,null,"x"]
["G0",null,"x","x"]
["G1",null,"x","x"]
["G2",null,"x","x"]